Workbook

Sheet 0 Úvod
C4: Úvod
C5: Toto je jednoduchý finanční model, který doplňuje stávající výsledky analýz CBA obsažených ve studiích proveditelnosti a ekonomických hodnoceních českých železničních infrastrukturních projektů. Model je založen na analýze výnosů a je plně v souladu se současnou metodikou Evropské komise o CBA. Připravil DG REGIO/F.2, SUDOP PRAHA a.s. Aktualizoval SUDOP PRAHA a.s. 2016
C15: Základní informace
C17: Zdroj dat: | D17: Modernizace trati …
C19: Cenová úroveň (CÚ) | D19: 2016 | F19: Začátek stavebních prací | G19: 2016 | I19: Doba hodnocení | J19: 30 | M19: Směnný kurz (CZK/EUR) | N19: 25.66
C21: Diskontní sazba | D21: 0.05 | F21: Začátek provozu | G21: 2018 | M21: DPH | N21: 0.21
C25: Hodnocené scénáře
B26: BEZ PROJEKTU
B31: S PROJEKTEM
C38: Seznam tabulek
C40: List / tabulka | E40: Celk. investiční náklady | F40: Zůstatková hodnota | G40: Prov. náklady železnice | H40: Úspory v sil. dopravě | I40: Úspory z cestovních dob | J40: Externality | K40: Emise ze žel. dopravy | L40: Bezpečnost žel. dopravy | M40: Ostatní příjmy/náklady | N40: Ekonomická analýza
C41: V konstantních cenách | E41: 1.1. | F41: 2.1., 2.2 | G41: 3.1., 3.2., 3.3 | H41: 4.1., 4.2. | I41: 5.1., 5.2., 5.3., 5.4. | J41: 6.1., 6.2., 6.3. | K41: 7.1., 7.2, 7.3. | L41: 8.1., 8.2. | M41: 9.1., 9.2. | N41: 10.1.
C47: Míra inflace
C49: rok | D49: 2006 | E49: 2007 | F49: 2008 | G49: 2009 | H49: 2010 | I49: 2011 | J49: 2012 | K49: 2013 | L49: 2014 | M49: 2015 | N49: 2016 | O49: ***
C50: inflace | D50: 0.025 | E50: 0.028 | F50: 0.063 | G50: 0.01 | H50: 0.015 | I50: 0.019 | J50: 0.033 | K50: 0.014 | L50: 0.004 | M50: 0.003 | N50: 0.01
D51: 1 | E51: 1 | F51: 1 | G51: 1 | H51: 1 | I51: 1 | J51: 1 | K51: =J51*(1+K50) -> 1.014 | L51: =K51*(1+L50) -> 1.018056 | M51: =L51*(1+M50) -> 1.021110168 | N51: =M51*(1+N50) -> 1.03132127
C52: zdroj: Prováděcí pokyny pro hodnocení efektivnosti investic železničních staveb (č. 26/2013-910-IZD/3), MD 2013 - příloha A.2; ČNB (Zpráva o inflaci I/2016)
C54: Index cen stavebních prací
C56: rok | D56: 2006 | E56: 2007 | F56: 2008 | G56: 2009 | H56: 2010 | I56: 2011 | J56: 2012 | K56: 2013 | L56: 2014 | M56: 2015 | N56: 2016
C57: inflace | D57: 0.029 | E57: 0.041 | F57: 0.045 | G57: 0.012 | H57: -0.002 | I57: -0.005 | J57: -0.007 | K57: -0.011 | L57: 0.005 | M57: 0 | N57: 0
D58: 1 | E58: 1 | F58: 1 | G58: 1 | H58: 1 | I58: 1 | J58: 1 | K58: 1 | L58: =K58*(1+L57) -> 1.005 | M58: =L58*(1+M57) -> 1.005 | N58: =M58*(1+N57) -> 1.005
C59: zdroj: aktuálně platné opatření SFDI (č.j. 3029/SFDI/320079/8567/2015); ČSÚ
C61: *** pro další roky platí v souladu s Prováděcími pokyny hodnota 2,00%
C63: HDP na hlavu
C65: rok | D65: 2005 | E65: 2006 | F65: 2007 | G65: 2008 | H65: 2009 | I65: 2010 | J65: 2011 | K65: 2012 | L65: 2013 | M65: 2014 | N65: 2015
C66: HDP na hlavu | D66: 0.062 | E66: 0.065 | F66: 0.05 | G66: 0.017 | H66: -0.054 | I66: 0.02 | J66: 0.022 | K66: -0.01 | L66: -0.005 | M66: 0.018 | N66: 0.047
K67: 1 | L67: =K67*(1+L66) -> 0.995 | M67: =L67*(1+M66) -> 1.01291 | N67: =M67*(1+N66) -> 1.06051677
C68: rok | D68: 2016 | E68: 2017 | F68: 2018 | G68: 2019 | H68: 2020 | I68: 2030 | J68: 2050
C69: HDP na hlavu | D69: 0.028 | E69: 0.029 | F69: 0.03 | G69: 0.03 | H69: 0.02 | I69: 0.01 | J69: 0.01
D70: =N67*(1+D69) -> 1.09021124 | E70: =D70*(1+E69) -> 1.121827366 | F70: =E70*(1+F69) -> 1.155482186 | G70: =F70*(1+G69) -> 1.190146652 | H70: =G70*(1+H69) -> 1.213949585 | I70: =H70*(1+I69)^(I68-H68) -> 1.340955571 | J70: =I70*(1+J69)^(J68-I68) -> 1.636220632
C71: zdroj: Prováděcí pokyny pro hodnocení efektivnosti investic železničních staveb (č. 26/2013-910-IZD/3), MD 2013 - příloha A.2; ČSÚ; ČNB (Zpráva o inflaci I/2016)
C75: Růst reálných mezd
C77: rok | D77: 2012 | E77: 2013 | F77: 2014 | G77: 2015 | H77: 2016 | I77: 2017 | J77: 2018 | K77: 2019 | L77: 2020 | M77: 2030 | N77: 2050
C78: růst mezd | D78: -0.008 | E78: -0.015 | F78: 0.019 | G78: 0.028 | H78: 0.03 | I78: 0.025 | J78: 0.03 | K78: 0.03 | L78: 0.025 | M78: 0.02 | N78: 0.02
D79: 1 | E79: =D79*(1+E78*'3 Provozní náklady železnice'!$D$130) -> 0.985 | F79: =E79*(1+F78*'3 Provozní náklady železnice'!$D$130) -> 1.003715 | G79: =F79*(1+G78*'3 Provozní náklady železnice'!$D$130) -> 1.03181902 | H79: =G79*(1+H78*'3 Provozní náklady železnice'!$D$130) -> 1.062773591 | I79: =H79*(1+I78*'3 Provozní náklady železnice'!$D$130) -> 1.08934293 | J79: =I79*(1+J78*'3 Provozní náklady železnice'!$D$130) -> 1.122023218 | K79: =J79*(1+K78*'3 Provozní náklady železnice'!$D$130) -> 1.155683915 | L79: =K79*(1+L78*'3 Provozní náklady železnice'!$D$130) -> 1.184576013 | M79: =L79*(1+M78*'3 Provozní náklady železnice'!$D$130)^(M77-L77) -> 1.44399155 | N79: =M79*(1+N78*'3 Provozní náklady železnice'!$D$130)^(N77-M77) -> 2.145695483
C80: zdroj: do r. 2016 vč. ČNB (Zpráva o inflaci I/2016); od r. 2017 vč. Prováděcí pokyny pro hodnocení efektivnosti investic železničních staveb (č. 26/2013-910-IZD/3), MD 2013 - příloha A.2
C85: Vyplnit pouze žlutě podbarvené buňky!

Sheet 1 Celkové investiční náklady
B2: 1.1. | C2: Celkové investiční náklady (CZK) | G2: V roce
B3: a | C3: (konstantní ceny) | F3: Celk. projekt. náklady | G3: ='0 Úvod'!G19 -> 2016 | H3: =G3+1 -> 2017 | I3: =H3+1 -> 2018 | J3: 2019 | K3: 2020 | L3: 2021 | M3: 2022 | N3: 2023 | O3: 2024 | P3: 2025 | Q3: 2026 | R3: 2027 | S3: 2028 | T3: 2029 | U3: =T3+1 -> 2030
C4: ='0 Úvod'!D19 -> 2016
C5: Přípravná a projektová dokumentace | F5: =SUM(G5:U5,G20:U20) -> 0
C6: Zábory a nákupy pozemků | F6: =SUM(G6:U6,G21:U21) -> 0
C7: Stavby a konstrukce (stavební náklady) | F7: 0
C8: Stroje a zařízení | F8: 0
C9: Technická asistence, propagace | F9: 0
C10: Technický dozor | F10: 0
C11: Celkové investiční náklady bez rezervy (konstantní ceny) | F11: 0 | G11: =SUM(G5:G10) -> 0 | H11: 0 | I11: =SUM(I5:I10) -> 0 | J11: 0 | K11: 0 | L11: 0 | M11: 0 | N11: 0 | O11: 0 | P11: 0 | Q11: 0 | R11: 0 | S11: 0 | T11: 0 | U11: =SUM(U5:U10) -> 0
C12: Rezerva | F12: 0
C13: Celkové investiční náklady včetně rezervy (konstantní ceny) | F13: 0 | G13: =SUM(G11:G12) -> 0 | H13: =SUM(H11:H12) -> 0 | I13: =SUM(I11:I12) -> 0 | J13: 0 | K13: 0 | L13: 0 | M13: 0 | N13: 0 | O13: 0 | P13: 0 | Q13: 0 | R13: 0 | S13: 0 | T13: 0 | U13: =SUM(U11:U12) -> 0
C14: ='0 Úvod'!$N$21*1000 -> 210 | F14: 0 | G14: =G13*$C14/1000 -> 0 | H14: =H13*$C14/1000 -> 0 | I14: =I13*$C14/1000 -> 0 | J14: 0 | K14: 0 | L14: 0 | M14: 0 | N14: 0 | O14: 0 | P14: 0 | Q14: 0 | R14: 0 | S14: 0 | T14: 0 | U14: =U13*$C14/1000 -> 0
C15: Celkové investiční náklady včetně DPH (konstantní ceny) | F15: 0 | G15: =G14+G13 -> 0 | H15: =H14+H13 -> 0 | I15: =I14+I13 -> 0 | J15: 0 | K15: 0 | L15: 0 | M15: 0 | N15: 0 | O15: 0 | P15: 0 | Q15: 0 | R15: 0 | S15: 0 | T15: 0 | U15: =U14+U13 -> 0
B17: 1.1. | C17: Celkové investiční náklady (CZK)
B18: b | C18: (konstatní ceny) | G18: =U3+1 -> 2031 | H18: =G18+1 -> 2032 | I18: =H18+1 -> 2033 | J18: 2034 | K18: 2035 | L18: 2036 | M18: 2037 | N18: 2038 | O18: 2039 | P18: 2040 | Q18: 2041 | R18: 2042 | S18: 2043 | T18: 2044 | U18: =T18+1 -> 2045
C19: ='0 Úvod'!D19 -> 2016
C20: Přípravná a projektová dokumentace
C21: Zábory a nákupy pozemků
C22: Stavby a konstrukce (stavební náklady)
C23: Stroje a zařízení
C24: Technická asistence, propagace
C25: Technický dozor
C26: Celkové investiční náklady bez rezervy (konstantní ceny) | G26: =SUM(G20:G25) -> 0 | H26: 0 | I26: 0 | J26: 0 | K26: 0 | L26: 0 | M26: 0 | N26: 0 | O26: 0 | P26: 0 | Q26: 0 | R26: 0 | S26: 0 | T26: 0 | U26: =SUM(U20:U25) -> 0
C27: Rezerva
C28: Celkové investiční náklady včetně rezervy (konstantní ceny) | G28: =SUM(G26:G27) -> 0 | H28: 0 | I28: 0 | J28: 0 | K28: 0 | L28: 0 | M28: 0 | N28: 0 | O28: 0 | P28: 0 | Q28: 0 | R28: 0 | S28: 0 | T28: 0 | U28: =SUM(U26:U27) -> 0
C29: ='0 Úvod'!$N$21*1000 -> 210 | G29: =G28*$C29/1000 -> 0 | H29: =H28*$C29/1000 -> 0 | I29: =I28*$C29/1000 -> 0 | J29: 0 | K29: 0 | L29: 0 | M29: 0 | N29: 0 | O29: 0 | P29: 0 | Q29: 0 | R29: 0 | S29: 0 | T29: 0 | U29: =U28*$C29/1000 -> 0
C30: Celkové investiční náklady včetně DPH (konstantní ceny) | G30: =G29+G28 -> 0 | H30: 0 | I30: 0 | J30: 0 | K30: 0 | L30: 0 | M30: 0 | N30: 0 | O30: 0 | P30: 0 | Q30: 0 | R30: 0 | S30: 0 | T30: 0 | U30: =U29+U28 -> 0

Sheet 2 Zůstatková hodnota
B2: 2.1. | C2: Životnost investice (roky) | D2: Náklady (CZK) | E2: Vážení | G2: 2.3. | H2: Výpočet zůstatkové hodnoty
C3: Zabezpečovací zařízení | E3: =D3*D20 -> 0 | H3: Celková životnost investice | I3: =$E$16 -> 
C4: Sdělovací zařízení | E4: =D4*D21 -> 0 | H4: Délka provozní fáze hodnotícího období | I4: ='0 Úvod'!$J$19-('0 Úvod'!$G$21-'0 Úvod'!$G$19) -> 28
C5: Silnoproudé rozvody a zařízení | E5: 0 | H5: Životnost investice po skončení hodnotícího období | I5: =I3-I4 -> 
C6: Železniční svršek | E6: 0 | H6: Průměrný nákladový peněžní tok (nediskontovaný) | I6: =SUM('10 Ekonomická analýza'!F18:T18,'10 Ekonomická analýza'!F35:T35)/('0 Úvod'!J19-('0 Úvod'!$G$21-'0 Úvod'!G19)) -> 0
C7: Železniční spodek | E7: 0 | H7: Ekonomický přínos v posledním roce (nediskontovaný) | I7: =IF(HLOOKUP(('0 Úvod'!G19+'0 Úvod'!J19-1),'10 Ekonomická analýza'!F19:T26,1,FALSE)=('0 Úvod'!G19+'0 Úvod'!J19-1),(HLOOKUP(('0 Úvod'!G19+'0 Úvod'!J19-1),'10 Ekonomická analýza'!F19:T26,4,FALSE)+HLOOKUP(('0 Úvod'!G19+'0 Úvod'!J19-1),'10 Ekonomická analýza'!F19:T26,5,FALSE)+HLOOKUP(('0 Úvod'!G19+'0 Úvod'!J19-1),'10 Ekonomická analýza'!F19:T26,6,FALSE)+HLOOKUP(('0 Úvod'!G19+'0 Úvod'!J19-1),'10 Ekonomická analýza'!F19:T26,7,FALSE)+HLOOKUP(('0 Úvod'!G19+'0 Úvod'!J19-1),'10 Ekonomická analýza'!F19:T26,8,FALSE)),0) -> 0
C8: Mosty, propustky, zdi | E8: 0 | H8: ZŮSTATKOVÁ HODNOTA | I8: =IF(I6*(1/(1+'0 Úvod'!D21))*(((1/(1+'0 Úvod'!D21))^I5-1)/((1/(1+'0 Úvod'!D21))-1))<0,IF(I7*(1/(1+'0 Úvod'!D21))*(((1/(1+'0 Úvod'!D21))^I5-1)/((1/(1+'0 Úvod'!D21))-1))<0,0,I7*(1/(1+'0 Úvod'!D21))*(((1/(1+'0 Úvod'!D21))^I5-1)/((1/(1+'0 Úvod'!D21))-1))),(I6+I7)*(1/(1+'0 Úvod'!D21))*(((1/(1+'0 Úvod'!D21))^I5-1)/((1/(1+'0 Úvod'!D21))-1))) -> 
C9: Tunely | E9: 0
C10: Komunikace a zpevněné plochy | E10: 0
C11: Trakce | E11: 0
C12: Inženýrské sítě (trubní vedení, kabelovody) | E12: 0
C13: Pozemní stavby, nástupiště a přístřešky | E13: 0
C14: Objekty ochrany životního prostředí | E14: 0
C15: CELKEM | D15: =SUM(D3:D14) -> 0 | E15: =SUM(E3:E14) -> 0
B16: Celková životnost investice (roky) | E16: =ROUND(E15/D15,0) -> 
B19: 2.2. | C19: Životnost jednotlivých prvků | D19: roky | G19: 2.4. | H19: Diskont. zůstatková hodnota investic pro FA | I19: =I8*(1/(1+'0 Úvod'!D21)^('0 Úvod'!J19-1)) -> 
C20: Zabezpečovací zařízení | D20: =100/5 -> 20 | H20: Diskontovaná zůstatková hodnota investic v EUR | I20: =I19/'0 Úvod'!N19 -> 
C21: Sdělovací zařízení | D21: 20
C22: Silnoproudé rozvody a zařízení | D22: 20
C23: Železniční svršek | D23: 30
C24: Železniční spodek | D24: 60
C25: Mosty, propustky, zdi | D25: 75
C26: Tunely | D26: 90
C27: Komunikace a zpevněné plochy | D27: 20
C28: Trakce | D28: 30
C29: Inženýrské sítě (trubní vedení, kabelovody) | D29: 20
C30: Pozemní stavby, nástupiště a přístřešky | D30: 40
C31: Objekty ochrany životního prostředí | D31: 30

Sheet 3 Provozní náklady železnice
B2: 3.1. | C2: Celkové provozní náklady (CZK) | E2: ='1 Celkové investiční náklady'!G3 -> 2016 | F2: =E2+1 -> 2017 | G2: 2018 | H2: 2019 | I2: 2020 | J2: 2021 | K2: 2022 | L2: 2023 | M2: 2024 | N2: 2025 | O2: 2026 | P2: 2027 | Q2: 2028 | R2: 2029 | S2: 2030
B3: a | C3: Scénář s projektem | D3: Celkem
C4: Náklady na údržbu a provoz infrastr. | D4: =SUM(E4:S4,E13:S13) -> 0
C5: Periodické provozní náklady | D5: =SUM(E5:S5,E14:S14) -> 0
C6: Náklady na řízení provozu | D6: 0 | E6: =IF(E2<=('0 Úvod'!$G$19+'0 Úvod'!$J$19-1),SUMPRODUCT(E131:E143,E165:E177)+E179,0) -> 0 | F6: =IF(F2<=('0 Úvod'!$G$19+'0 Úvod'!$J$19-1),SUMPRODUCT(F131:F143,F165:F177)+F179,0) -> 0 | G6: =IF(G2<=('0 Úvod'!$G$19+'0 Úvod'!$J$19-1),SUMPRODUCT(G131:G143,G165:G177)+G179,0) -> 0 | H6: =IF(H2<=('0 Úvod'!$G$19+'0 Úvod'!$J$19-1),SUMPRODUCT(H131:H143,H165:H177)+H179,0) -> 0 | I6: =IF(I2<=('0 Úvod'!$G$19+'0 Úvod'!$J$19-1),SUMPRODUCT(I131:I143,I165:I177)+I179,0) -> 0 | J6: =IF(J2<=('0 Úvod'!$G$19+'0 Úvod'!$J$19-1),SUMPRODUCT(J131:J143,J165:J177)+J179,0) -> 0 | K6: =IF(K2<=('0 Úvod'!$G$19+'0 Úvod'!$J$19-1),SUMPRODUCT(K131:K143,K165:K177)+K179,0) -> 0 | L6: =IF(L2<=('0 Úvod'!$G$19+'0 Úvod'!$J$19-1),SUMPRODUCT(L131:L143,L165:L177)+L179,0) -> 0 | M6: =IF(M2<=('0 Úvod'!$G$19+'0 Úvod'!$J$19-1),SUMPRODUCT(M131:M143,M165:M177)+M179,0) -> 0 | N6: =IF(N2<=('0 Úvod'!$G$19+'0 Úvod'!$J$19-1),SUMPRODUCT(N131:N143,N165:N177)+N179,0) -> 0 | O6: =IF(O2<=('0 Úvod'!$G$19+'0 Úvod'!$J$19-1),SUMPRODUCT(O131:O143,O165:O177)+O179,0) -> 0 | P6: =IF(P2<=('0 Úvod'!$G$19+'0 Úvod'!$J$19-1),SUMPRODUCT(P131:P143,P165:P177)+P179,0) -> 0 | Q6: =IF(Q2<=('0 Úvod'!$G$19+'0 Úvod'!$J$19-1),SUMPRODUCT(Q131:Q143,Q165:Q177)+Q179,0) -> 0 | R6: =IF(R2<=('0 Úvod'!$G$19+'0 Úvod'!$J$19-1),SUMPRODUCT(R131:R143,R165:R177)+R179,0) -> 0 | S6: =IF(S2<=('0 Úvod'!$G$19+'0 Úvod'!$J$19-1),SUMPRODUCT(S131:S143,S165:S177)+S179,0) -> 0
C7: Náklady na provoz vlaků - osobní | D7: 0
C8: Náklady na provoz vlaků - nákladní | D8: 0
C9: Celkové provozní náklady | D9: 0 | E9: =SUM(E4:E8) -> 0 | F9: =SUM(F4:F8) -> 0 | G9: =SUM(G4:G8) -> 0 | H9: 0 | I9: 0 | J9: 0 | K9: 0 | L9: 0 | M9: 0 | N9: 0 | O9: 0 | P9: 0 | Q9: 0 | R9: 0 | S9: =SUM(S4:S8) -> 0
B11: 3.1. | C11: Celkové provozní náklady (CZK) | E11: =S2+1 -> 2031 | F11: =E11+1 -> 2032 | G11: 2033 | H11: 2034 | I11: 2035 | J11: 2036 | K11: 2037 | L11: 2038 | M11: 2039 | N11: 2040 | O11: 2041 | P11: 2042 | Q11: 2043 | R11: 2044 | S11: 2045
B12: b | C12: Scenář s projektem
C13: Náklady na údržbu a provoz infrastr.
C14: Periodické provozní náklady
C15: Náklady na řízení provozu | E15: =IF(E11<=('0 Úvod'!$G$19+'0 Úvod'!$J$19-1),SUMPRODUCT(E148:E160,E183:E195)+E197,0) -> 0 | F15: =IF(F11<=('0 Úvod'!$G$19+'0 Úvod'!$J$19-1),SUMPRODUCT(F148:F160,F183:F195)+F197,0) -> 0 | G15: =IF(G11<=('0 Úvod'!$G$19+'0 Úvod'!$J$19-1),SUMPRODUCT(G148:G160,G183:G195)+G197,0) -> 0 | H15: =IF(H11<=('0 Úvod'!$G$19+'0 Úvod'!$J$19-1),SUMPRODUCT(H148:H160,H183:H195)+H197,0) -> 0 | I15: =IF(I11<=('0 Úvod'!$G$19+'0 Úvod'!$J$19-1),SUMPRODUCT(I148:I160,I183:I195)+I197,0) -> 0 | J15: =IF(J11<=('0 Úvod'!$G$19+'0 Úvod'!$J$19-1),SUMPRODUCT(J148:J160,J183:J195)+J197,0) -> 0 | K15: =IF(K11<=('0 Úvod'!$G$19+'0 Úvod'!$J$19-1),SUMPRODUCT(K148:K160,K183:K195)+K197,0) -> 0 | L15: =IF(L11<=('0 Úvod'!$G$19+'0 Úvod'!$J$19-1),SUMPRODUCT(L148:L160,L183:L195)+L197,0) -> 0 | M15: =IF(M11<=('0 Úvod'!$G$19+'0 Úvod'!$J$19-1),SUMPRODUCT(M148:M160,M183:M195)+M197,0) -> 0 | N15: =IF(N11<=('0 Úvod'!$G$19+'0 Úvod'!$J$19-1),SUMPRODUCT(N148:N160,N183:N195)+N197,0) -> 0 | O15: =IF(O11<=('0 Úvod'!$G$19+'0 Úvod'!$J$19-1),SUMPRODUCT(O148:O160,O183:O195)+O197,0) -> 0 | P15: =IF(P11<=('0 Úvod'!$G$19+'0 Úvod'!$J$19-1),SUMPRODUCT(P148:P160,P183:P195)+P197,0) -> 0 | Q15: =IF(Q11<=('0 Úvod'!$G$19+'0 Úvod'!$J$19-1),SUMPRODUCT(Q148:Q160,Q183:Q195)+Q197,0) -> 0 | R15: =IF(R11<=('0 Úvod'!$G$19+'0 Úvod'!$J$19-1),SUMPRODUCT(R148:R160,R183:R195)+R197,0) -> 0 | S15: =IF(S11<=('0 Úvod'!$G$19+'0 Úvod'!$J$19-1),SUMPRODUCT(S148:S160,S183:S195)+S197,0) -> 0
C16: Náklady na provoz vlaků - osobní
C17: Náklady na provoz vlaků - nákladní
C18: Celkové provozní náklady | E18: =SUM(E13:E17) -> 0 | F18: =SUM(F13:F17) -> 0 | G18: =SUM(G13:G17) -> 0 | H18: 0 | I18: 0 | J18: 0 | K18: 0 | L18: 0 | M18: 0 | N18: 0 | O18: 0 | P18: 0 | Q18: 0 | R18: 0 | S18: =SUM(S13:S17) -> 0
B21: 3.2. | C21: Celkové provozní náklady (CZK) | E21: =E2 -> 2016 | F21: =E21+1 -> 2017 | G21: 2018 | H21: 2019 | I21: 2020 | J21: 2021 | K21: 2022 | L21: 2023 | M21: 2024 | N21: 2025 | O21: 2026 | P21: 2027 | Q21: 2028 | R21: 2029 | S21: 2030
B22: a | C22: Scénář bez projektu | D22: Celkem
C23: Náklady na údržbu a provoz infrastr. | D23: =SUM(E23:S23,E32:S32) -> 0
C24: Periodické provozní náklady | D24: =SUM(E24:S24,E33:S33) -> 0
C25: Náklady na řízení provozu | D25: 0 | E25: =IF(E21<=('0 Úvod'!$G$19+'0 Úvod'!$J$19-1),SUMPRODUCT(E131:E143,E201:E213)+E215,0) -> 0 | F25: =IF(F21<=('0 Úvod'!$G$19+'0 Úvod'!$J$19-1),SUMPRODUCT(F131:F143,F201:F213)+F215,0) -> 0 | G25: =IF(G21<=('0 Úvod'!$G$19+'0 Úvod'!$J$19-1),SUMPRODUCT(G131:G143,G201:G213)+G215,0) -> 0 | H25: =IF(H21<=('0 Úvod'!$G$19+'0 Úvod'!$J$19-1),SUMPRODUCT(H131:H143,H201:H213)+H215,0) -> 0 | I25: =IF(I21<=('0 Úvod'!$G$19+'0 Úvod'!$J$19-1),SUMPRODUCT(I131:I143,I201:I213)+I215,0) -> 0 | J25: =IF(J21<=('0 Úvod'!$G$19+'0 Úvod'!$J$19-1),SUMPRODUCT(J131:J143,J201:J213)+J215,0) -> 0 | K25: =IF(K21<=('0 Úvod'!$G$19+'0 Úvod'!$J$19-1),SUMPRODUCT(K131:K143,K201:K213)+K215,0) -> 0 | L25: =IF(L21<=('0 Úvod'!$G$19+'0 Úvod'!$J$19-1),SUMPRODUCT(L131:L143,L201:L213)+L215,0) -> 0 | M25: =IF(M21<=('0 Úvod'!$G$19+'0 Úvod'!$J$19-1),SUMPRODUCT(M131:M143,M201:M213)+M215,0) -> 0 | N25: =IF(N21<=('0 Úvod'!$G$19+'0 Úvod'!$J$19-1),SUMPRODUCT(N131:N143,N201:N213)+N215,0) -> 0 | O25: =IF(O21<=('0 Úvod'!$G$19+'0 Úvod'!$J$19-1),SUMPRODUCT(O131:O143,O201:O213)+O215,0) -> 0 | P25: =IF(P21<=('0 Úvod'!$G$19+'0 Úvod'!$J$19-1),SUMPRODUCT(P131:P143,P201:P213)+P215,0) -> 0 | Q25: =IF(Q21<=('0 Úvod'!$G$19+'0 Úvod'!$J$19-1),SUMPRODUCT(Q131:Q143,Q201:Q213)+Q215,0) -> 0 | R25: =IF(R21<=('0 Úvod'!$G$19+'0 Úvod'!$J$19-1),SUMPRODUCT(R131:R143,R201:R213)+R215,0) -> 0 | S25: =IF(S21<=('0 Úvod'!$G$19+'0 Úvod'!$J$19-1),SUMPRODUCT(S131:S143,S201:S213)+S215,0) -> 0
C26: Náklady na provoz vlaků - osobní | D26: 0
C27: Náklady na provoz vlaků - nákladní | D27: 0
C28: Celkové provozní náklady | D28: 0 | E28: =SUM(E23:E27) -> 0 | F28: =SUM(F23:F27) -> 0 | G28: =SUM(G23:G27) -> 0 | H28: 0 | I28: 0 | J28: 0 | K28: 0 | L28: 0 | M28: 0 | N28: 0 | O28: 0 | P28: 0 | Q28: 0 | R28: 0 | S28: =SUM(S23:S27) -> 0
B30: 3.2. | C30: Celkové provozní náklady (CZK) | E30: =S21+1 -> 2031 | F30: =E30+1 -> 2032 | G30: 2033 | H30: 2034 | I30: 2035 | J30: 2036 | K30: 2037 | L30: 2038 | M30: 2039 | N30: 2040 | O30: 2041 | P30: 2042 | Q30: 2043 | R30: 2044 | S30: 2045
B31: b | C31: Scénář bez projektu | E31: =S22+1 -> 1
C32: Náklady na údržbu a provoz infrastr.
C33: Periodické provozní náklady
C34: Náklady na řízení provozu | E34: =IF(E30<=('0 Úvod'!$G$19+'0 Úvod'!$J$19-1),SUMPRODUCT(E148:E160,E219:E231)+E233,0) -> 0 | F34: =IF(F30<=('0 Úvod'!$G$19+'0 Úvod'!$J$19-1),SUMPRODUCT(F148:F160,F219:F231)+F233,0) -> 0 | G34: =IF(G30<=('0 Úvod'!$G$19+'0 Úvod'!$J$19-1),SUMPRODUCT(G148:G160,G219:G231)+G233,0) -> 0 | H34: =IF(H30<=('0 Úvod'!$G$19+'0 Úvod'!$J$19-1),SUMPRODUCT(H148:H160,H219:H231)+H233,0) -> 0 | I34: =IF(I30<=('0 Úvod'!$G$19+'0 Úvod'!$J$19-1),SUMPRODUCT(I148:I160,I219:I231)+I233,0) -> 0 | J34: =IF(J30<=('0 Úvod'!$G$19+'0 Úvod'!$J$19-1),SUMPRODUCT(J148:J160,J219:J231)+J233,0) -> 0 | K34: =IF(K30<=('0 Úvod'!$G$19+'0 Úvod'!$J$19-1),SUMPRODUCT(K148:K160,K219:K231)+K233,0) -> 0 | L34: =IF(L30<=('0 Úvod'!$G$19+'0 Úvod'!$J$19-1),SUMPRODUCT(L148:L160,L219:L231)+L233,0) -> 0 | M34: =IF(M30<=('0 Úvod'!$G$19+'0 Úvod'!$J$19-1),SUMPRODUCT(M148:M160,M219:M231)+M233,0) -> 0 | N34: =IF(N30<=('0 Úvod'!$G$19+'0 Úvod'!$J$19-1),SUMPRODUCT(N148:N160,N219:N231)+N233,0) -> 0 | O34: =IF(O30<=('0 Úvod'!$G$19+'0 Úvod'!$J$19-1),SUMPRODUCT(O148:O160,O219:O231)+O233,0) -> 0 | P34: =IF(P30<=('0 Úvod'!$G$19+'0 Úvod'!$J$19-1),SUMPRODUCT(P148:P160,P219:P231)+P233,0) -> 0 | Q34: =IF(Q30<=('0 Úvod'!$G$19+'0 Úvod'!$J$19-1),SUMPRODUCT(Q148:Q160,Q219:Q231)+Q233,0) -> 0 | R34: =IF(R30<=('0 Úvod'!$G$19+'0 Úvod'!$J$19-1),SUMPRODUCT(R148:R160,R219:R231)+R233,0) -> 0 | S34: =IF(S30<=('0 Úvod'!$G$19+'0 Úvod'!$J$19-1),SUMPRODUCT(S148:S160,S219:S231)+S233,0) -> 0
C35: Náklady na provoz vlaků - osobní
C36: Náklady na provoz vlaků - nákladní
C37: Celkové provozní náklady | E37: =SUM(E32:E36) -> 0 | F37: =SUM(F32:F36) -> 0 | G37: =SUM(G32:G36) -> 0 | H37: 0 | I37: 0 | J37: 0 | K37: 0 | L37: 0 | M37: 0 | N37: 0 | O37: 0 | P37: 0 | Q37: 0 | R37: 0 | S37: =SUM(S32:S36) -> 0
B40: 3.3.a | C40: Přírůstkové celkové provozní náklady (CZK) | E40: =E2 -> 2016 | F40: =E40+1 -> 2017 | G40: 2018 | H40: 2019 | I40: 2020 | J40: 2021 | K40: 2022 | L40: 2023 | M40: 2024 | N40: 2025 | O40: 2026 | P40: 2027 | Q40: 2028 | R40: 2029 | S40: 2030
B41: KF | C41: s aplikací fiskální korekce | D41: Celkem
B42: 0.93 | C42: Náklady na údržbu a provoz infrastr. | D42: =SUM(E42:S42,E51:S51) -> 0 | E42: =(E4-E23)*$B$42 -> 0 | F42: =(F4-F23)*$B$42 -> 0 | G42: 0 | H42: 0 | I42: 0 | J42: 0 | K42: 0 | L42: 0 | M42: 0 | N42: 0 | O42: 0 | P42: 0 | Q42: 0 | R42: 0 | S42: 0
B43: 0.93 | C43: Periodické provozní náklady | D43: =SUM(E43:S43,E52:S52) -> 0 | E43: =(E5-E24)*$B$43 -> 0 | F43: =(F5-F24)*$B$43 -> 0 | G43: 0 | H43: 0 | I43: 0 | J43: 0 | K43: 0 | L43: 0 | M43: 0 | N43: 0 | O43: 0 | P43: 0 | Q43: 0 | R43: 0 | S43: 0
B44: 0.82 | C44: Náklady na řízení provozu | D44: 0 | E44: =(E6-E25)*$B$44 -> 0 | F44: =(F6-F25)*$B$44 -> 0 | G44: 0 | H44: 0 | I44: 0 | J44: 0 | K44: 0 | L44: 0 | M44: 0 | N44: 0 | O44: 0 | P44: 0 | Q44: 0 | R44: 0 | S44: 0
B45: 0.93 | C45: Náklady na provoz vlaků - osobní | D45: 0 | E45: =(E7-E26)*$B$45 -> 0 | F45: =(F7-F26)*$B$45 -> 0 | G45: 0 | H45: 0 | I45: 0 | J45: 0 | K45: 0 | L45: 0 | M45: 0 | N45: 0 | O45: 0 | P45: 0 | Q45: 0 | R45: 0 | S45: 0
B46: 0.93 | C46: Náklady na provoz vlaků - nákladní | D46: 0 | E46: =(E8-E27)*$B$46 -> 0 | F46: =(F8-F27)*$B$46 -> 0 | G46: 0 | H46: 0 | I46: 0 | J46: 0 | K46: 0 | L46: 0 | M46: 0 | N46: 0 | O46: 0 | P46: 0 | Q46: 0 | R46: 0 | S46: 0
C47: Přírůstkové celkové provozní náklady | D47: 0 | E47: =SUM(E42:E46) -> 0 | F47: =SUM(F42:F46) -> 0 | G47: =SUM(G42:G46) -> 0 | H47: 0 | I47: 0 | J47: 0 | K47: 0 | L47: 0 | M47: 0 | N47: 0 | O47: 0 | P47: 0 | Q47: 0 | R47: 0 | S47: 0
B49: 3.3.b | C49: Přírůstkové celkové provozní náklady (CZK) | E49: =S40+1 -> 2031 | F49: =E49+1 -> 2032 | G49: 2033 | H49: 2034 | I49: 2035 | J49: 2036 | K49: 2037 | L49: 2038 | M49: 2039 | N49: 2040 | O49: 2041 | P49: 2042 | Q49: 2043 | R49: 2044 | S49: 2045
B50: KF | C50: =C41 -> s aplikací fiskální korekce | E50: =S41+1 -> 1
B51: =B42 -> 0.93 | C51: Náklady na údržbu a provoz infrastr. | E51: =(E13-E32)*$B$42 -> 0 | F51: =(F13-F32)*$B$42 -> 0 | G51: 0 | H51: 0 | I51: 0 | J51: 0 | K51: 0 | L51: 0 | M51: 0 | N51: 0 | O51: 0 | P51: 0 | Q51: 0 | R51: 0 | S51: 0
B52: =B43 -> 0.93 | C52: Periodické provozní náklady | E52: =(E14-E33)*$B$43 -> 0 | F52: =(F14-F33)*$B$43 -> 0 | G52: 0 | H52: 0 | I52: 0 | J52: 0 | K52: 0 | L52: 0 | M52: 0 | N52: 0 | O52: 0 | P52: 0 | Q52: 0 | R52: 0 | S52: 0
B53: =B44 -> 0.82 | C53: Náklady na řízení provozu | E53: =(E15-E34)*$B$44 -> 0 | F53: =(F15-F34)*$B$44 -> 0 | G53: 0 | H53: 0 | I53: 0 | J53: 0 | K53: 0 | L53: 0 | M53: 0 | N53: 0 | O53: 0 | P53: 0 | Q53: 0 | R53: 0 | S53: 0
B54: =B45 -> 0.93 | C54: Náklady na provoz vlaků - osobní | E54: =(E16-E35)*$B$45 -> 0 | F54: =(F16-F35)*$B$45 -> 0 | G54: 0 | H54: 0 | I54: 0 | J54: 0 | K54: 0 | L54: 0 | M54: 0 | N54: 0 | O54: 0 | P54: 0 | Q54: 0 | R54: 0 | S54: 0
B55: =B46 -> 0.93 | C55: Náklady na provoz vlaků - nákladní | E55: =(E17-E36)*$B$46 -> 0 | F55: =(F17-F36)*$B$46 -> 0 | G55: 0 | H55: 0 | I55: 0 | J55: 0 | K55: 0 | L55: 0 | M55: 0 | N55: 0 | O55: 0 | P55: 0 | Q55: 0 | R55: 0 | S55: 0
C56: Přírůstkové celkové provozní náklady | E56: =SUM(E51:E55) -> 0 | F56: 0 | G56: 0 | H56: 0 | I56: 0 | J56: 0 | K56: 0 | L56: 0 | M56: 0 | N56: 0 | O56: 0 | P56: 0 | Q56: 0 | R56: 0 | S56: 0
C59: Scénář s projektem (CZK) | D59: =D9 -> 0
C60: Scénář bez projektu (CZK) | D60: =D28 -> 0
C61: Přírůstkové cash-flow (CZK) | D61: =D47 -> 0
B64: 3.4. | C64: Náklady na provoz vlaků
C65: CÚ | D65: ='0 Úvod'!D19 -> 2016
C66: Měrné ohodnocení | D66: Kč/vlhod
B67: PROJEKT | C67: osobní příměstská doprava
C68: osobní dálková doprava
C69: nákladní regionální doprava
C70: nákladní dálková doprava
B71: BEZ PROJ. | C71: osobní příměstská doprava
C72: osobní dálková doprava
C73: nákladní regionální doprava
C74: nákladní dálková doprava
C76: Pozn. Měrné ohodnocení - konkrétní hodnoty uvede zpracovatel.
B78: 3.5. | C78: Celkové vlakohodiny | E78: =E40 -> 2016 | F78: =E78+1 -> 2017 | G78: 2018 | H78: 2019 | I78: 2020 | J78: 2021 | K78: 2022 | L78: 2023 | M78: 2024 | N78: 2025 | O78: 2026 | P78: 2027 | Q78: 2028 | R78: 2029 | S78: 2030
B79: a | C79: Scénář s projektem | D79: Celkem
C80: osobní příměstská doprava | D80: =SUM(E80:S80,E88:S88) -> 0
C81: osobní dálková doprava | D81: =SUM(E81:S81,E89:S89) -> 0
C82: nákladní regionální doprava | D82: 0
C83: nákladní dálková doprava | D83: 0
C84: Celkem | D84: 0 | E84: =SUM(E80:E83) -> 0 | F84: 0 | G84: 0 | H84: 0 | I84: 0 | J84: 0 | K84: 0 | L84: 0 | M84: 0 | N84: 0 | O84: 0 | P84: 0 | Q84: 0 | R84: 0 | S84: 0
B86: =B78 -> 3.5. | C86: =C78 -> Celkové vlakohodiny | E86: =S78+1 -> 2031 | F86: =E86+1 -> 2032 | G86: 2033 | H86: 2034 | I86: 2035 | J86: 2036 | K86: 2037 | L86: 2038 | M86: 2039 | N86: 2040 | O86: 2041 | P86: 2042 | Q86: 2043 | R86: 2044 | S86: 2045
B87: b | C87: Scénář s projektem
C88: =C80 -> osobní příměstská doprava
C89: =C81 -> osobní dálková doprava
C90: =C82 -> nákladní regionální doprava
C91: =C83 -> nákladní dálková doprava
C92: =C84 -> Celkem | E92: =SUM(E88:E91) -> 0 | F92: 0 | G92: 0 | H92: 0 | I92: 0 | J92: 0 | K92: 0 | L92: 0 | M92: 0 | N92: 0 | O92: 0 | P92: 0 | Q92: 0 | R92: 0 | S92: 0
B95: 3.6. | C95: =C78 -> Celkové vlakohodiny | E95: =E78 -> 2016 | F95: =E95+1 -> 2017 | G95: 2018 | H95: 2019 | I95: 2020 | J95: 2021 | K95: 2022 | L95: 2023 | M95: 2024 | N95: 2025 | O95: 2026 | P95: 2027 | Q95: 2028 | R95: 2029 | S95: 2030
B96: a | C96: Scénář bez projektu | D96: Celkem
C97: osobní příměstská doprava | D97: =SUM(E97:S97,E105:S105) -> 0
C98: osobní dálková doprava | D98: =SUM(E98:S98,E106:S106) -> 0
C99: nákladní regionální doprava | D99: 0
C100: nákladní dálková doprava | D100: 0
C101: Celkem | D101: 0 | E101: =SUM(E97:E100) -> 0 | F101: 0 | G101: 0 | H101: 0 | I101: 0 | J101: 0 | K101: 0 | L101: 0 | M101: 0 | N101: 0 | O101: 0 | P101: 0 | Q101: 0 | R101: 0 | S101: 0
B103: =B95 -> 3.6. | C103: =C95 -> Celkové vlakohodiny | E103: =S95+1 -> 2031 | F103: =E103+1 -> 2032 | G103: 2033 | H103: 2034 | I103: 2035 | J103: 2036 | K103: 2037 | L103: 2038 | M103: 2039 | N103: 2040 | O103: 2041 | P103: 2042 | Q103: 2043 | R103: 2044 | S103: 2045
B104: b | C104: Scénář bez projektu | E104: =S96+1 -> 1
C105: =C97 -> osobní příměstská doprava
C106: =C98 -> osobní dálková doprava
C107: =C99 -> nákladní regionální doprava
C108: =C100 -> nákladní dálková doprava
C109: =C101 -> Celkem | E109: =SUM(E105:E108) -> 0 | F109: 0 | G109: 0 | H109: 0 | I109: 0 | J109: 0 | K109: 0 | L109: 0 | M109: 0 | N109: 0 | O109: 0 | P109: 0 | Q109: 0 | R109: 0 | S109: 0
B111: 3.7. | C111: Náklady na řízení provozu | D111: Celk. náklady | E111: Hrubá mzda
C112: CÚ | D112: 2012 | E112: 2012
C113: Měrné ohodnocení | D113: CZK/rok | E113: CZK/rok
B114: 13167 | C114: Dozorčí provozu | D114: 700935 | E114: 515444
B115: 31606 | C115: Výpravčí | D115: 469759 | E115: 343235
B116: 31608 | C116: Dozorčí provozu - vedoucí směny | D116: 537552 | E116: 394011
B117: 41333 | C117: Operátor železniční dopravy | D117: 335996 | E117: 243243
B118: 83135 | C118: Signalista | D118: 371990 | E118: 270199
B119: 83137 | C119: Výhybkář | D119: 308844 | E119: 222345
B120: 83141 | C120: Staniční dozorce | D120: 352233 | E120: 254766
B121: 83142 | C121: Dozorce výhybek | D121: 328384 | E121: 237467
B122: 83143 | C122: Závorář | D122: 288974 | E122: 207450
B123: 83144 | C123: Závorář s prodejem jízdenek | D123: 312352 | E123: 225554
B124: 83145 | C124: Hradlář - hláskař | D124: 305523 | E124: 220391
B125: 83146 | C125: Hradlář - hláskař s prodejem jízdenek | D125: 300697 | E125: 216798
B126: 93398 | C126: Dělník v dopravě - staniční dělník | D126: 226581 | E126: 162461
B128: 3.8. | C128: Růst nákladů na řízení provozu | E128: =E40 -> 2016 | F128: =F40 -> 2017 | G128: 2018 | H128: 2019 | I128: 2020 | J128: 2021 | K128: 2022 | L128: 2023 | M128: 2024 | N128: 2025 | O128: 2026 | P128: 2027 | Q128: 2028 | R128: 2029 | S128: 2030
B129: a | D129: Elasticita
C130: Růst reálné mzdy v dopravě | D130: 1 | E130: 0 | F130: =$D$130*HLOOKUP(F$128,'0 Úvod'!$D$77:$N$79,2,TRUE) -> 0.025 | G130: =$D$130*HLOOKUP(G$128,'0 Úvod'!$D$77:$N$79,2,TRUE) -> 0.03 | H130: =$D$130*HLOOKUP(H$128,'0 Úvod'!$D$77:$N$79,2,TRUE) -> 0.03 | I130: =$D$130*HLOOKUP(I$128,'0 Úvod'!$D$77:$N$79,2,TRUE) -> 0.025 | J130: =$D$130*HLOOKUP(J$128,'0 Úvod'!$D$77:$N$79,2,TRUE) -> 0.025 | K130: =$D$130*HLOOKUP(K$128,'0 Úvod'!$D$77:$N$79,2,TRUE) -> 0.025 | L130: =$D$130*HLOOKUP(L$128,'0 Úvod'!$D$77:$N$79,2,TRUE) -> 0.025 | M130: =$D$130*HLOOKUP(M$128,'0 Úvod'!$D$77:$N$79,2,TRUE) -> 0.025 | N130: =$D$130*HLOOKUP(N$128,'0 Úvod'!$D$77:$N$79,2,TRUE) -> 0.025 | O130: =$D$130*HLOOKUP(O$128,'0 Úvod'!$D$77:$N$79,2,TRUE) -> 0.025 | P130: =$D$130*HLOOKUP(P$128,'0 Úvod'!$D$77:$N$79,2,TRUE) -> 0.025 | Q130: =$D$130*HLOOKUP(Q$128,'0 Úvod'!$D$77:$N$79,2,TRUE) -> 0.025 | R130: =$D$130*HLOOKUP(R$128,'0 Úvod'!$D$77:$N$79,2,TRUE) -> 0.025 | S130: =$D$130*HLOOKUP(S$128,'0 Úvod'!$D$77:$N$79,2,TRUE) -> 0.02
B131: =B114 -> 13167 | C131: Dozorčí provozu | E131: =D114*IF('0 Úvod'!$D$19>HLOOKUP('0 Úvod'!$D$19,'0 Úvod'!$J$49:$N$51,1,TRUE),'0 Úvod'!$N$51*(1+0.02)^('0 Úvod'!$D$19-'0 Úvod'!$N$49),HLOOKUP('0 Úvod'!$D$19,'0 Úvod'!$J$49:$N$51,3,TRUE))*IF(E$128>HLOOKUP(E$128,'0 Úvod'!$D$77:$N$79,1,TRUE),HLOOKUP(E$128,'0 Úvod'!$D$77:$N$79,3,TRUE)*(1+HLOOKUP(E$128,'0 Úvod'!$D$77:$N$79,2,TRUE)*$D$130)^(E$128-HLOOKUP(E$128,'0 Úvod'!$D$77:$N$79,1,TRUE)),HLOOKUP(E$128,'0 Úvod'!$D$77:$N$79,3,TRUE)) -> 768267.5232 | F131: =E131*(1+F$130) -> 787474.2113 | G131: =F131*(1+G$130) -> 811098.4377 | H131: 835431.3908 | I131: 856317.1756 | J131: 877725.1049 | K131: 899668.2326 | L131: 922159.9384 | M131: 945213.9368 | N131: 968844.2853 | O131: 993065.3924 | P131: 1017892.027 | Q131: 1043339.328 | R131: 1069422.811 | S131: 1090811.267
B132: 31606 | C132: Výpravčí | E132: =D115*IF('0 Úvod'!$D$19>HLOOKUP('0 Úvod'!$D$19,'0 Úvod'!$J$49:$N$51,1,TRUE),'0 Úvod'!$N$51*(1+0.02)^('0 Úvod'!$D$19-'0 Úvod'!$N$49),HLOOKUP('0 Úvod'!$D$19,'0 Úvod'!$J$49:$N$51,3,TRUE))*IF(E$128>HLOOKUP(E$128,'0 Úvod'!$D$77:$N$79,1,TRUE),HLOOKUP(E$128,'0 Úvod'!$D$77:$N$79,3,TRUE)*(1+HLOOKUP(E$128,'0 Úvod'!$D$77:$N$79,2,TRUE)*$D$130)^(E$128-HLOOKUP(E$128,'0 Úvod'!$D$77:$N$79,1,TRUE)),HLOOKUP(E$128,'0 Úvod'!$D$77:$N$79,3,TRUE)) -> 514884.5235 | F132: 527756.6365 | G132: =F132*(1+G$130) -> 543589.3356 | H132: 559897.0157 | I132: 573894.4411 | J132: 588241.8021 | K132: 602947.8472 | L132: 618021.5434 | M132: 633472.0819 | N132: 649308.884 | O132: 665541.6061 | P132: 682180.1462 | Q132: 699234.6499 | R132: 716715.5161 | S132: 731049.8265
B133: 31608 | C133: Dozorčí provozu - vedoucí směny | E133: =D116*IF('0 Úvod'!$D$19>HLOOKUP('0 Úvod'!$D$19,'0 Úvod'!$J$49:$N$51,1,TRUE),'0 Úvod'!$N$51*(1+0.02)^('0 Úvod'!$D$19-'0 Úvod'!$N$49),HLOOKUP('0 Úvod'!$D$19,'0 Úvod'!$J$49:$N$51,3,TRUE))*IF(E$128>HLOOKUP(E$128,'0 Úvod'!$D$77:$N$79,1,TRUE),HLOOKUP(E$128,'0 Úvod'!$D$77:$N$79,3,TRUE)*(1+HLOOKUP(E$128,'0 Úvod'!$D$77:$N$79,2,TRUE)*$D$130)^(E$128-HLOOKUP(E$128,'0 Úvod'!$D$77:$N$79,1,TRUE)),HLOOKUP(E$128,'0 Úvod'!$D$77:$N$79,3,TRUE)) -> 589189.7874 | F133: 603919.5321 | G133: =F133*(1+G$130) -> 622037.1181 | H133: 640698.2316 | I133: 656715.6874 | J133: 673133.5796 | K133: 689961.9191 | L133: 707210.9671 | M133: 724891.2412 | N133: 743013.5223 | O133: 761588.8603 | P133: 780628.5818 | Q133: 800144.2964 | R133: 820147.9038 | S133: 836550.8619
B134: 41333 | C134: Operátor železniční dopravy | E134: =D117*IF('0 Úvod'!$D$19>HLOOKUP('0 Úvod'!$D$19,'0 Úvod'!$J$49:$N$51,1,TRUE),'0 Úvod'!$N$51*(1+0.02)^('0 Úvod'!$D$19-'0 Úvod'!$N$49),HLOOKUP('0 Úvod'!$D$19,'0 Úvod'!$J$49:$N$51,3,TRUE))*IF(E$128>HLOOKUP(E$128,'0 Úvod'!$D$77:$N$79,1,TRUE),HLOOKUP(E$128,'0 Úvod'!$D$77:$N$79,3,TRUE)*(1+HLOOKUP(E$128,'0 Úvod'!$D$77:$N$79,2,TRUE)*$D$130)^(E$128-HLOOKUP(E$128,'0 Úvod'!$D$77:$N$79,1,TRUE)),HLOOKUP(E$128,'0 Úvod'!$D$77:$N$79,3,TRUE)) -> 368272.1147 | F134: 377478.9176 | G134: =F134*(1+G$130) -> 388803.2851 | H134: 400467.3837 | I134: 410479.0683 | J134: 420741.045 | K134: 431259.5711 | L134: 442041.0604 | M134: 453092.0869 | N134: 464419.3891 | O134: 476029.8738 | P134: 487930.6206 | Q134: 500128.8861 | R134: 512632.1083 | S134: 522884.7505
B135: 83135 | C135: Signalista | E135: =D118*IF('0 Úvod'!$D$19>HLOOKUP('0 Úvod'!$D$19,'0 Úvod'!$J$49:$N$51,1,TRUE),'0 Úvod'!$N$51*(1+0.02)^('0 Úvod'!$D$19-'0 Úvod'!$N$49),HLOOKUP('0 Úvod'!$D$19,'0 Úvod'!$J$49:$N$51,3,TRUE))*IF(E$128>HLOOKUP(E$128,'0 Úvod'!$D$77:$N$79,1,TRUE),HLOOKUP(E$128,'0 Úvod'!$D$77:$N$79,3,TRUE)*(1+HLOOKUP(E$128,'0 Úvod'!$D$77:$N$79,2,TRUE)*$D$130)^(E$128-HLOOKUP(E$128,'0 Úvod'!$D$77:$N$79,1,TRUE)),HLOOKUP(E$128,'0 Úvod'!$D$77:$N$79,3,TRUE)) -> 407723.7347 | F135: 417916.828 | G135: =F135*(1+G$130) -> 430454.3329 | H135: 443367.9629 | I135: 454452.1619 | J135: 465813.466 | K135: 477458.8026 | L135: 489395.2727 | M135: 501630.1545 | N135: 514170.9084 | O135: 527025.1811 | P135: 540200.8106 | Q135: 553705.8309 | R135: 567548.4767 | S135: 578899.4462
B136: 83137 | C136: Výhybkář | E136: =D119*IF('0 Úvod'!$D$19>HLOOKUP('0 Úvod'!$D$19,'0 Úvod'!$J$49:$N$51,1,TRUE),'0 Úvod'!$N$51*(1+0.02)^('0 Úvod'!$D$19-'0 Úvod'!$N$49),HLOOKUP('0 Úvod'!$D$19,'0 Úvod'!$J$49:$N$51,3,TRUE))*IF(E$128>HLOOKUP(E$128,'0 Úvod'!$D$77:$N$79,1,TRUE),HLOOKUP(E$128,'0 Úvod'!$D$77:$N$79,3,TRUE)*(1+HLOOKUP(E$128,'0 Úvod'!$D$77:$N$79,2,TRUE)*$D$130)^(E$128-HLOOKUP(E$128,'0 Úvod'!$D$77:$N$79,1,TRUE)),HLOOKUP(E$128,'0 Úvod'!$D$77:$N$79,3,TRUE)) -> 338511.8662 | F136: 346974.6629 | G136: =F136*(1+G$130) -> 357383.9028 | H136: 368105.4198 | I136: 377308.0553 | J136: 386740.7567 | K136: 396409.2756 | L136: 406319.5075 | M136: 416477.4952 | N136: 426889.4326 | O136: 437561.6684 | P136: 448500.7101 | Q136: 459713.2279 | R136: 471206.0586 | S136: 480630.1797
B137: 83141 | C137: Staniční dozorce | E137: =D120*IF('0 Úvod'!$D$19>HLOOKUP('0 Úvod'!$D$19,'0 Úvod'!$J$49:$N$51,1,TRUE),'0 Úvod'!$N$51*(1+0.02)^('0 Úvod'!$D$19-'0 Úvod'!$N$49),HLOOKUP('0 Úvod'!$D$19,'0 Úvod'!$J$49:$N$51,3,TRUE))*IF(E$128>HLOOKUP(E$128,'0 Úvod'!$D$77:$N$79,1,TRUE),HLOOKUP(E$128,'0 Úvod'!$D$77:$N$79,3,TRUE)*(1+HLOOKUP(E$128,'0 Úvod'!$D$77:$N$79,2,TRUE)*$D$130)^(E$128-HLOOKUP(E$128,'0 Úvod'!$D$77:$N$79,1,TRUE)),HLOOKUP(E$128,'0 Úvod'!$D$77:$N$79,3,TRUE)) -> 386068.8573 | F137: 395720.5788 | G137: =F137*(1+G$130) -> 407592.1961 | H137: 419819.962 | I137: 430315.4611 | J137: 441073.3476 | K137: 452100.1813 | L137: 463402.6858 | M137: 474987.7529 | N137: 486862.4468 | O137: 499034.0079 | P137: 511509.8581 | Q137: 524297.6046 | R137: 537405.0447 | S137: 548153.1456
B138: 83142 | C138: Dozorce výhybek | E138: =D121*IF('0 Úvod'!$D$19>HLOOKUP('0 Úvod'!$D$19,'0 Úvod'!$J$49:$N$51,1,TRUE),'0 Úvod'!$N$51*(1+0.02)^('0 Úvod'!$D$19-'0 Úvod'!$N$49),HLOOKUP('0 Úvod'!$D$19,'0 Úvod'!$J$49:$N$51,3,TRUE))*IF(E$128>HLOOKUP(E$128,'0 Úvod'!$D$77:$N$79,1,TRUE),HLOOKUP(E$128,'0 Úvod'!$D$77:$N$79,3,TRUE)*(1+HLOOKUP(E$128,'0 Úvod'!$D$77:$N$79,2,TRUE)*$D$130)^(E$128-HLOOKUP(E$128,'0 Úvod'!$D$77:$N$79,1,TRUE)),HLOOKUP(E$128,'0 Úvod'!$D$77:$N$79,3,TRUE)) -> 359928.8983 | F138: 368927.1208 | G138: =F138*(1+G$130) -> 379994.9344 | H138: 391394.7824 | I138: 401179.652 | J138: 411209.1433 | K138: 421489.3719 | L138: 432026.6062 | M138: 442827.2713 | N138: 453897.9531 | O138: 465245.4019 | P138: 476876.537 | Q138: 488798.4504 | R138: 501018.4117 | S138: 511038.7799
B139: 83143 | C139: Závorář | E139: =D122*IF('0 Úvod'!$D$19>HLOOKUP('0 Úvod'!$D$19,'0 Úvod'!$J$49:$N$51,1,TRUE),'0 Úvod'!$N$51*(1+0.02)^('0 Úvod'!$D$19-'0 Úvod'!$N$49),HLOOKUP('0 Úvod'!$D$19,'0 Úvod'!$J$49:$N$51,3,TRUE))*IF(E$128>HLOOKUP(E$128,'0 Úvod'!$D$77:$N$79,1,TRUE),HLOOKUP(E$128,'0 Úvod'!$D$77:$N$79,3,TRUE)*(1+HLOOKUP(E$128,'0 Úvod'!$D$77:$N$79,2,TRUE)*$D$130)^(E$128-HLOOKUP(E$128,'0 Úvod'!$D$77:$N$79,1,TRUE)),HLOOKUP(E$128,'0 Úvod'!$D$77:$N$79,3,TRUE)) -> 316733.134 | F139: 324651.4623 | G139: =F139*(1+G$130) -> 334391.0062 | H139: 344422.7364 | I139: 353033.3048 | J139: 361859.1374 | K139: 370905.6158 | L139: 380178.2562 | M139: 389682.7126 | N139: 399424.7805 | O139: 409410.4 | P139: 419645.66 | Q139: 430136.8015 | R139: 440890.2215 | S139: 449708.0259
B140: 83144 | C140: Závorář s prodejem jízdenek | E140: =D123*IF('0 Úvod'!$D$19>HLOOKUP('0 Úvod'!$D$19,'0 Úvod'!$J$49:$N$51,1,TRUE),'0 Úvod'!$N$51*(1+0.02)^('0 Úvod'!$D$19-'0 Úvod'!$N$49),HLOOKUP('0 Úvod'!$D$19,'0 Úvod'!$J$49:$N$51,3,TRUE))*IF(E$128>HLOOKUP(E$128,'0 Úvod'!$D$77:$N$79,1,TRUE),HLOOKUP(E$128,'0 Úvod'!$D$77:$N$79,3,TRUE)*(1+HLOOKUP(E$128,'0 Úvod'!$D$77:$N$79,2,TRUE)*$D$130)^(E$128-HLOOKUP(E$128,'0 Úvod'!$D$77:$N$79,1,TRUE)),HLOOKUP(E$128,'0 Úvod'!$D$77:$N$79,3,TRUE)) -> 342356.8482 | F140: 350915.7694 | G140: =F140*(1+G$130) -> 361443.2425 | H140: 372286.5398 | I140: 381593.7033 | J140: 391133.5459 | K140: 400911.8845 | L140: 410934.6816 | M140: 421208.0487 | N140: 431738.2499 | O140: 442531.7061 | P140: 453594.9988 | Q140: 464934.8738 | R140: 476558.2456 | S140: 486089.4105
B141: 83145 | C141: Hradlář - hláskař | E141: =D124*IF('0 Úvod'!$D$19>HLOOKUP('0 Úvod'!$D$19,'0 Úvod'!$J$49:$N$51,1,TRUE),'0 Úvod'!$N$51*(1+0.02)^('0 Úvod'!$D$19-'0 Úvod'!$N$49),HLOOKUP('0 Úvod'!$D$19,'0 Úvod'!$J$49:$N$51,3,TRUE))*IF(E$128>HLOOKUP(E$128,'0 Úvod'!$D$77:$N$79,1,TRUE),HLOOKUP(E$128,'0 Úvod'!$D$77:$N$79,3,TRUE)*(1+HLOOKUP(E$128,'0 Úvod'!$D$77:$N$79,2,TRUE)*$D$130)^(E$128-HLOOKUP(E$128,'0 Úvod'!$D$77:$N$79,1,TRUE)),HLOOKUP(E$128,'0 Úvod'!$D$77:$N$79,3,TRUE)) -> 334871.8476 | F141: 343243.6438 | G141: =F141*(1+G$130) -> 353540.9531 | H141: 364147.1817 | I141: 373250.8612 | J141: 382582.1328 | K141: 392146.6861 | L141: 401950.3532 | M141: 411999.1121 | N141: 422299.0899 | O141: 432856.5671 | P141: 443677.9813 | Q141: 454769.9308 | R141: 466139.1791 | S141: 475461.9627
B142: 83146 | C142: Hradlář - hláskař s prodejem jízdenek | E142: =D125*IF('0 Úvod'!$D$19>HLOOKUP('0 Úvod'!$D$19,'0 Úvod'!$J$49:$N$51,1,TRUE),'0 Úvod'!$N$51*(1+0.02)^('0 Úvod'!$D$19-'0 Úvod'!$N$49),HLOOKUP('0 Úvod'!$D$19,'0 Úvod'!$J$49:$N$51,3,TRUE))*IF(E$128>HLOOKUP(E$128,'0 Úvod'!$D$77:$N$79,1,TRUE),HLOOKUP(E$128,'0 Úvod'!$D$77:$N$79,3,TRUE)*(1+HLOOKUP(E$128,'0 Úvod'!$D$77:$N$79,2,TRUE)*$D$130)^(E$128-HLOOKUP(E$128,'0 Úvod'!$D$77:$N$79,1,TRUE)),HLOOKUP(E$128,'0 Úvod'!$D$77:$N$79,3,TRUE)) -> 329582.2572 | F142: 337821.8136 | G142: =F142*(1+G$130) -> 347956.468 | H142: 358395.1621 | I142: 367355.0411 | J142: 376538.9171 | K142: 385952.3901 | L142: 395601.1998 | M142: 405491.2298 | N142: 415628.5106 | O142: 426019.2233 | P142: 436669.7039 | Q142: 447586.4465 | R142: 458776.1077 | S142: 467951.6298
B143: 93398 | C143: Dělník v dopravě - staniční dělník | E143: =D126*IF('0 Úvod'!$D$19>HLOOKUP('0 Úvod'!$D$19,'0 Úvod'!$J$49:$N$51,1,TRUE),'0 Úvod'!$N$51*(1+0.02)^('0 Úvod'!$D$19-'0 Úvod'!$N$49),HLOOKUP('0 Úvod'!$D$19,'0 Úvod'!$J$49:$N$51,3,TRUE))*IF(E$128>HLOOKUP(E$128,'0 Úvod'!$D$77:$N$79,1,TRUE),HLOOKUP(E$128,'0 Úvod'!$D$77:$N$79,3,TRUE)*(1+HLOOKUP(E$128,'0 Úvod'!$D$77:$N$79,2,TRUE)*$D$130)^(E$128-HLOOKUP(E$128,'0 Úvod'!$D$77:$N$79,1,TRUE)),HLOOKUP(E$128,'0 Úvod'!$D$77:$N$79,3,TRUE)) -> 248346.5994 | F143: 254555.2644 | G143: =F143*(1+G$130) -> 262191.9224 | H143: 270057.68 | I143: 276809.122 | J143: 283729.3501 | K143: 290822.5838 | L143: 298093.1484 | M143: 305545.4771 | N143: 313184.1141 | O143: 321013.7169 | P143: 329039.0598 | Q143: 337265.0363 | R143: 345696.6623 | S143: 352610.5955
B145: =B128 -> 3.8. | C145: =C128 -> Růst nákladů na řízení provozu | E145: =E49 -> 2031 | F145: =F49 -> 2032 | G145: 2033 | H145: 2034 | I145: 2035 | J145: 2036 | K145: 2037 | L145: 2038 | M145: 2039 | N145: 2040 | O145: 2041 | P145: 2042 | Q145: 2043 | R145: 2044 | S145: 2045
B146: b | D146: Elasticita
C147: =C130 -> Růst reálné mzdy v dopravě | D147: =D130 -> 1 | E147: =$D$130*HLOOKUP(E$145,'0 Úvod'!$D$77:$N$79,2,TRUE) -> 0.02 | F147: =$D$130*HLOOKUP(F$145,'0 Úvod'!$D$77:$N$79,2,TRUE) -> 0.02 | G147: =$D$130*HLOOKUP(G$145,'0 Úvod'!$D$77:$N$79,2,TRUE) -> 0.02 | H147: =$D$130*HLOOKUP(H$145,'0 Úvod'!$D$77:$N$79,2,TRUE) -> 0.02 | I147: =$D$130*HLOOKUP(I$145,'0 Úvod'!$D$77:$N$79,2,TRUE) -> 0.02 | J147: =$D$130*HLOOKUP(J$145,'0 Úvod'!$D$77:$N$79,2,TRUE) -> 0.02 | K147: =$D$130*HLOOKUP(K$145,'0 Úvod'!$D$77:$N$79,2,TRUE) -> 0.02 | L147: =$D$130*HLOOKUP(L$145,'0 Úvod'!$D$77:$N$79,2,TRUE) -> 0.02 | M147: =$D$130*HLOOKUP(M$145,'0 Úvod'!$D$77:$N$79,2,TRUE) -> 0.02 | N147: =$D$130*HLOOKUP(N$145,'0 Úvod'!$D$77:$N$79,2,TRUE) -> 0.02 | O147: =$D$130*HLOOKUP(O$145,'0 Úvod'!$D$77:$N$79,2,TRUE) -> 0.02 | P147: =$D$130*HLOOKUP(P$145,'0 Úvod'!$D$77:$N$79,2,TRUE) -> 0.02 | Q147: =$D$130*HLOOKUP(Q$145,'0 Úvod'!$D$77:$N$79,2,TRUE) -> 0.02 | R147: =$D$130*HLOOKUP(R$145,'0 Úvod'!$D$77:$N$79,2,TRUE) -> 0.02 | S147: =$D$130*HLOOKUP(S$145,'0 Úvod'!$D$77:$N$79,2,TRUE) -> 0.02
B148: =B131 -> 13167 | C148: Dozorčí provozu | E148: =S131*(1+E$147) -> 1112627.493 | F148: =E148*(1+F$147) -> 1134880.042 | G148: =F148*(1+G$147) -> 1157577.643 | H148: 1180729.196 | I148: 1204343.78 | J148: 1228430.656 | K148: 1252999.269 | L148: 1278059.254 | M148: 1303620.439 | N148: 1329692.848 | O148: 1356286.705 | P148: 1383412.439 | Q148: 1411080.688 | R148: 1439302.302 | S148: 1468088.348
B149: 31606 | C149: Výpravčí | E149: =S132*(1+E$147) -> 745670.823 | F149: 760584.2395 | G149: =F149*(1+G$147) -> 775795.9242 | H149: 791311.8427 | I149: 807138.0796 | J149: 823280.8412 | K149: 839746.458 | L149: 856541.3872 | M149: 873672.2149 | N149: 891145.6592 | O149: 908968.5724 | P149: 927147.9438 | Q149: 945690.9027 | R149: 964604.7208 | S149: 983896.8152
B150: 31608 | C150: Dozorčí provozu - vedoucí směny | E150: 853281.8791 | F150: 870347.5167 | G150: =F150*(1+G$147) -> 887754.467 | H150: 905509.5564 | I150: 923619.7475 | J150: 942092.1424 | K150: 960933.9853 | L150: 980152.665 | M150: 999755.7183 | N150: 1019750.833 | O150: 1040145.849 | P150: 1060948.766 | Q150: 1082167.742 | R150: 1103811.096 | S150: 1125887.318
B151: 41333 | C151: Operátor železniční dopravy | E151: 533342.4455 | F151: 544009.2944 | G151: =F151*(1+G$147) -> 554889.4803 | H151: 565987.2699 | I151: 577307.0153 | J151: 588853.1556 | K151: 600630.2187 | L151: 612642.8231 | M151: 624895.6795 | N151: 637393.5931 | O151: 650141.465 | P151: 663144.2943 | Q151: 676407.1802 | R151: 689935.3238 | S151: 703734.0302
B152: 83135 | C152: Signalista | E152: 590477.4351 | F152: 602286.9838 | G152: =F152*(1+G$147) -> 614332.7235 | H152: 626619.378 | I152: 639151.7655 | J152: 651934.8008 | K152: 664973.4969 | L152: 678272.9668 | M152: 691838.4261 | N152: 705675.1947 | O152: 719788.6985 | P152: 734184.4725 | Q152: 748868.162 | R152: 763845.5252 | S152: 779122.4357
B153: 83137 | C153: Výhybkář | E153: 490242.7833 | F153: 500047.639 | G153: =F153*(1+G$147) -> 510048.5918 | H153: 520249.5636 | I153: 530654.5549 | J153: 541267.646 | K153: 552092.9989 | L153: 563134.8589 | M153: 574397.5561 | N153: 585885.5072 | O153: 597603.2173 | P153: 609555.2817 | Q153: 621746.3873 | R153: 634181.3151 | S153: 646864.9414
B154: 83141 | C154: Staniční dozorce | E154: 559116.2085 | F154: 570298.5327 | G154: =F154*(1+G$147) -> 581704.5033 | H154: 593338.5934 | I154: 605205.3653 | J154: 617309.4726 | K154: 629655.662 | L154: 642248.7753 | M154: 655093.7508 | N154: 668195.6258 | O154: 681559.5383 | P154: 695190.7291 | Q154: 709094.5437 | R154: 723276.4345 | S154: 737741.9632
B155: 83142 | C155: Dozorce výhybek | E155: 521259.5555 | F155: 531684.7466 | G155: =F155*(1+G$147) -> 542318.4416 | H155: 553164.8104 | I155: 564228.1066 | J155: 575512.6687 | K155: 587022.9221 | L155: 598763.3805 | M155: 610738.6482 | N155: 622953.4211 | O155: 635412.4895 | P155: 648120.7393 | Q155: 661083.1541 | R155: 674304.8172 | S155: 687790.9135
B156: 83143 | C156: Závorář | E156: 458702.1864 | F156: 467876.2302 | G156: =F156*(1+G$147) -> 477233.7548 | H156: 486778.4299 | I156: 496513.9985 | J156: 506444.2784 | K156: 516573.164 | L156: 526904.6273 | M156: 537442.7198 | N156: 548191.5742 | O156: 559155.4057 | P156: 570338.5138 | Q156: 581745.2841 | R156: 593380.1898 | S156: 605247.7936
B157: 83144 | C157: Závorář s prodejem jízdenek | E157: 495811.1987 | F157: 505727.4227 | G157: =F157*(1+G$147) -> 515841.9712 | H157: 526158.8106 | I157: 536681.9868 | J157: 547415.6265 | K157: 558363.9391 | L157: 569531.2178 | M157: 580921.8422 | N157: 592540.279 | O157: 604391.0846 | P157: 616478.9063 | Q157: 628808.4844 | R157: 641384.6541 | S157: 654212.3472
B158: 83145 | C158: Hradlář - hláskař | E158: 484971.2019 | F158: 494670.626 | G158: =F158*(1+G$147) -> 504564.0385 | H158: 514655.3193 | I158: 524948.4257 | J158: 535447.3942 | K158: 546156.3421 | L158: 557079.4689 | M158: 568221.0583 | N158: 579585.4794 | O158: 591177.189 | P158: 603000.7328 | Q158: 615060.7475 | R158: 627361.9624 | S158: 639909.2017
B159: 83146 | C159: Hradlář - hláskař s prodejem jízdenek | E159: 477310.6624 | F159: 486856.8757 | G159: =F159*(1+G$147) -> 496594.0132 | H159: 506525.8934 | I159: 516656.4113 | J159: 526989.5395 | K159: 537529.3303 | L159: 548279.9169 | M159: 559245.5153 | N159: 570430.4256 | O159: 581839.0341 | P159: 593475.8148 | Q159: 605345.3311 | R159: 617452.2377 | S159: 629801.2824
B160: 93398 | C160: Dělník v dopravě - staniční dělník | E160: 359662.8074 | F160: 366856.0636 | G160: =F160*(1+G$147) -> 374193.1848 | H160: 381677.0485 | I160: 389310.5895 | J160: 397096.8013 | K160: 405038.7373 | L160: 413139.5121 | M160: 421402.3023 | N160: 429830.3483 | O160: 438426.9553 | P160: 447195.4944 | Q160: 456139.4043 | R160: 465262.1924 | S160: 474567.4362
B163: 3.9. | C163: Počty zaměstnanců | E163: =E128 -> 2016 | F163: 2017 | G163: 2018 | H163: 2019 | I163: 2020 | J163: 2021 | K163: 2022 | L163: 2023 | M163: 2024 | N163: 2025 | O163: 2026 | P163: 2027 | Q163: 2028 | R163: 2029 | S163: 2030
B164: a | C164: Scénář s projektem
B165: =B148 -> 13167 | C165: Dozorčí provozu
B166: 31606 | C166: Výpravčí
B167: 31608 | C167: Dozorčí provozu - vedoucí směny
B168: 41333 | C168: Operátor železniční dopravy
B169: 83135 | C169: Signalista
B170: 83137 | C170: Výhybkář
B171: 83141 | C171: Staniční dozorce
B172: 83142 | C172: Dozorce výhybek
B173: 83143 | C173: Závorář
B174: 83144 | C174: Závorář s prodejem jízdenek
B175: 83145 | C175: Hradlář - hláskař
B176: 83146 | C176: Hradlář - hláskař s prodejem jízdenek
B177: 93398 | C177: Dělník v dopravě - staniční dělník
C178: Celkem | E178: =SUM(E165:E177) -> 0 | F178: 0 | G178: 0 | H178: 0 | I178: 0 | J178: 0 | K178: 0 | L178: 0 | M178: 0 | N178: 0 | O178: 0 | P178: 0 | Q178: 0 | R178: 0 | S178: 0
C179: Odstupné | E179: =SUMPRODUCT($E$114:$E$126*(E$131/$D$114)/4,E165:E177-F165:F177) -> 0 | F179: =SUMPRODUCT($E$114:$E$126*(F$131/$D$114)/4,F165:F177-G165:G177) -> 0 | G179: 0 | H179: 0 | I179: 0 | J179: 0 | K179: 0 | L179: 0 | M179: 0 | N179: 0 | O179: 0 | P179: 0 | Q179: 0 | R179: 0 | S179: =SUMPRODUCT($E$114:$E$126*(S$131/$D$114)/4,S165:S177-E183:E195) -> 0
B181: =B163 -> 3.9. | C181: =C163 -> Počty zaměstnanců | E181: =E145 -> 2031 | F181: 2032 | G181: 2033 | H181: 2034 | I181: 2035 | J181: 2036 | K181: 2037 | L181: 2038 | M181: 2039 | N181: 2040 | O181: 2041 | P181: 2042 | Q181: 2043 | R181: 2044 | S181: 2045
B182: b | C182: Scénář s projektem
B183: =B165 -> 13167 | C183: Dozorčí provozu
B184: 31606 | C184: Výpravčí
B185: 31608 | C185: Dozorčí provozu - vedoucí směny
B186: 41333 | C186: Operátor železniční dopravy
B187: 83135 | C187: Signalista
B188: 83137 | C188: Výhybkář
B189: 83141 | C189: Staniční dozorce
B190: 83142 | C190: Dozorce výhybek
B191: 83143 | C191: Závorář
B192: 83144 | C192: Závorář s prodejem jízdenek
B193: 83145 | C193: Hradlář - hláskař
B194: 83146 | C194: Hradlář - hláskař s prodejem jízdenek
B195: 93398 | C195: Dělník v dopravě - staniční dělník
C196: Celkem | E196: =SUM(E183:E195) -> 0 | F196: =SUM(F183:F195) -> 0 | G196: 0 | H196: 0 | I196: 0 | J196: 0 | K196: 0 | L196: 0 | M196: 0 | N196: 0 | O196: 0 | P196: 0 | Q196: 0 | R196: 0 | S196: 0
C197: Odstupné | E197: =SUMPRODUCT($E$114:$E$126*(E$148/$D$114)/4,E183:E195-F183:F195) -> 0 | F197: =SUMPRODUCT($E$114:$E$126*(F$148/$D$114)/4,F183:F195-G183:G195) -> 0 | G197: 0 | H197: 0 | I197: 0 | J197: 0 | K197: 0 | L197: 0 | M197: 0 | N197: 0 | O197: 0 | P197: 0 | Q197: 0 | R197: 0 | S197: 0
B199: 3.10. | C199: =C181 -> Počty zaměstnanců | E199: =E163 -> 2016 | F199: 2017 | G199: 2018 | H199: 2019 | I199: 2020 | J199: 2021 | K199: 2022 | L199: 2023 | M199: 2024 | N199: 2025 | O199: 2026 | P199: 2027 | Q199: 2028 | R199: 2029 | S199: 2030
B200: a | C200: Scénář bez projektu
B201: =B183 -> 13167 | C201: Dozorčí provozu
B202: 31606 | C202: Výpravčí
B203: 31608 | C203: Dozorčí provozu - vedoucí směny
B204: 41333 | C204: Operátor železniční dopravy
B205: 83135 | C205: Signalista
B206: 83137 | C206: Výhybkář
B207: 83141 | C207: Staniční dozorce
B208: 83142 | C208: Dozorce výhybek
B209: 83143 | C209: Závorář
B210: 83144 | C210: Závorář s prodejem jízdenek
B211: 83145 | C211: Hradlář - hláskař
B212: 83146 | C212: Hradlář - hláskař s prodejem jízdenek
B213: 93398 | C213: Dělník v dopravě - staniční dělník
C214: Celkem | E214: =SUM(E201:E213) -> 0 | F214: =SUM(F201:F213) -> 0 | G214: 0 | H214: 0 | I214: 0 | J214: 0 | K214: 0 | L214: 0 | M214: 0 | N214: 0 | O214: 0 | P214: 0 | Q214: 0 | R214: 0 | S214: 0
C215: Odstupné | E215: =SUMPRODUCT($E$114:$E$126*(E$131/$D$114)/4,E201:E213-F201:F213) -> 0 | F215: =SUMPRODUCT($E$114:$E$126*(F$131/$D$114)/4,F201:F213-G201:G213) -> 0 | G215: 0 | H215: 0 | I215: 0 | J215: 0 | K215: 0 | L215: 0 | M215: 0 | N215: 0 | O215: 0 | P215: 0 | Q215: 0 | R215: 0 | S215: =SUMPRODUCT($E$114:$E$126*(S$131/$D$114)/4,S201:S213-E219:E231) -> 0
B217: =B199 -> 3.10. | C217: =C181 -> Počty zaměstnanců | E217: =E181 -> 2031 | F217: 2032 | G217: 2033 | H217: 2034 | I217: 2035 | J217: 2036 | K217: 2037 | L217: 2038 | M217: 2039 | N217: 2040 | O217: 2041 | P217: 2042 | Q217: 2043 | R217: 2044 | S217: 2045
B218: b | C218: Scénář bez projektu | E218: 1 | F218: 2 | G218: 3 | H218: 4 | I218: 5 | J218: 6 | K218: 7 | L218: 8 | M218: 9 | N218: 10 | O218: 11 | P218: 12 | Q218: 13 | R218: 14 | S218: 15
B219: =B201 -> 13167 | C219: Dozorčí provozu
B220: 31606 | C220: Výpravčí
B221: 31608 | C221: Dozorčí provozu - vedoucí směny
B222: 41333 | C222: Operátor železniční dopravy
B223: 83135 | C223: Signalista
B224: 83137 | C224: Výhybkář
B225: 83141 | C225: Staniční dozorce
B226: 83142 | C226: Dozorce výhybek
... 10 more rows

Sheet 4 Úspory v silniční dopravě
B2: 4.1. | C2: Provozní náklady silniční dopravy - úspory (CZK) | E2: ='0 Úvod'!G19 -> 2016 | F2: =E2+1 -> 2017 | G2: 2018 | H2: 2019 | I2: 2020 | J2: 2021 | K2: 2022 | L2: 2023 | M2: 2024 | N2: 2025 | O2: 2026 | P2: 2027 | Q2: 2028 | R2: 2029 | S2: 2030
B3: a | D3: Celkem
B4: * | C4: Náklady na údržbu a provoz - osobní doprava | D4: =SUM(E4:S4,E14:S14) -> 0
B5: * | C5: Náklady na údržbu a provoz - nákladní doprava | D5: =SUM(E5:S5,E15:S15) -> 0
B6: ** | C6: Provozní náklady vozidel - IAD | D6: 0
B7: ** | C7: Provozní náklady vozidel - BUS | D7: 0
B8: ** | C8: Provozní náklady vozidel - LUV | D8: 0
B9: ** | C9: Provozní náklady vozidel - TUV | D9: 0
C10: Provozní náklady silniční dopravy - úspory | D10: 0 | E10: =SUM(E4:E9) -> 0 | F10: =SUM(F4:F9) -> 0 | G10: =SUM(G4:G9) -> 0 | H10: 0 | I10: 0 | J10: 0 | K10: 0 | L10: 0 | M10: 0 | N10: 0 | O10: 0 | P10: 0 | Q10: 0 | R10: 0 | S10: 0
B12: 4.1. | C12: Provozní náklady silniční dopravy - úspory (CZK) | E12: =S2+1 -> 2031 | F12: =E12+1 -> 2032 | G12: 2033 | H12: 2034 | I12: 2035 | J12: 2036 | K12: 2037 | L12: 2038 | M12: 2039 | N12: 2040 | O12: 2041 | P12: 2042 | Q12: 2043 | R12: 2044 | S12: 2045
B13: b
B14: * | C14: Náklady na údržbu a provoz - osobní doprava
B15: * | C15: Náklady na údržbu a provoz - nákladní doprava
B16: ** | C16: Provozní náklady vozidel - IAD
B17: ** | C17: Provozní náklady vozidel - BUS
B18: ** | C18: Provozní náklady vozidel - LUV
B19: ** | C19: Provozní náklady vozidel - TUV
C20: Provozní náklady silniční dopravy - úspory | E20: =SUM(E14:E19) -> 0 | F20: 0 | G20: 0 | H20: 0 | I20: 0 | J20: 0 | K20: 0 | L20: 0 | M20: 0 | N20: 0 | O20: 0 | P20: 0 | Q20: 0 | R20: 0 | S20: 0
B23: 4.2. | C23: Úspory z provozních nákladů silniční dopravy (CZK) | E23: =E2 -> 2016 | F23: =E23+1 -> 2017 | G23: 2018 | H23: 2019 | I23: 2020 | J23: 2021 | K23: 2022 | L23: 2023 | M23: 2024 | N23: 2025 | O23: 2026 | P23: 2027 | Q23: 2028 | R23: 2029 | S23: 2030
B24: a | D24: Celkem
B25: * | C25: Náklady na údržbu a provoz - osobní doprava | D25: =SUM(E25:S25,E35:S35) -> 0 | E25: =E4 -> 0 | F25: =F4 -> 0 | G25: 0 | H25: 0 | I25: 0 | J25: 0 | K25: 0 | L25: 0 | M25: 0 | N25: 0 | O25: 0 | P25: 0 | Q25: 0 | R25: 0 | S25: 0
B26: * | C26: Náklady na údržbu a provoz - nákladní doprava | D26: =SUM(E26:S26,E36:S36) -> 0 | E26: =E5 -> 0 | F26: =F5 -> 0 | G26: 0 | H26: 0 | I26: 0 | J26: 0 | K26: 0 | L26: 0 | M26: 0 | N26: 0 | O26: 0 | P26: 0 | Q26: 0 | R26: 0 | S26: 0
B27: ** | C27: Provozní náklady vozidel - IAD | D27: 0 | E27: =E6 -> 0 | F27: =F6 -> 0 | G27: 0 | H27: 0 | I27: 0 | J27: 0 | K27: 0 | L27: 0 | M27: 0 | N27: 0 | O27: 0 | P27: 0 | Q27: 0 | R27: 0 | S27: 0
B28: ** | C28: Provozní náklady vozidel - BUS | D28: 0 | E28: =E7 -> 0 | F28: =F7 -> 0 | G28: 0 | H28: 0 | I28: 0 | J28: 0 | K28: 0 | L28: 0 | M28: 0 | N28: 0 | O28: 0 | P28: 0 | Q28: 0 | R28: 0 | S28: 0
B29: ** | C29: Provozní náklady vozidel - LUV | D29: 0 | E29: =E8 -> 0 | F29: 0 | G29: 0 | H29: 0 | I29: 0 | J29: 0 | K29: 0 | L29: 0 | M29: 0 | N29: 0 | O29: 0 | P29: 0 | Q29: 0 | R29: 0 | S29: 0
B30: ** | C30: Provozní náklady vozidel - TUV | D30: 0 | E30: =E9 -> 0 | F30: 0 | G30: 0 | H30: 0 | I30: 0 | J30: 0 | K30: 0 | L30: 0 | M30: 0 | N30: 0 | O30: 0 | P30: 0 | Q30: 0 | R30: 0 | S30: 0
C31: Provozní náklady silniční dopravy - úspory | D31: 0 | E31: =SUM(E25:E30) -> 0 | F31: =SUM(F25:F30) -> 0 | G31: 0 | H31: 0 | I31: 0 | J31: 0 | K31: 0 | L31: 0 | M31: 0 | N31: 0 | O31: 0 | P31: 0 | Q31: 0 | R31: 0 | S31: 0
B33: 4.2. | C33: Úspory z provozních nákladů silniční dopravy (CZK) | E33: =S23+1 -> 2031 | F33: =E33+1 -> 2032 | G33: 2033 | H33: 2034 | I33: 2035 | J33: 2036 | K33: 2037 | L33: 2038 | M33: 2039 | N33: 2040 | O33: 2041 | P33: 2042 | Q33: 2043 | R33: 2044 | S33: 2045
B34: b
B35: * | C35: Náklady na údržbu a provoz - osobní doprava | E35: =E14 -> 0 | F35: =F14 -> 0 | G35: 0 | H35: 0 | I35: 0 | J35: 0 | K35: 0 | L35: 0 | M35: 0 | N35: 0 | O35: 0 | P35: 0 | Q35: 0 | R35: 0 | S35: 0
B36: * | C36: Náklady na údržbu a provoz - nákladní doprava | E36: =E15 -> 0 | F36: 0 | G36: 0 | H36: 0 | I36: 0 | J36: 0 | K36: 0 | L36: 0 | M36: 0 | N36: 0 | O36: 0 | P36: 0 | Q36: 0 | R36: 0 | S36: 0
B37: ** | C37: Provozní náklady vozidel - IAD | E37: =E16 -> 0 | F37: 0 | G37: 0 | H37: 0 | I37: 0 | J37: 0 | K37: 0 | L37: 0 | M37: 0 | N37: 0 | O37: 0 | P37: 0 | Q37: 0 | R37: 0 | S37: 0
B38: ** | C38: Provozní náklady vozidel - BUS | E38: =E17 -> 0 | F38: 0 | G38: 0 | H38: 0 | I38: 0 | J38: 0 | K38: 0 | L38: 0 | M38: 0 | N38: 0 | O38: 0 | P38: 0 | Q38: 0 | R38: 0 | S38: 0
B39: ** | C39: Provozní náklady vozidel - LUV | E39: =E18 -> 0 | F39: 0 | G39: 0 | H39: 0 | I39: 0 | J39: 0 | K39: 0 | L39: 0 | M39: 0 | N39: 0 | O39: 0 | P39: 0 | Q39: 0 | R39: 0 | S39: 0
B40: ** | C40: Provozní náklady vozidel - TUV | E40: =E19 -> 0 | F40: 0 | G40: 0 | H40: 0 | I40: 0 | J40: 0 | K40: 0 | L40: 0 | M40: 0 | N40: 0 | O40: 0 | P40: 0 | Q40: 0 | R40: 0 | S40: 0
C41: Provozní náklady silniční dopravy - úspory | E41: =SUM(E35:E40) -> 0 | F41: 0 | G41: 0 | H41: 0 | I41: 0 | J41: 0 | K41: 0 | L41: 0 | M41: 0 | N41: 0 | O41: 0 | P41: 0 | Q41: 0 | R41: 0 | S41: 0
C44: Úspory (CZK) | D44: =D31 -> 0
B46: Komentáře
B48: * | C48: Úspory z nákladů na údržbu a provoz silniční infrastruktury
B49: ** | C49: Úspory z nákladů na údržbu a provoz silničních vozidel
B52: 4.3. | C52: Údržba a opravy silniční infrastruktury | D52: CÚ | E52: Osobní [CZK/1000 oskm] | F52: Nákladní [CZK/ 1000 čisté tkm]
C53: Měrná hodnota | D53: 2012 | E53: 4.39 | F53: 143.77
C54: Měrná hodnota | D54: ='0 Úvod'!D19 -> 2016
B56: 4.4. | C56: Provoz vozidel | D56: CÚ | E56: IAD [CZK/vozkm] | F56: BUS [CZK/vozkm] | G56: Lehká užitková vozidla [CZK/vozkm] | H56: Těžká užitková vozidla [CZK/vozkm]
C57: Měrná hodnota | D57: 2012 | E57: 5.68 | F57: 19.31 | G57: 8.05 | H57: 25.14
C58: Měrná hodnota | D58: ='0 Úvod'!D19 -> 2016
C59: Zdroj: „Metodika hodnocení efektivnosti investic - železniční infrastruktura" MD ČR 2013
C61: Obsazenost | D61: osob/vozidlo
C62: IAD
C63: BUS
D64: č.tun/vozidlo
C65: LUV
C66: TUV
B68: 4.5. | C68: Celkové oskm | E68: =E2 -> 2016 | F68: =E68+1 -> 2017 | G68: 2018 | H68: 2019 | I68: 2020 | J68: 2021 | K68: 2022 | L68: 2023 | M68: 2024 | N68: 2025 | O68: 2026 | P68: 2027 | Q68: 2028 | R68: 2029 | S68: 2030
B69: a | D69: Celkem
C70: IAD | D70: =SUM(E70:S70,E76:S76) -> 0
C71: BUS | D71: =SUM(E71:S71,E77:S77) -> 0
C72: celkové oskm | D72: =SUM(E72:S72,E78:S78) -> 0 | E72: =SUM(E70:E71) -> 0 | F72: 0 | G72: 0 | H72: 0 | I72: 0 | J72: 0 | K72: 0 | L72: 0 | M72: 0 | N72: 0 | O72: 0 | P72: 0 | Q72: 0 | R72: 0 | S72: 0
B74: =B68 -> 4.5. | C74: =C68 -> Celkové oskm | E74: =S68+1 -> 2031 | F74: =E74+1 -> 2032 | G74: 2033 | H74: 2034 | I74: 2035 | J74: 2036 | K74: 2037 | L74: 2038 | M74: 2039 | N74: 2040 | O74: 2041 | P74: 2042 | Q74: 2043 | R74: 2044 | S74: 2045
B75: b
C76: =C70 -> IAD
C77: =C71 -> BUS
C78: =C72 -> celkové oskm | E78: =SUM(E76:E77) -> 0 | F78: 0 | G78: 0 | H78: 0 | I78: 0 | J78: 0 | K78: 0 | L78: 0 | M78: 0 | N78: 0 | O78: 0 | P78: 0 | Q78: 0 | R78: 0 | S78: 0
B81: 4.6. | C81: Total č.tkm | E81: =E68 -> 2016 | F81: =E81+1 -> 2017 | G81: 2018 | H81: 2019 | I81: 2020 | J81: 2021 | K81: 2022 | L81: 2023 | M81: 2024 | N81: 2025 | O81: 2026 | P81: 2027 | Q81: 2028 | R81: 2029 | S81: 2030
B82: a | D82: Celkem
C83: LUV | D83: =SUM(E83:S83,E89:S89) -> 0
C84: TUV | D84: =SUM(E84:S84,E90:S90) -> 0
C85: celkové č.tkm | D85: 0 | E85: =SUM(E83:E84) -> 0 | F85: 0 | G85: 0 | H85: 0 | I85: 0 | J85: 0 | K85: 0 | L85: 0 | M85: 0 | N85: 0 | O85: 0 | P85: 0 | Q85: 0 | R85: 0 | S85: 0
B87: =B81 -> 4.6. | C87: =C81 -> Total č.tkm | E87: =S81+1 -> 2031 | F87: =E87+1 -> 2032 | G87: 2033 | H87: 2034 | I87: 2035 | J87: 2036 | K87: 2037 | L87: 2038 | M87: 2039 | N87: 2040 | O87: 2041 | P87: 2042 | Q87: 2043 | R87: 2044 | S87: 2045
B88: b
C89: =C83 -> LUV
C90: =C84 -> TUV
C91: =C85 -> celkové č.tkm | E91: =SUM(E89:E90) -> 0 | F91: 0 | G91: 0 | H91: 0 | I91: 0 | J91: 0 | K91: 0 | L91: 0 | M91: 0 | N91: 0 | O91: 0 | P91: 0 | Q91: 0 | R91: 0 | S91: 0
B94: Komentáře
B96: Zpracovatel uvede konkrétní hodnoty výstupů z dopravního prognózování použité při výpočtu úspor silniční dopravy. Tabulky 4.5. a 4.6. je možné přizpůsobit konkrétnímu projektu.
B97: V tabulce 4.1. uvede zpracovatel konkrétní výpočet pomocí vzorců, s odkazem na tabulky výkonů (tabulka 4.5. a 4.6.) a měrného ohodnocení (tabulka 4.3. a 4.4.).

Sheet 5 Úspory z cestovních dob
B2: 5.1. | C2: Úspory z cestovních dob v železniční dopravě (CZK) | E2: ='0 Úvod'!G19 -> 2016 | F2: =E2+1 -> 2017 | G2: 2018 | H2: 2019 | I2: 2020 | J2: 2021 | K2: 2022 | L2: 2023 | M2: 2024 | N2: 2025 | O2: 2026 | P2: 2027 | Q2: 2028 | R2: 2029 | S2: 2030
B3: a | D3: Celkem
C4: Osobní - příměstská | D4: =SUM(E4:S4,E12:S12) -> 0
C5: Osobní - dálková | D5: =SUM(E5:S5,E13:S13) -> 0
C6: Nákladní - místní | D6: 0
C7: Nákladní - dálková | D7: 0
C8: Celkové úspory z cestovních dob v železniční dopravě | D8: 0 | E8: =SUM(E4:E7) -> 0 | F8: =SUM(F4:F7) -> 0 | G8: =SUM(G4:G7) -> 0 | H8: 0 | I8: 0 | J8: 0 | K8: 0 | L8: 0 | M8: 0 | N8: 0 | O8: 0 | P8: 0 | Q8: 0 | R8: 0 | S8: 0
B10: 5.1. | C10: Úspory z cestovních dob v železniční dopravě (CZK) | E10: =S2+1 -> 2031 | F10: =E10+1 -> 2032 | G10: 2033 | H10: 2034 | I10: 2035 | J10: 2036 | K10: 2037 | L10: 2038 | M10: 2039 | N10: 2040 | O10: 2041 | P10: 2042 | Q10: 2043 | R10: 2044 | S10: 2045
B11: b
C12: Osobní - příměstská
C13: Osobní - dálková
C14: Nákladní - místní
C15: Nákladní - dálková
C16: Celkové úspory z cestovních dob v železniční dopravě | E16: =SUM(E12:E15) -> 0 | F16: 0 | G16: 0 | H16: 0 | I16: 0 | J16: 0 | K16: 0 | L16: 0 | M16: 0 | N16: 0 | O16: 0 | P16: 0 | Q16: 0 | R16: 0 | S16: 0
B19: 5.2. | C19: Úspory z cestovních dob indukované dopravy (CZK) | E19: =E2 -> 2016 | F19: =E19+1 -> 2017 | G19: 2018 | H19: 2019 | I19: 2020 | J19: 2021 | K19: 2022 | L19: 2023 | M19: 2024 | N19: 2025 | O19: 2026 | P19: 2027 | Q19: 2028 | R19: 2029 | S19: 2030
B20: a | D20: Celkem
C21: Osobní - příměstská | D21: =SUM(E21:S21,E29:S29) -> 0
C22: Osobní - dálková | D22: =SUM(E22:S22,E30:S30) -> 0
C23: Nákladní - místní | D23: 0
C24: Nákladní - dálková | D24: 0
C25: Celkové úspory z cestovních dob indukované dopravy | D25: 0 | E25: =SUM(E21:E24) -> 0 | F25: 0 | G25: 0 | H25: 0 | I25: 0 | J25: 0 | K25: 0 | L25: 0 | M25: 0 | N25: 0 | O25: 0 | P25: 0 | Q25: 0 | R25: 0 | S25: 0
B27: 5.2. | C27: Úspory z cestovních dob indukované dopravy (CZK) | E27: =S19+1 -> 2031 | F27: =E27+1 -> 2032 | G27: 2033 | H27: 2034 | I27: 2035 | J27: 2036 | K27: 2037 | L27: 2038 | M27: 2039 | N27: 2040 | O27: 2041 | P27: 2042 | Q27: 2043 | R27: 2044 | S27: 2045
B28: b
C29: Osobní - příměstská
C30: Osobní - dálková
C31: Nákladní - místní
C32: Nákladní - dálková
C33: Celkové úspory z cestovních dob indukované dopravy | E33: =SUM(E29:E32) -> 0 | F33: 0 | G33: 0 | H33: 0 | I33: 0 | J33: 0 | K33: 0 | L33: 0 | M33: 0 | N33: 0 | O33: 0 | P33: 0 | Q33: 0 | R33: 0 | S33: 0
B36: 5.3. | C36: Úspory z cestovních dob převedené dopravy (CZK) | E36: =E19 -> 2016 | F36: =E36+1 -> 2017 | G36: 2018 | H36: 2019 | I36: 2020 | J36: 2021 | K36: 2022 | L36: 2023 | M36: 2024 | N36: 2025 | O36: 2026 | P36: 2027 | Q36: 2028 | R36: 2029 | S36: 2030
B37: a | D37: Celkem
C38: =C99 -> BUS | D38: =SUM(E38:S38,E46:S46) -> 0
C39: =C100 -> IAD | D39: =SUM(E39:S39,E47:S47) -> 0
C40: =C120 -> LUV | D40: 0
C41: =C121 -> TUV | D41: 0
C42: Celkové úspory z cestovních dob převedené dopravy | D42: 0 | E42: =SUM(E38:E41) -> 0 | F42: 0 | G42: 0 | H42: 0 | I42: 0 | J42: 0 | K42: 0 | L42: 0 | M42: 0 | N42: 0 | O42: 0 | P42: 0 | Q42: 0 | R42: 0 | S42: 0
B44: 5.3. | C44: Úspory z cestovních dob převedené dopravy (CZK) | E44: =S36+1 -> 2031 | F44: =E44+1 -> 2032 | G44: 2033 | H44: 2034 | I44: 2035 | J44: 2036 | K44: 2037 | L44: 2038 | M44: 2039 | N44: 2040 | O44: 2041 | P44: 2042 | Q44: 2043 | R44: 2044 | S44: 2045
B45: b
C46: =C38 -> BUS
C47: =C39 -> IAD
C48: =C40 -> LUV
C49: =C41 -> TUV
C50: Celkové úspory z cestovních dob převedené dopravy | E50: =SUM(E46:E49) -> 0 | F50: 0 | G50: 0 | H50: 0 | I50: 0 | J50: 0 | K50: 0 | L50: 0 | M50: 0 | N50: 0 | O50: 0 | P50: 0 | Q50: 0 | R50: 0 | S50: 0
B53: 5.4. | C53: Celkové úspory z cestovních dob (CZK) | E53: =E2 -> 2016 | F53: =E53+1 -> 2017 | G53: 2018 | H53: 2019 | I53: 2020 | J53: 2021 | K53: 2022 | L53: 2023 | M53: 2024 | N53: 2025 | O53: 2026 | P53: 2027 | Q53: 2028 | R53: 2029 | S53: 2030
B54: a | D54: Celkem
C55: Celkové úspory z cestovních dob v železniční dopravě | D55: =SUM(E55:S55,E62:S62) -> 0 | E55: =E8 -> 0 | F55: =F8 -> 0 | G55: 0 | H55: 0 | I55: 0 | J55: 0 | K55: 0 | L55: 0 | M55: 0 | N55: 0 | O55: 0 | P55: 0 | Q55: 0 | R55: 0 | S55: 0
C56: Celkové úspory z cestovních dob indukované dopravy | D56: =SUM(E56:S56,E63:S63) -> 0 | E56: =E25 -> 0 | F56: =F25 -> 0 | G56: 0 | H56: 0 | I56: 0 | J56: 0 | K56: 0 | L56: 0 | M56: 0 | N56: 0 | O56: 0 | P56: 0 | Q56: 0 | R56: 0 | S56: 0
C57: Celkové úspory z cestovních dob převedené dopravy | D57: 0 | E57: =E42 -> 0 | F57: =F42 -> 0 | G57: 0 | H57: 0 | I57: 0 | J57: 0 | K57: 0 | L57: 0 | M57: 0 | N57: 0 | O57: 0 | P57: 0 | Q57: 0 | R57: 0 | S57: 0
C58: Celkové úspory z cestovních dob | D58: 0 | E58: =SUM(E55:E57) -> 0 | F58: =SUM(F55:F57) -> 0 | G58: 0 | H58: 0 | I58: 0 | J58: 0 | K58: 0 | L58: 0 | M58: 0 | N58: 0 | O58: 0 | P58: 0 | Q58: 0 | R58: 0 | S58: 0
B60: 5.4. | C60: Celkové úspory z cestovních dob (CZK) | E60: =S53+1 -> 2031 | F60: =E60+1 -> 2032 | G60: 2033 | H60: 2034 | I60: 2035 | J60: 2036 | K60: 2037 | L60: 2038 | M60: 2039 | N60: 2040 | O60: 2041 | P60: 2042 | Q60: 2043 | R60: 2044 | S60: 2045
B61: b | D61: Celkem
C62: Celkové úspory z cestovních dob v železniční dopravě | E62: =E16 -> 0 | F62: =F16 -> 0 | G62: 0 | H62: 0 | I62: 0 | J62: 0 | K62: 0 | L62: 0 | M62: 0 | N62: 0 | O62: 0 | P62: 0 | Q62: 0 | R62: 0 | S62: 0
C63: Celkové úspory z cestovních dob indukované dopravy | E63: =E33 -> 0 | F63: =F33 -> 0 | G63: 0 | H63: 0 | I63: 0 | J63: 0 | K63: 0 | L63: 0 | M63: 0 | N63: 0 | O63: 0 | P63: 0 | Q63: 0 | R63: 0 | S63: 0
C64: Celkové úspory z cestovních dob převedené dopravy | E64: =E50 -> 0 | F64: =F50 -> 0 | G64: 0 | H64: 0 | I64: 0 | J64: 0 | K64: 0 | L64: 0 | M64: 0 | N64: 0 | O64: 0 | P64: 0 | Q64: 0 | R64: 0 | S64: 0
C65: Celkové úspory z cestovních dob | E65: =SUM(E62:E64) -> 0 | F65: 0 | G65: 0 | H65: 0 | I65: 0 | J65: 0 | K65: 0 | L65: 0 | M65: 0 | N65: 0 | O65: 0 | P65: 0 | Q65: 0 | R65: 0 | S65: 0
C68: Úspory z cestovních dob v železniční dopravě (CZK) | D68: =D8 -> 0
C69: Úspory z cestovních dob indukované dopravy (CZK) | D69: =D25 -> 0
C70: Úspory z cestovních dob převedené dopravy (CZK) | D70: =D42 -> 0
C71: Celkové úspory z cestovních dob (CZK) | D71: =D58 -> 0
E73: CÚ | K73: Poměr cest
B74: 5.5. | E74: 2002 | F74: 2002 | G74: 2012 | H74: 2012 | I74: ='0 Úvod'!D19 -> 2016
B75: Osobní doprava | E75: EUR/oshod | F75: CZK/oshod | G75: EUR/oshod | H75: CZK/oshod | I75: CZK/oshod | K75: krátké | L75: dlouhé | M75: BUS | N75: IAD
B76: Pracovní čas | D76: Bus | E76: 11.45 | F76: 352.8 | G76: 21.24 | H76: 524.1 | M76: 0.05
D77: Auto, vlak | E77: 14.27 | F77: 439.7 | G77: 26.47 | H77: 653.2 | K77: 0.05 | L77: 0.05 | N77: 0.05
B78: Nepracovní čas | C78: Krátká dojížďka | D78: Bus | E78: 4.13 | F78: 127.2 | G78: 7.66 | H78: 189.1 | M78: =95%/4 -> 0.2375
D79: Auto, vlak | E79: 5.75 | F79: 177.2 | G79: 10.67 | H79: 263.2 | K79: =95%/2 -> 0.475 | N79: =95%/4 -> 0.2375
C80: Dlouhá dojížďka | D80: Bus | E80: 5.31 | F80: 163.6 | G80: 9.85 | H80: 243.1 | M80: =95%/4 -> 0.2375
D81: Auto, vlak | E81: 7.38 | F81: 227.4 | G81: 13.69 | H81: 337.8 | L81: =95%/2 -> 0.475 | N81: =95%/4 -> 0.2375
C82: Ostatní - krátká vzdálenost | D82: Bus | E82: 3.46 | F82: 106.6 | G82: 6.42 | H82: 158.4 | M82: =95%/4 -> 0.2375
D83: Auto, vlak | E83: 4.82 | F83: 148.5 | G83: 8.94 | H83: 220.6 | K83: =95%/2 -> 0.475 | N83: =95%/4 -> 0.2375
C84: Ostatní - dlouhá vzdálenost | D84: Bus | E84: 4.45 | F84: 137.1 | G84: 8.26 | H84: 203.7 | M84: =95%/4 -> 0.2375
D85: Auto, vlak | E85: 6.18 | F85: 190.4 | G85: 11.46 | H85: 282.9 | L85: =95%/2 -> 0.475 | N85: =95%/4 -> 0.2375
B86: Nákladní doprava | E86: EUR/thod | F86: CZK/thod | G86: EUR/thod | H86: CZK/thod | I86: CZK/thod | K86: =SUMPRODUCT($I$76:$I$85,K76:K85) -> 0 | L86: =SUMPRODUCT($I$76:$I$85,L76:L85) -> 0 | M86: =SUMPRODUCT($I$76:$I$85,M76:M85) -> 0 | N86: =SUMPRODUCT($I$76:$I$85,N76:N85) -> 0
D87: Silnice | E87: 2.06 | F87: 63.47 | G87: 3.82 | H87: 94.3
D88: Železnice | E88: 0.84 | F88: 25.88 | G88: 1.56 | H88: 38.45
B89: Zdroj: „HEATCO - Developing Harmonized European Approaches for Transport Costing and Project Assessment“, 2004 – 2006
B90: Pozn. Zpracovatel může použít i jiné ohodnocení času. Hodnota času ale musí být v souladu s materiálem „Metodika hodnocení efektivnosti investic - železniční infrastruktura“ 2013
B93: 5.6. | C93: Celkové oshod | E93: =E2 -> 2016 | F93: =E93+1 -> 2017 | G93: 2018 | H93: 2019 | I93: 2020 | J93: 2021 | K93: 2022 | L93: 2023 | M93: 2024 | N93: 2025 | O93: 2026 | P93: 2027 | Q93: 2028 | R93: 2029 | S93: 2030
B94: a | D94: Celkem
B95: Želez. doprava | C95: Osobní - příměstská | D95: =SUM(E95:S95,E105:S105) -> 0
C96: Osobní - dálková | D96: =SUM(E96:S96,E106:S106) -> 0
B97: Indukov. doprava | C97: Osobní - příměstská | D97: 0
C98: Osobní - dálková | D98: 0
B99: Převed. doprava | C99: BUS | D99: 0
C100: IAD | D100: 0
C101: Celkové oshod | D101: 0 | E101: =SUM(E95:E100) -> 0 | F101: 0 | G101: 0 | H101: 0 | I101: 0 | J101: 0 | K101: 0 | L101: 0 | M101: 0 | N101: 0 | O101: 0 | P101: 0 | Q101: 0 | R101: 0 | S101: 0
B103: =B93 -> 5.6. | C103: =C93 -> Celkové oshod | E103: =S93+1 -> 2031 | F103: =E103+1 -> 2032 | G103: 2033 | H103: 2034 | I103: 2035 | J103: 2036 | K103: 2037 | L103: 2038 | M103: 2039 | N103: 2040 | O103: 2041 | P103: 2042 | Q103: 2043 | R103: 2044 | S103: 2045
B104: b
B105: =B95 -> Želez. doprava | C105: =C95 -> Osobní - příměstská
C106: =C96 -> Osobní - dálková
B107: =B97 -> Indukov. doprava | C107: Osobní - příměstská
C108: Osobní - dálková
B109: =B99 -> Převed. doprava | C109: BUS
C110: IAD
C111: Celkové oshod | E111: =SUM(E105:E110) -> 0 | F111: 0 | G111: 0 | H111: 0 | I111: 0 | J111: 0 | K111: 0 | L111: 0 | M111: 0 | N111: 0 | O111: 0 | P111: 0 | Q111: 0 | R111: 0 | S111: 0
B114: 5.7. | C114: Celkové thod | E114: =E2 -> 2016 | F114: =E114+1 -> 2017 | G114: 2018 | H114: 2019 | I114: 2020 | J114: 2021 | K114: 2022 | L114: 2023 | M114: 2024 | N114: 2025 | O114: 2026 | P114: 2027 | Q114: 2028 | R114: 2029 | S114: 2030
B115: a | D115: Celkem
B116: Želez. doprava | C116: Nákladní - regionální | D116: =SUM(E116:S116,E126:S126) -> 0
C117: Nákladní - dálková | D117: =SUM(E117:S117,E127:S127) -> 0
B118: Indukov. doprava | C118: Nákladní - regionální | D118: 0
C119: Nákladní - dálková | D119: 0
B120: Převed. doprava | C120: LUV | D120: 0
C121: TUV | D121: 0
C122: Celkové thod | D122: 0 | E122: =SUM(E116:E121) -> 0 | F122: 0 | G122: 0 | H122: 0 | I122: 0 | J122: 0 | K122: 0 | L122: 0 | M122: 0 | N122: 0 | O122: 0 | P122: 0 | Q122: 0 | R122: 0 | S122: 0
B124: =B114 -> 5.7. | C124: =C114 -> Celkové thod | E124: =S114+1 -> 2031 | F124: =E124+1 -> 2032 | G124: 2033 | H124: 2034 | I124: 2035 | J124: 2036 | K124: 2037 | L124: 2038 | M124: 2039 | N124: 2040 | O124: 2041 | P124: 2042 | Q124: 2043 | R124: 2044 | S124: 2045
B125: b
B126: =B116 -> Želez. doprava | C126: =C116 -> Nákladní - regionální
C127: =C117 -> Nákladní - dálková
B128: =B118 -> Indukov. doprava | C128: Nákladní - regionální
C129: Nákladní - dálková
B130: =B120 -> Převed. doprava | C130: LUV
C131: TUV
C132: Celkové thod | E132: =SUM(E126:E131) -> 0 | F132: 0 | G132: 0 | H132: 0 | I132: 0 | J132: 0 | K132: 0 | L132: 0 | M132: 0 | N132: 0 | O132: 0 | P132: 0 | Q132: 0 | R132: 0 | S132: 0
B135: 5.8. | C135: Změna měrných hodnot času | E135: =E2 -> 2016 | F135: =E135+1 -> 2017 | G135: 2018 | H135: 2019 | I135: 2020 | J135: 2021 | K135: 2022 | L135: 2023 | M135: 2024 | N135: 2025 | O135: 2026 | P135: 2027 | Q135: 2028 | R135: 2029 | S135: 2030
B136: a | D136: Elasticita
C137: Hodnota růstu HDP na hlavu (resp. prognóza) | D137: 0.7 | E137: 0 | F137: =$D$137*IF(HLOOKUP(F$135,'0 Úvod'!$K$65:$N$66,1,TRUE)=F$135,HLOOKUP(F$135,'0 Úvod'!$K$65:$N$66,2,TRUE),HLOOKUP(F$135,'0 Úvod'!$D$68:$J$69,2,TRUE)) -> 0.0203 | G137: =$D$137*IF(HLOOKUP(G$135,'0 Úvod'!$K$65:$N$66,1,TRUE)=G$135,HLOOKUP(G$135,'0 Úvod'!$K$65:$N$66,2,TRUE),HLOOKUP(G$135,'0 Úvod'!$D$68:$J$69,2,TRUE)) -> 0.021 | H137: =$D$137*IF(HLOOKUP(H$135,'0 Úvod'!$K$65:$N$66,1,TRUE)=H$135,HLOOKUP(H$135,'0 Úvod'!$K$65:$N$66,2,TRUE),HLOOKUP(H$135,'0 Úvod'!$D$68:$J$69,2,TRUE)) -> 0.021 | I137: =$D$137*IF(HLOOKUP(I$135,'0 Úvod'!$K$65:$N$66,1,TRUE)=I$135,HLOOKUP(I$135,'0 Úvod'!$K$65:$N$66,2,TRUE),HLOOKUP(I$135,'0 Úvod'!$D$68:$J$69,2,TRUE)) -> 0.014 | J137: =$D$137*IF(HLOOKUP(J$135,'0 Úvod'!$K$65:$N$66,1,TRUE)=J$135,HLOOKUP(J$135,'0 Úvod'!$K$65:$N$66,2,TRUE),HLOOKUP(J$135,'0 Úvod'!$D$68:$J$69,2,TRUE)) -> 0.014 | K137: =$D$137*IF(HLOOKUP(K$135,'0 Úvod'!$K$65:$N$66,1,TRUE)=K$135,HLOOKUP(K$135,'0 Úvod'!$K$65:$N$66,2,TRUE),HLOOKUP(K$135,'0 Úvod'!$D$68:$J$69,2,TRUE)) -> 0.014 | L137: =$D$137*IF(HLOOKUP(L$135,'0 Úvod'!$K$65:$N$66,1,TRUE)=L$135,HLOOKUP(L$135,'0 Úvod'!$K$65:$N$66,2,TRUE),HLOOKUP(L$135,'0 Úvod'!$D$68:$J$69,2,TRUE)) -> 0.014 | M137: =$D$137*IF(HLOOKUP(M$135,'0 Úvod'!$K$65:$N$66,1,TRUE)=M$135,HLOOKUP(M$135,'0 Úvod'!$K$65:$N$66,2,TRUE),HLOOKUP(M$135,'0 Úvod'!$D$68:$J$69,2,TRUE)) -> 0.014 | N137: =$D$137*IF(HLOOKUP(N$135,'0 Úvod'!$K$65:$N$66,1,TRUE)=N$135,HLOOKUP(N$135,'0 Úvod'!$K$65:$N$66,2,TRUE),HLOOKUP(N$135,'0 Úvod'!$D$68:$J$69,2,TRUE)) -> 0.014 | O137: =$D$137*IF(HLOOKUP(O$135,'0 Úvod'!$K$65:$N$66,1,TRUE)=O$135,HLOOKUP(O$135,'0 Úvod'!$K$65:$N$66,2,TRUE),HLOOKUP(O$135,'0 Úvod'!$D$68:$J$69,2,TRUE)) -> 0.014 | P137: =$D$137*IF(HLOOKUP(P$135,'0 Úvod'!$K$65:$N$66,1,TRUE)=P$135,HLOOKUP(P$135,'0 Úvod'!$K$65:$N$66,2,TRUE),HLOOKUP(P$135,'0 Úvod'!$D$68:$J$69,2,TRUE)) -> 0.014 | Q137: =$D$137*IF(HLOOKUP(Q$135,'0 Úvod'!$K$65:$N$66,1,TRUE)=Q$135,HLOOKUP(Q$135,'0 Úvod'!$K$65:$N$66,2,TRUE),HLOOKUP(Q$135,'0 Úvod'!$D$68:$J$69,2,TRUE)) -> 0.014 | R137: =$D$137*IF(HLOOKUP(R$135,'0 Úvod'!$K$65:$N$66,1,TRUE)=R$135,HLOOKUP(R$135,'0 Úvod'!$K$65:$N$66,2,TRUE),HLOOKUP(R$135,'0 Úvod'!$D$68:$J$69,2,TRUE)) -> 0.014 | S137: =$D$137*IF(HLOOKUP(S$135,'0 Úvod'!$K$65:$N$66,1,TRUE)=S$135,HLOOKUP(S$135,'0 Úvod'!$K$65:$N$66,2,TRUE),HLOOKUP(S$135,'0 Úvod'!$D$68:$J$69,2,TRUE)) -> 0.007
C138: Výsledný růstový koeficient hodnoty času | E138: 1 | F138: =E138*(1+F137) -> 1.0203 | G138: =F138*(1+G137) -> 1.0417263 | H138: 1.063602552 | I138: 1.078492988 | J138: 1.09359189 | K138: 1.108902176 | L138: 1.124426807 | M138: 1.140168782 | N138: 1.156131145 | O138: 1.172316981 | P138: 1.188729419 | Q138: 1.205371631 | R138: 1.222246833 | S138: 1.230802561
B140: =B135 -> 5.8. | C140: =C135 -> Změna měrných hodnot času | E140: =S135+1 -> 2031 | F140: =E140+1 -> 2032 | G140: 2033 | H140: 2034 | I140: 2035 | J140: 2036 | K140: 2037 | L140: 2038 | M140: 2039 | N140: 2040 | O140: 2041 | P140: 2042 | Q140: 2043 | R140: 2044 | S140: 2045
B141: b | D141: Elasticita
C142: =C137 -> Hodnota růstu HDP na hlavu (resp. prognóza) | D142: =D137 -> 0.7 | E142: =$D$142*IF(HLOOKUP(E$140,'0 Úvod'!$K$65:$N$66,1,TRUE)=E$140,HLOOKUP(E$140,'0 Úvod'!$K$65:$N$66,2,TRUE),HLOOKUP(E$140,'0 Úvod'!$D$68:$J$69,2,TRUE)) -> 0.007 | F142: =$D$142*IF(HLOOKUP(F$140,'0 Úvod'!$K$65:$N$66,1,TRUE)=F$140,HLOOKUP(F$140,'0 Úvod'!$K$65:$N$66,2,TRUE),HLOOKUP(F$140,'0 Úvod'!$D$68:$J$69,2,TRUE)) -> 0.007 | G142: =$D$142*IF(HLOOKUP(G$140,'0 Úvod'!$K$65:$N$66,1,TRUE)=G$140,HLOOKUP(G$140,'0 Úvod'!$K$65:$N$66,2,TRUE),HLOOKUP(G$140,'0 Úvod'!$D$68:$J$69,2,TRUE)) -> 0.007 | H142: =$D$142*IF(HLOOKUP(H$140,'0 Úvod'!$K$65:$N$66,1,TRUE)=H$140,HLOOKUP(H$140,'0 Úvod'!$K$65:$N$66,2,TRUE),HLOOKUP(H$140,'0 Úvod'!$D$68:$J$69,2,TRUE)) -> 0.007 | I142: =$D$142*IF(HLOOKUP(I$140,'0 Úvod'!$K$65:$N$66,1,TRUE)=I$140,HLOOKUP(I$140,'0 Úvod'!$K$65:$N$66,2,TRUE),HLOOKUP(I$140,'0 Úvod'!$D$68:$J$69,2,TRUE)) -> 0.007 | J142: =$D$142*IF(HLOOKUP(J$140,'0 Úvod'!$K$65:$N$66,1,TRUE)=J$140,HLOOKUP(J$140,'0 Úvod'!$K$65:$N$66,2,TRUE),HLOOKUP(J$140,'0 Úvod'!$D$68:$J$69,2,TRUE)) -> 0.007 | K142: =$D$142*IF(HLOOKUP(K$140,'0 Úvod'!$K$65:$N$66,1,TRUE)=K$140,HLOOKUP(K$140,'0 Úvod'!$K$65:$N$66,2,TRUE),HLOOKUP(K$140,'0 Úvod'!$D$68:$J$69,2,TRUE)) -> 0.007 | L142: =$D$142*IF(HLOOKUP(L$140,'0 Úvod'!$K$65:$N$66,1,TRUE)=L$140,HLOOKUP(L$140,'0 Úvod'!$K$65:$N$66,2,TRUE),HLOOKUP(L$140,'0 Úvod'!$D$68:$J$69,2,TRUE)) -> 0.007 | M142: =$D$142*IF(HLOOKUP(M$140,'0 Úvod'!$K$65:$N$66,1,TRUE)=M$140,HLOOKUP(M$140,'0 Úvod'!$K$65:$N$66,2,TRUE),HLOOKUP(M$140,'0 Úvod'!$D$68:$J$69,2,TRUE)) -> 0.007 | N142: =$D$142*IF(HLOOKUP(N$140,'0 Úvod'!$K$65:$N$66,1,TRUE)=N$140,HLOOKUP(N$140,'0 Úvod'!$K$65:$N$66,2,TRUE),HLOOKUP(N$140,'0 Úvod'!$D$68:$J$69,2,TRUE)) -> 0.007 | O142: =$D$142*IF(HLOOKUP(O$140,'0 Úvod'!$K$65:$N$66,1,TRUE)=O$140,HLOOKUP(O$140,'0 Úvod'!$K$65:$N$66,2,TRUE),HLOOKUP(O$140,'0 Úvod'!$D$68:$J$69,2,TRUE)) -> 0.007 | P142: =$D$142*IF(HLOOKUP(P$140,'0 Úvod'!$K$65:$N$66,1,TRUE)=P$140,HLOOKUP(P$140,'0 Úvod'!$K$65:$N$66,2,TRUE),HLOOKUP(P$140,'0 Úvod'!$D$68:$J$69,2,TRUE)) -> 0.007 | Q142: =$D$142*IF(HLOOKUP(Q$140,'0 Úvod'!$K$65:$N$66,1,TRUE)=Q$140,HLOOKUP(Q$140,'0 Úvod'!$K$65:$N$66,2,TRUE),HLOOKUP(Q$140,'0 Úvod'!$D$68:$J$69,2,TRUE)) -> 0.007 | R142: =$D$142*IF(HLOOKUP(R$140,'0 Úvod'!$K$65:$N$66,1,TRUE)=R$140,HLOOKUP(R$140,'0 Úvod'!$K$65:$N$66,2,TRUE),HLOOKUP(R$140,'0 Úvod'!$D$68:$J$69,2,TRUE)) -> 0.007 | S142: =$D$142*IF(HLOOKUP(S$140,'0 Úvod'!$K$65:$N$66,1,TRUE)=S$140,HLOOKUP(S$140,'0 Úvod'!$K$65:$N$66,2,TRUE),HLOOKUP(S$140,'0 Úvod'!$D$68:$J$69,2,TRUE)) -> 0.007
C143: =C138 -> Výsledný růstový koeficient hodnoty času | E143: =S138*(1+E142) -> 1.239418179 | F143: =E143*(1+F142) -> 1.248094107 | G143: =F143*(1+G142) -> 1.256830765 | H143: 1.265628581 | I143: 1.274487981 | J143: 1.283409397 | K143: 1.292393262 | L143: 1.301440015 | M143: 1.310550095 | N143: 1.319723946 | O143: 1.328962014 | P143: 1.338264748 | Q143: 1.347632601 | R143: 1.357066029 | S143: 1.366565491
B146: Komentáře
B148: Zpracovatel uvede konkrétní hodnoty výstupů z dopravního prognózování použité při výpočtu úspor času. Tabulky 5.6. a 5.7. je možné přizpůsobit konkrétnímu projektu.
B149: V tabulce 5.1., 5.2. a 5.3. uvede zpracovatel konkrétní výpočet pomocí vzorců, s odkazem na tabulky výkonů (tabulka 5.6. a 5.7.) a měrného ohodnocení (tabulka 5.5.).
B150: a vynásobí hodnoty v tabulce 5.1, 5.2 a 5.3 hodnotou z tabulky 5.8

Sheet 6 Externality
B2: 6.1. | C2: Externí náklady (CZK) | E2: ='1 Celkové investiční náklady'!G3 -> 2016 | F2: =E2+1 -> 2017 | G2: 2018 | H2: 2019 | I2: 2020 | J2: 2021 | K2: 2022 | L2: 2023 | M2: 2024 | N2: 2025 | O2: 2026 | P2: 2027 | Q2: 2028 | R2: 2029 | S2: 2030
B3: a | C3: Scénář s projektem | D3: Celkem
B4: Železniční osobní doprava | C4: Nehody | D4: =SUM(E4:S4,E24:S24) -> 0
C5: Hluk | D5: =SUM(E5:S5,E25:S25) -> 0
C6: Znečištění ovzduší | D6: 0
C7: Klimatické změny | D7: 0
B8: Železniční nákladní doprava | C8: Nehody | D8: 0
C9: Hluk | D9: 0
C10: Znečištění ovzduší | D10: 0
C11: Klimatické změny | D11: 0
B12: Převedená osobní doprava | C12: Nehody | D12: 0
C13: Hluk | D13: 0
C14: Znečištění ovzduší | D14: 0
C15: Klimatické změny | D15: 0
B16: Převedená nákladní doprava | C16: Nehody | D16: 0
C17: Hluk | D17: 0
C18: Znečištění ovzduší | D18: 0
C19: Klimatické změny | D19: 0
C20: Celkové externí náklady | D20: 0 | E20: =SUM(E4:E11)-SUM(E12:E19) -> 0 | F20: =SUM(F4:F11)-SUM(F12:F19) -> 0 | G20: 0 | H20: 0 | I20: 0 | J20: 0 | K20: 0 | L20: 0 | M20: 0 | N20: 0 | O20: 0 | P20: 0 | Q20: 0 | R20: 0 | S20: 0
B22: 6.1. | C22: Externí náklady (CZK) | E22: =S2+1 -> 2031 | F22: =E22+1 -> 2032 | G22: 2033 | H22: 2034 | I22: 2035 | J22: 2036 | K22: 2037 | L22: 2038 | M22: 2039 | N22: 2040 | O22: 2041 | P22: 2042 | Q22: 2043 | R22: 2044 | S22: 2045
B23: b | C23: Scénář s projektem
B24: Železniční osobní doprava | C24: Nehody
C25: Hluk
C26: Znečištění ovzduší
C27: Klimatické změny
B28: Železniční nákladní doprava | C28: Nehody
C29: Hluk
C30: Znečištění ovzduší
C31: Klimatické změny
B32: Převedená osobní doprava | C32: Nehody
C33: Hluk
C34: Znečištění ovzduší
C35: Klimatické změny
B36: Převedená nákladní doprava | C36: Nehody
C37: Hluk
C38: Znečištění ovzduší
C39: Klimatické změny
C40: Celkové externí náklady | E40: =SUM(E24:E31)-SUM(E32:E39) -> 0 | F40: 0 | G40: 0 | H40: 0 | I40: 0 | J40: 0 | K40: 0 | L40: 0 | M40: 0 | N40: 0 | O40: 0 | P40: 0 | Q40: 0 | R40: 0 | S40: 0
B43: 6.2. | C43: Externí náklady (CZK) | E43: =E2 -> 2016 | F43: =E43+1 -> 2017 | G43: 2018 | H43: 2019 | I43: 2020 | J43: 2021 | K43: 2022 | L43: 2023 | M43: 2024 | N43: 2025 | O43: 2026 | P43: 2027 | Q43: 2028 | R43: 2029 | S43: 2030
B44: a | C44: Scénář bez projektu | D44: Celkem
B45: Železniční osobní doprava | C45: Nehody | D45: =SUM(E45:S45,E57:S57) -> 0
C46: Hluk | D46: =SUM(E46:S46,E58:S58) -> 0
C47: Znečištění ovzduší | D47: 0
C48: Klimatické změny | D48: 0
B49: Železniční nákladní doprava | C49: Nehody | D49: 0
C50: Hluk | D50: 0
C51: Znečištění ovzduší | D51: 0
C52: Klimatické změny | D52: 0
C53: Celkové externí náklady | D53: 0 | E53: =SUM(E45:E52) -> 0 | F53: =SUM(F45:F52) -> 0 | G53: =SUM(G45:G52) -> 0 | H53: 0 | I53: 0 | J53: 0 | K53: 0 | L53: 0 | M53: 0 | N53: 0 | O53: 0 | P53: 0 | Q53: 0 | R53: 0 | S53: =SUM(S45:S52) -> 0
B55: 6.2. | C55: Externí náklady (CZK) | E55: =S43+1 -> 2031 | F55: =E55+1 -> 2032 | G55: 2033 | H55: 2034 | I55: 2035 | J55: 2036 | K55: 2037 | L55: 2038 | M55: 2039 | N55: 2040 | O55: 2041 | P55: 2042 | Q55: 2043 | R55: 2044 | S55: 2045
B56: b | C56: Scénář bez projektu | E56: =S44+1 -> 1
B57: Železniční osobní doprava | C57: Nehody
C58: Hluk
C59: Znečištění ovzduší
C60: Klimatické změny
B61: Železniční nákladní doprava | C61: Nehody
C62: Hluk
C63: Znečištění ovzduší
C64: Klimatické změny
C65: Celkové externí náklady | E65: =SUM(E57:E64) -> 0 | F65: =SUM(F57:F64) -> 0 | G65: =SUM(G57:G64) -> 0 | H65: 0 | I65: 0 | J65: 0 | K65: 0 | L65: 0 | M65: 0 | N65: 0 | O65: 0 | P65: 0 | Q65: 0 | R65: 0 | S65: =SUM(S57:S64) -> 0
B68: 6.3. | C68: Celkem externí efekty - úspory (CZK) | E68: =E2 -> 2016 | F68: =E68+1 -> 2017 | G68: 2018 | H68: 2019 | I68: 2020 | J68: 2021 | K68: 2022 | L68: 2023 | M68: 2024 | N68: 2025 | O68: 2026 | P68: 2027 | Q68: 2028 | R68: 2029 | S68: 2030
B69: a | D69: Celkem
B70: Osobní | C70: Nehody | D70: =SUM(E70:S70,E82:S82) -> 0 | E70: =E45-(E4-E12) -> 0 | F70: =F45-(F4-F12) -> 0 | G70: 0 | H70: 0 | I70: 0 | J70: 0 | K70: 0 | L70: 0 | M70: 0 | N70: 0 | O70: 0 | P70: 0 | Q70: 0 | R70: 0 | S70: 0
C71: Hluk | D71: =SUM(E71:S71,E83:S83) -> 0 | E71: 0 | F71: =F46-(F5-F13) -> 0 | G71: 0 | H71: 0 | I71: 0 | J71: 0 | K71: 0 | L71: 0 | M71: 0 | N71: 0 | O71: 0 | P71: 0 | Q71: 0 | R71: 0 | S71: 0
C72: Znečištění ovzduší | D72: 0 | E72: 0 | F72: =F47-(F6-F14) -> 0 | G72: 0 | H72: 0 | I72: 0 | J72: 0 | K72: 0 | L72: 0 | M72: 0 | N72: 0 | O72: 0 | P72: 0 | Q72: 0 | R72: 0 | S72: 0
C73: Klimatické změny | D73: 0 | E73: 0 | F73: =F48-(F7-F15) -> 0 | G73: 0 | H73: 0 | I73: 0 | J73: 0 | K73: 0 | L73: 0 | M73: 0 | N73: 0 | O73: 0 | P73: 0 | Q73: 0 | R73: 0 | S73: 0
B74: Nákladní | C74: Nehody | D74: 0 | E74: 0 | F74: =F49-(F8-F16) -> 0 | G74: 0 | H74: 0 | I74: 0 | J74: 0 | K74: 0 | L74: 0 | M74: 0 | N74: 0 | O74: 0 | P74: 0 | Q74: 0 | R74: 0 | S74: 0
C75: Hluk | D75: 0 | E75: 0 | F75: =F50-(F9-F17) -> 0 | G75: 0 | H75: 0 | I75: 0 | J75: 0 | K75: 0 | L75: 0 | M75: 0 | N75: 0 | O75: 0 | P75: 0 | Q75: 0 | R75: 0 | S75: 0
C76: Znečištění ovzduší | D76: 0 | E76: =E51-(E10-E18) -> 0 | F76: 0 | G76: 0 | H76: 0 | I76: 0 | J76: 0 | K76: 0 | L76: 0 | M76: 0 | N76: 0 | O76: 0 | P76: 0 | Q76: 0 | R76: 0 | S76: 0
C77: Klimatické změny | D77: 0 | E77: =E52-(E11-E19) -> 0 | F77: 0 | G77: 0 | H77: 0 | I77: 0 | J77: 0 | K77: 0 | L77: 0 | M77: 0 | N77: 0 | O77: 0 | P77: 0 | Q77: 0 | R77: 0 | S77: 0
C78: Celkem externí efekty - úspory | D78: 0 | E78: =E53-E20 -> 0 | F78: =F53-F20 -> 0 | G78: 0 | H78: 0 | I78: 0 | J78: 0 | K78: 0 | L78: 0 | M78: 0 | N78: 0 | O78: 0 | P78: 0 | Q78: 0 | R78: 0 | S78: 0
B80: 6.3. | C80: Celkem externí efekty - úspory (CZK) | E80: =S68+1 -> 2031 | F80: =E80+1 -> 2032 | G80: 2033 | H80: 2034 | I80: 2035 | J80: 2036 | K80: 2037 | L80: 2038 | M80: 2039 | N80: 2040 | O80: 2041 | P80: 2042 | Q80: 2043 | R80: 2044 | S80: 2045
B81: b | E81: =S69+1 -> 1
B82: Osobní | C82: Nehody | E82: =E57-(E24-E32) -> 0 | F82: =F57-(F24-F32) -> 0 | G82: 0 | H82: 0 | I82: 0 | J82: 0 | K82: 0 | L82: 0 | M82: 0 | N82: 0 | O82: 0 | P82: 0 | Q82: 0 | R82: 0 | S82: 0
C83: Hluk | E83: 0 | F83: =F58-(F25-F33) -> 0 | G83: 0 | H83: 0 | I83: 0 | J83: 0 | K83: 0 | L83: 0 | M83: 0 | N83: 0 | O83: 0 | P83: 0 | Q83: 0 | R83: 0 | S83: 0
C84: Znečištění ovzduší | E84: 0 | F84: =F59-(F26-F34) -> 0 | G84: 0 | H84: 0 | I84: 0 | J84: 0 | K84: 0 | L84: 0 | M84: 0 | N84: 0 | O84: 0 | P84: 0 | Q84: 0 | R84: 0 | S84: 0
C85: Klimatické změny | E85: 0 | F85: =F60-(F27-F35) -> 0 | G85: 0 | H85: 0 | I85: 0 | J85: 0 | K85: 0 | L85: 0 | M85: 0 | N85: 0 | O85: 0 | P85: 0 | Q85: 0 | R85: 0 | S85: 0
B86: Nákladní | C86: Nehody | E86: 0 | F86: =F61-(F28-F36) -> 0 | G86: 0 | H86: 0 | I86: 0 | J86: 0 | K86: 0 | L86: 0 | M86: 0 | N86: 0 | O86: 0 | P86: 0 | Q86: 0 | R86: 0 | S86: 0
C87: Hluk | E87: 0 | F87: =F62-(F29-F37) -> 0 | G87: 0 | H87: 0 | I87: 0 | J87: 0 | K87: 0 | L87: 0 | M87: 0 | N87: 0 | O87: 0 | P87: 0 | Q87: 0 | R87: 0 | S87: 0
C88: Znečištění ovzduší | E88: =E63-(E30-E38) -> 0 | F88: 0 | G88: 0 | H88: 0 | I88: 0 | J88: 0 | K88: 0 | L88: 0 | M88: 0 | N88: 0 | O88: 0 | P88: 0 | Q88: 0 | R88: 0 | S88: 0
C89: Klimatické změny | E89: =E64-(E31-E39) -> 0 | F89: 0 | G89: 0 | H89: 0 | I89: 0 | J89: 0 | K89: 0 | L89: 0 | M89: 0 | N89: 0 | O89: 0 | P89: 0 | Q89: 0 | R89: 0 | S89: 0
C90: Celkem externí efekty - úspory | E90: =E65-E40 -> 0 | F90: =F65-F40 -> 0 | G90: 0 | H90: 0 | I90: 0 | J90: 0 | K90: 0 | L90: 0 | M90: 0 | N90: 0 | O90: 0 | P90: 0 | Q90: 0 | R90: 0 | S90: 0
C93: Externí náklady - scénář s projektem (CZK) | D93: =D20 -> 0
C94: Externí náklady - scénář bez projektu (CZK) | D94: =D53 -> 0
C95: Celkem externí efekty - úspory (CZK) | D95: =D78 -> 0
B98: 6.4. a | C98: Osobní doprava [EUR/1000 oskm] - výchozí hodnoty
D99: Automobil | E99: Motocykl | F99: Autobus | G99: Železnice
C100: Nehody | D100: 36 | E100: 250 | F100: 3.1 | G100: 0.9
C101: Hluk | D101: 5.7 | E101: 17 | F101: 1.3 | G101: 3.9
C102: Znečištění ovzduší | D102: 17.3 | E102: 7.9 | F102: 19.6 | G102: 4.9
C103: Klimatické změny | D103: 15.9 | E103: 13.8 | F103: 8.9 | G103: 5.3
C104: Nákladní doprava [EUR/1000 čistých tkm] - výchozí hodnoty
D105: Lehká užitková vozidla | E105: Těžká užitková vozidla | F105: Železnice | G105: Vodní
C106: Nehody | D106: 100 | E106: 6.8 | F106: 11.5
C107: Hluk | D107: 35.7 | E107: 5.1 | F107: 3.5
C108: Znečištění ovzduší | D108: 131 | E108: 32.4 | F108: 4 | G108: 9.7
C109: Klimatické změny | D109: 134 | E109: 15.1 | F109: 4.7 | G109: 4.2
B111: 6.4. b | C111: Metodika hodnocení efektivnosti investic - železniční infrastruktura | I111: CÚ | J111: ='0 Úvod'!D19 -> 2016
C112: Osobní doprava [CZK/1000 oskm] CÚ 2012 | I112: Osobní doprava [CZK/1000 oskm]
D113: Automobil | E113: Motocykl | F113: Autobus | G113: Železnice | J113: Automobil | K113: Motocykl | L113: Autobus | M113: Železnice
C114: Nehody | D114: 1697 | E114: 11787 | F114: 146 | G114: 42 | I114: Nehody
C115: Hluk | D115: 269 | E115: 801 | F115: 61 | G115: 184 | I115: Hluk
C116: Znečištění ovzduší | D116: 816 | E116: 372 | F116: 924 | G116: 231 | I116: Znečištění ovzduší
C117: Klimatické změny | D117: 750 | E117: 654 | F117: 420 | G117: 250 | I117: Klimatické změny
C118: Nákladní doprava [CZK/1000 čistých tkm] CÚ 2012 | I118: Nákladní doprava [CZK/1000 čistých tkm]
D119: Lehká užitková vozidla | E119: Těžká užitková vozidla | F119: Železnice | G119: Vodní | J119: Lehká užitková vozidla | K119: Těžká užitková vozidla | L119: Železnice | M119: Vodní
C120: Nehody | D120: 4715 | E120: 321 | F120: 542 | I120: Nehody
C121: Hluk | D121: 1683 | E121: 240 | F121: 165 | I121: Hluk
C122: Znečištění ovzduší | D122: 6176 | E122: 1528 | F122: 189 | G122: 457 | I122: Znečištění ovzduší
C123: Klimatické změny | D123: 6318 | E123: 712 | F123: 222 | G123: 198 | I123: Klimatické změny
C124: Zdroj: "INFRAS-IWW" 2004
B127: 6.5. | C127: Celkové oskm / č.tkm | E127: =E2 -> 2016 | F127: =E127+1 -> 2017 | G127: 2018 | H127: 2019 | I127: 2020 | J127: 2021 | K127: 2022 | L127: 2023 | M127: 2024 | N127: 2025 | O127: 2026 | P127: 2027 | Q127: 2028 | R127: 2029 | S127: 2030
B128: a | C128: Scénář s projektem | D128: Celkem
C129: Železniční osobní doprava | D129: =SUM(E129:S129,E138:S138) -> 0
C130: Železniční nákladní doprava | D130: =SUM(E130:S130,E139:S139) -> 0
C131: Převedená osobní doprava - IAD | D131: 0
C132: Převedená osobní doprava - BUS | D132: 0
C133: Převedená nákladní doprava - LUV | D133: 0
C134: Převedená nákladní doprava - TUV | D134: 0
B136: =B127 -> 6.5. | C136: =C127 -> Celkové oskm / č.tkm | E136: =S127+1 -> 2031 | F136: =E136+1 -> 2032 | G136: 2033 | H136: 2034 | I136: 2035 | J136: 2036 | K136: 2037 | L136: 2038 | M136: 2039 | N136: 2040 | O136: 2041 | P136: 2042 | Q136: 2043 | R136: 2044 | S136: 2045
B137: b | C137: Scénář s projektem
C138: =C129 -> Železniční osobní doprava
C139: Železniční nákladní doprava
C140: Převedená osobní doprava - IAD
C141: Převedená osobní doprava - BUS
C142: Převedená nákladní doprava - LUV
C143: Převedená nákladní doprava - TUV
B146: 6.6. | C146: Celkové oskm / č.tkm | E146: =E127 -> 2016 | F146: =E146+1 -> 2017 | G146: 2018 | H146: 2019 | I146: 2020 | J146: 2021 | K146: 2022 | L146: 2023 | M146: 2024 | N146: 2025 | O146: 2026 | P146: 2027 | Q146: 2028 | R146: 2029 | S146: 2030
B147: a | C147: Scénář bez projektu | D147: Celkem
C148: Železniční osobní doprava | D148: =SUM(E148:S148,E153:S153) -> 0
C149: Železniční nákladní doprava | D149: =SUM(E149:S149,E154:S154) -> 0
B151: =B146 -> 6.6. | C151: =C146 -> Celkové oskm / č.tkm | E151: =S146+1 -> 2031 | F151: =E151+1 -> 2032 | G151: 2033 | H151: 2034 | I151: 2035 | J151: 2036 | K151: 2037 | L151: 2038 | M151: 2039 | N151: 2040 | O151: 2041 | P151: 2042 | Q151: 2043 | R151: 2044 | S151: 2045
B152: b | C152: Scénář bez projektu | E152: =S147+1 -> 1
C153: =C148 -> Železniční osobní doprava
C154: =C149 -> Železniční nákladní doprava
B157: 6.7. | C157: Zmírnění změny klimatu - t CO2 / rok | E157: =E127 -> 2016 | F157: =E157+1 -> 2017 | G157: =F157+1 -> 2018 | H157: =G157+1 -> 2019 | I157: =H157+1 -> 2020 | J157: =I157+1 -> 2021 | K157: =J157+1 -> 2022 | L157: =K157+1 -> 2023 | M157: =L157+1 -> 2024 | N157: =M157+1 -> 2025 | O157: =N157+1 -> 2026 | P157: =O157+1 -> 2027 | Q157: =P157+1 -> 2028 | R157: =Q157+1 -> 2029 | S157: =R157+1 -> 2030
B158: a | C158: Scénář s projektem | D158: Celkem
C159: Železniční osobní doprava | D159: =SUM(E159:S159,E168:S168) -> 0
C160: Železniční nákladní doprava | D160: =SUM(E160:S160,E169:S169) -> 0
C161: Převedená osobní doprava - IAD | D161: 0
C162: Převedená osobní doprava - BUS | D162: 0
C163: Převedená nákladní doprava - LUV | D163: 0
C164: Převedená nákladní doprava - TUV | D164: 0
B166: =B157 -> 6.7. | C166: Zmírnění změny klimatu - t CO2 / rok | E166: =S157+1 -> 2031 | F166: =E166+1 -> 2032 | G166: =F166+1 -> 2033 | H166: =G166+1 -> 2034 | I166: =H166+1 -> 2035 | J166: =I166+1 -> 2036 | K166: =J166+1 -> 2037 | L166: =K166+1 -> 2038 | M166: =L166+1 -> 2039 | N166: =M166+1 -> 2040 | O166: =N166+1 -> 2041 | P166: =O166+1 -> 2042 | Q166: =P166+1 -> 2043 | R166: =Q166+1 -> 2044 | S166: =R166+1 -> 2045
B167: b | C167: Scénář s projektem
C168: =C159 -> Železniční osobní doprava
C169: Železniční nákladní doprava
C170: Převedená osobní doprava - IAD
C171: Převedená osobní doprava - BUS
C172: Převedená nákladní doprava - LUV
C173: Převedená nákladní doprava - TUV
B176: 6.8. | C176: Zmírnění změny klimatu - t CO2 / rok | E176: =E157 -> 2016 | F176: =E176+1 -> 2017 | G176: =F176+1 -> 2018 | H176: =G176+1 -> 2019 | I176: =H176+1 -> 2020 | J176: =I176+1 -> 2021 | K176: =J176+1 -> 2022 | L176: =K176+1 -> 2023 | M176: =L176+1 -> 2024 | N176: =M176+1 -> 2025 | O176: =N176+1 -> 2026 | P176: =O176+1 -> 2027 | Q176: =P176+1 -> 2028 | R176: =Q176+1 -> 2029 | S176: =R176+1 -> 2030
B177: a | C177: Scénář bez projektu | D177: Celkem
C178: Železniční osobní doprava | D178: =SUM(E178:S178,E183:S183) -> 0
C179: Železniční nákladní doprava | D179: =SUM(E179:S179,E184:S184) -> 0
B181: =B176 -> 6.8. | C181: Zmírnění změny klimatu - t CO2 / rok | E181: =S176+1 -> 2031 | F181: =E181+1 -> 2032 | G181: =F181+1 -> 2033 | H181: =G181+1 -> 2034 | I181: =H181+1 -> 2035 | J181: =I181+1 -> 2036 | K181: =J181+1 -> 2037 | L181: =K181+1 -> 2038 | M181: =L181+1 -> 2039 | N181: =M181+1 -> 2040 | O181: =N181+1 -> 2041 | P181: =O181+1 -> 2042 | Q181: =P181+1 -> 2043 | R181: =Q181+1 -> 2044 | S181: =R181+1 -> 2045
B182: b | C182: Scénář bez projektu | E182: =S177+1 -> 1
C183: =C178 -> Železniční osobní doprava
C184: =C179 -> Železniční nákladní doprava
B187: 6.9. | C187: Zmírnění změny klimatu - t CH4 / rok | D187: GWP = 25 | E187: =E157 -> 2016 | F187: =E187+1 -> 2017 | G187: =F187+1 -> 2018 | H187: =G187+1 -> 2019 | I187: =H187+1 -> 2020 | J187: =I187+1 -> 2021 | K187: =J187+1 -> 2022 | L187: =K187+1 -> 2023 | M187: =L187+1 -> 2024 | N187: =M187+1 -> 2025 | O187: =N187+1 -> 2026 | P187: =O187+1 -> 2027 | Q187: =P187+1 -> 2028 | R187: =Q187+1 -> 2029 | S187: =R187+1 -> 2030
B188: a | C188: Scénář s projektem | D188: Celkem
C189: Železniční osobní doprava | D189: =SUM(E189:S189,E198:S198) -> 0
C190: Železniční nákladní doprava | D190: =SUM(E190:S190,E199:S199) -> 0
C191: Převedená osobní doprava - IAD | D191: 0
C192: Převedená osobní doprava - BUS | D192: 0
C193: Převedená nákladní doprava - LUV | D193: 0
C194: Převedená nákladní doprava - TUV | D194: 0
B196: =B187 -> 6.9. | C196: Zmírnění změny klimatu - t CH4 / rok | D196: GWP = 25 | E196: =S187+1 -> 2031 | F196: =E196+1 -> 2032 | G196: =F196+1 -> 2033 | H196: =G196+1 -> 2034 | I196: =H196+1 -> 2035 | J196: =I196+1 -> 2036 | K196: =J196+1 -> 2037 | L196: =K196+1 -> 2038 | M196: =L196+1 -> 2039 | N196: =M196+1 -> 2040 | O196: =N196+1 -> 2041 | P196: =O196+1 -> 2042 | Q196: =P196+1 -> 2043 | R196: =Q196+1 -> 2044 | S196: =R196+1 -> 2045
B197: b | C197: Scénář s projektem
C198: =C189 -> Železniční osobní doprava
C199: Železniční nákladní doprava
C200: Převedená osobní doprava - IAD
C201: Převedená osobní doprava - BUS
C202: Převedená nákladní doprava - LUV
C203: Převedená nákladní doprava - TUV
B206: 6.10. | C206: Zmírnění změny klimatu - t CH4 / rok | D206: GWP = 25 | E206: =E187 -> 2016 | F206: =E206+1 -> 2017 | G206: =F206+1 -> 2018 | H206: =G206+1 -> 2019 | I206: =H206+1 -> 2020 | J206: =I206+1 -> 2021 | K206: =J206+1 -> 2022 | L206: =K206+1 -> 2023 | M206: =L206+1 -> 2024 | N206: =M206+1 -> 2025 | O206: =N206+1 -> 2026 | P206: =O206+1 -> 2027 | Q206: =P206+1 -> 2028 | R206: =Q206+1 -> 2029 | S206: =R206+1 -> 2030
B207: a | C207: Scénář bez projektu | D207: Celkem
C208: Železniční osobní doprava | D208: =SUM(E208:S208,E213:S213) -> 0
C209: Železniční nákladní doprava | D209: =SUM(E209:S209,E214:S214) -> 0
B211: =B206 -> 6.10. | C211: Zmírnění změny klimatu - t CH4 / rok | D211: GWP = 25 | E211: =S206+1 -> 2031 | F211: =E211+1 -> 2032 | G211: =F211+1 -> 2033 | H211: =G211+1 -> 2034 | I211: =H211+1 -> 2035 | J211: =I211+1 -> 2036 | K211: =J211+1 -> 2037 | L211: =K211+1 -> 2038 | M211: =L211+1 -> 2039 | N211: =M211+1 -> 2040 | O211: =N211+1 -> 2041 | P211: =O211+1 -> 2042 | Q211: =P211+1 -> 2043 | R211: =Q211+1 -> 2044 | S211: =R211+1 -> 2045
B212: b | C212: Scénář bez projektu | E212: =S207+1 -> 1
C213: =C208 -> Železniční osobní doprava
C214: =C209 -> Železniční nákladní doprava
B217: 6.11. | C217: Zmírnění změny klimatu - t N2O / rok | D217: GWP = 298 | E217: =E187 -> 2016 | F217: =E217+1 -> 2017 | G217: =F217+1 -> 2018 | H217: =G217+1 -> 2019 | I217: =H217+1 -> 2020 | J217: =I217+1 -> 2021 | K217: =J217+1 -> 2022 | L217: =K217+1 -> 2023 | M217: =L217+1 -> 2024 | N217: =M217+1 -> 2025 | O217: =N217+1 -> 2026 | P217: =O217+1 -> 2027 | Q217: =P217+1 -> 2028 | R217: =Q217+1 -> 2029 | S217: =R217+1 -> 2030
B218: a | C218: Scénář s projektem | D218: Celkem
C219: Železniční osobní doprava | D219: =SUM(E219:S219,E228:S228) -> 0
C220: Železniční nákladní doprava | D220: =SUM(E220:S220,E229:S229) -> 0
C221: Převedená osobní doprava - IAD | D221: 0
C222: Převedená osobní doprava - BUS | D222: 0
C223: Převedená nákladní doprava - LUV | D223: 0
C224: Převedená nákladní doprava - TUV | D224: 0
B226: =B217 -> 6.11. | C226: Zmírnění změny klimatu - t N2O / rok | D226: GWP = 298 | E226: =S217+1 -> 2031 | F226: =E226+1 -> 2032 | G226: =F226+1 -> 2033 | H226: =G226+1 -> 2034 | I226: =H226+1 -> 2035 | J226: =I226+1 -> 2036 | K226: =J226+1 -> 2037 | L226: =K226+1 -> 2038 | M226: =L226+1 -> 2039 | N226: =M226+1 -> 2040 | O226: =N226+1 -> 2041 | P226: =O226+1 -> 2042 | Q226: =P226+1 -> 2043 | R226: =Q226+1 -> 2044 | S226: =R226+1 -> 2045
B227: b | C227: Scénář s projektem
C228: =C219 -> Železniční osobní doprava
C229: Železniční nákladní doprava
C230: Převedená osobní doprava - IAD
C231: Převedená osobní doprava - BUS
C232: Převedená nákladní doprava - LUV
C233: Převedená nákladní doprava - TUV
B236: 6.12. | C236: Zmírnění změny klimatu - t N2O / rok | D236: GWP = 298 | E236: =E217 -> 2016 | F236: =E236+1 -> 2017 | G236: =F236+1 -> 2018 | H236: =G236+1 -> 2019 | I236: =H236+1 -> 2020 | J236: =I236+1 -> 2021 | K236: =J236+1 -> 2022 | L236: =K236+1 -> 2023 | M236: =L236+1 -> 2024 | N236: =M236+1 -> 2025 | O236: =N236+1 -> 2026 | P236: =O236+1 -> 2027 | Q236: =P236+1 -> 2028 | R236: =Q236+1 -> 2029 | S236: =R236+1 -> 2030
... 49 more rows

Sheet 7 Emise ze železniční dopravy
B2: 7.1. | C2: Emise ze železniční dopravy (CZK) | E2: ='1 Celkové investiční náklady'!G3 -> 2016 | F2: =E2+1 -> 2017 | G2: 2018 | H2: 2019 | I2: 2020 | J2: 2021 | K2: 2022 | L2: 2023 | M2: 2024 | N2: 2025 | O2: 2026 | P2: 2027 | Q2: 2028 | R2: 2029 | S2: 2030
B3: a | C3: Scénář se projektem | D3: Celkem
B4: Osobní | C4: Dieselová trakce | D4: =SUM(E4:S4,E12:S12) -> 0
C5: Elektrická trakce | D5: =SUM(E5:S5,E13:S13) -> 0
B6: Nákladní | C6: Dieselová trakce | D6: 0
C7: Elektrická trakce | D7: 0
C8: Celkem emise ze železniční dopravy | D8: 0 | E8: =SUM(E4:E7) -> 0 | F8: =SUM(F4:F7) -> 0 | G8: =SUM(G4:G7) -> 0 | H8: 0 | I8: 0 | J8: 0 | K8: 0 | L8: 0 | M8: 0 | N8: 0 | O8: 0 | P8: 0 | Q8: 0 | R8: 0 | S8: =SUM(S4:S7) -> 0
B10: 7.1. | C10: Emise ze železniční dopravy (CZK) | E10: =S2+1 -> 2031 | F10: =E10+1 -> 2032 | G10: 2033 | H10: 2034 | I10: 2035 | J10: 2036 | K10: 2037 | L10: 2038 | M10: 2039 | N10: 2040 | O10: 2041 | P10: 2042 | Q10: 2043 | R10: 2044 | S10: 2045
B11: b | C11: Scénář s projektem
B12: Osobní | C12: Dieselová trakce
C13: Elektrická trakce
B14: Nákladní | C14: Dieselová trakce
C15: Elektrická trakce
C16: Celkem emise ze železniční dopravy | E16: =SUM(E12:E15) -> 0 | F16: =SUM(F12:F15) -> 0 | G16: =SUM(G12:G15) -> 0 | H16: 0 | I16: 0 | J16: 0 | K16: 0 | L16: 0 | M16: 0 | N16: 0 | O16: 0 | P16: 0 | Q16: 0 | R16: 0 | S16: =SUM(S12:S15) -> 0
B19: 7.2. | C19: Emise ze železniční dopravy (CZK) | E19: =E2 -> 2016 | F19: =E19+1 -> 2017 | G19: 2018 | H19: 2019 | I19: 2020 | J19: 2021 | K19: 2022 | L19: 2023 | M19: 2024 | N19: 2025 | O19: 2026 | P19: 2027 | Q19: 2028 | R19: 2029 | S19: 2030
B20: a | C20: Scénář bez projektu | D20: Celkem
B21: Osobní | C21: Dieselová trakce | D21: =SUM(E21:S21,E29:S29) -> 0
C22: Elektrická trakce | D22: =SUM(E22:S22,E30:S30) -> 0
B23: Nákladní | C23: Dieselová trakce | D23: 0
C24: Elektrická trakce | D24: 0
C25: Celkem emise ze železniční dopravy | D25: 0 | E25: =SUM(E21:E24) -> 0 | F25: =SUM(F21:F24) -> 0 | G25: =SUM(G21:G24) -> 0 | H25: 0 | I25: 0 | J25: 0 | K25: 0 | L25: 0 | M25: 0 | N25: 0 | O25: 0 | P25: 0 | Q25: 0 | R25: 0 | S25: =SUM(S21:S24) -> 0
B27: 7.2. | C27: Emise ze železniční dopravy (CZK) | E27: =S19+1 -> 2031 | F27: =E27+1 -> 2032 | G27: 2033 | H27: 2034 | I27: 2035 | J27: 2036 | K27: 2037 | L27: 2038 | M27: 2039 | N27: 2040 | O27: 2041 | P27: 2042 | Q27: 2043 | R27: 2044 | S27: 2045
B28: b | C28: Scénář bez projektu | E28: =S20+1 -> 1
B29: Osobní | C29: Dieselová trakce
C30: Elektrická trakce
B31: Nákladní | C31: Dieselová trakce
C32: Elektrická trakce
C33: Celkem emise ze železniční dopravy | E33: =SUM(E29:E32) -> 0 | F33: =SUM(F29:F32) -> 0 | G33: =SUM(G29:G32) -> 0 | H33: 0 | I33: 0 | J33: 0 | K33: 0 | L33: 0 | M33: 0 | N33: 0 | O33: 0 | P33: 0 | Q33: 0 | R33: 0 | S33: =SUM(S29:S32) -> 0
B36: 7.3. | C36: Redukce emisí ze železniční nákladní dopravy (CZK) | E36: =E2 -> 2016 | F36: =E36+1 -> 2017 | G36: 2018 | H36: 2019 | I36: 2020 | J36: 2021 | K36: 2022 | L36: 2023 | M36: 2024 | N36: 2025 | O36: 2026 | P36: 2027 | Q36: 2028 | R36: 2029 | S36: 2030
B37: a | D37: Celkem
B38: Osobní | C38: Dieselová trakce | D38: =SUM(E38:S38,E46:S46) -> 0 | E38: =E21-E4 -> 0 | F38: =F21-F4 -> 0 | G38: 0 | H38: 0 | I38: 0 | J38: 0 | K38: 0 | L38: 0 | M38: 0 | N38: 0 | O38: 0 | P38: 0 | Q38: 0 | R38: 0 | S38: 0
C39: Elektrická trakce | D39: =SUM(E39:S39,E47:S47) -> 0 | E39: =E22-E5 -> 0 | F39: 0 | G39: 0 | H39: 0 | I39: 0 | J39: 0 | K39: 0 | L39: 0 | M39: 0 | N39: 0 | O39: 0 | P39: 0 | Q39: 0 | R39: 0 | S39: 0
B40: Nákladní | C40: Dieselová trakce | D40: 0 | E40: =E23-E6 -> 0 | F40: 0 | G40: 0 | H40: 0 | I40: 0 | J40: 0 | K40: 0 | L40: 0 | M40: 0 | N40: 0 | O40: 0 | P40: 0 | Q40: 0 | R40: 0 | S40: 0
C41: Elektrická trakce | D41: 0 | E41: =E24-E7 -> 0 | F41: 0 | G41: 0 | H41: 0 | I41: 0 | J41: 0 | K41: 0 | L41: 0 | M41: 0 | N41: 0 | O41: 0 | P41: 0 | Q41: 0 | R41: 0 | S41: 0
C42: Celkem redukce emisí ze železniční dopravy | D42: 0 | E42: =E25-E8 -> 0 | F42: =F25-F8 -> 0 | G42: =G25-G8 -> 0 | H42: 0 | I42: 0 | J42: 0 | K42: 0 | L42: 0 | M42: 0 | N42: 0 | O42: 0 | P42: 0 | Q42: 0 | R42: 0 | S42: 0
B44: 7.3. | C44: Redukce emisí ze železniční nákladní dopravy (CZK) | E44: =S36+1 -> 2031 | F44: =E44+1 -> 2032 | G44: 2033 | H44: 2034 | I44: 2035 | J44: 2036 | K44: 2037 | L44: 2038 | M44: 2039 | N44: 2040 | O44: 2041 | P44: 2042 | Q44: 2043 | R44: 2044 | S44: 2045
B45: b | E45: =S37+1 -> 1
B46: Osobní | C46: Dieselová trakce | E46: =E29-E12 -> 0 | F46: 0 | G46: 0 | H46: 0 | I46: 0 | J46: 0 | K46: 0 | L46: 0 | M46: 0 | N46: 0 | O46: 0 | P46: 0 | Q46: 0 | R46: 0 | S46: 0
C47: Elektrická trakce | E47: =E30-E13 -> 0 | F47: 0 | G47: 0 | H47: 0 | I47: 0 | J47: 0 | K47: 0 | L47: 0 | M47: 0 | N47: 0 | O47: 0 | P47: 0 | Q47: 0 | R47: 0 | S47: 0
B48: Nákladní | C48: Dieselová trakce | E48: =E31-E14 -> 0 | F48: 0 | G48: 0 | H48: 0 | I48: 0 | J48: 0 | K48: 0 | L48: 0 | M48: 0 | N48: 0 | O48: 0 | P48: 0 | Q48: 0 | R48: 0 | S48: 0
C49: Elektrická trakce | E49: =E32-E15 -> 0 | F49: 0 | G49: 0 | H49: 0 | I49: 0 | J49: 0 | K49: 0 | L49: 0 | M49: 0 | N49: 0 | O49: 0 | P49: 0 | Q49: 0 | R49: 0 | S49: 0
C50: Celkem redukce emisí ze železniční dopravy | E50: 0 | F50: 0 | G50: 0 | H50: 0 | I50: 0 | J50: 0 | K50: 0 | L50: 0 | M50: 0 | N50: 0 | O50: 0 | P50: 0 | Q50: 0 | R50: 0 | S50: 0
C53: Scenář s projektem (CZK) | D53: =D8 -> 0
C54: Scenář bez projektu (CZK) | D54: =D25 -> 0
C55: Přírůstkové cash-flow (CZK) | D55: =D42 -> 0
B60: 7.4. | C60: CÚ | D60: 2007 | F60: 2012 | H60: ='0 Úvod'!D19 -> 2016
D61: Dieselová trakce | E61: Elektrická trakce | F61: Dieselová trakce | G61: Elektrická trakce | H61: Dieselová trakce | I61: Elektrická trakce
C62: CZK/1000 oskm | D62: =40.832 -> 40.832 | E62: =3.273 -> 3.273 | F62: 50.56 | G62: 4.053
C63: CZK/1000 č. tkm | D63: 68.565 | E63: 0.775 | F63: 84.9 | G63: 0.96
C64: Zdroj: "INFRAS-IWW" 2004
B67: 7.5. | C67: Celkové oskm / č.tkm | E67: =E2 -> 2016 | F67: =E67+1 -> 2017 | G67: 2018 | H67: 2019 | I67: 2020 | J67: 2021 | K67: 2022 | L67: 2023 | M67: 2024 | N67: 2025 | O67: 2026 | P67: 2027 | Q67: 2028 | R67: 2029 | S67: 2030
B68: a | C68: Scénář s projektem | D68: Celkem
B69: Osobní | C69: Dieselová trakce | D69: =SUM(E69:S69,E77:S77) -> 0
C70: Elektrická trakce | D70: =SUM(E70:S70,E78:S78) -> 0
B71: Nákladní | C71: Dieselová trakce | D71: 0
C72: Elektrická trakce | D72: 0
C73: Celkové oskm / č.tkm | D73: 0 | E73: =SUM(E69:E72) -> 0 | F73: 0 | G73: 0 | H73: 0 | I73: 0 | J73: 0 | K73: 0 | L73: 0 | M73: 0 | N73: 0 | O73: 0 | P73: 0 | Q73: 0 | R73: 0 | S73: 0
B75: =B67 -> 7.5. | C75: =C67 -> Celkové oskm / č.tkm | E75: =S67+1 -> 2031 | F75: =E75+1 -> 2032 | G75: 2033 | H75: 2034 | I75: 2035 | J75: 2036 | K75: 2037 | L75: 2038 | M75: 2039 | N75: 2040 | O75: 2041 | P75: 2042 | Q75: 2043 | R75: 2044 | S75: 2045
B76: b | C76: Scénář s projektem
B77: =B69 -> Osobní | C77: =C69 -> Dieselová trakce
C78: =C70 -> Elektrická trakce
B79: =B71 -> Nákladní | C79: =C71 -> Dieselová trakce
C80: =C72 -> Elektrická trakce
C81: =C73 -> Celkové oskm / č.tkm | E81: =SUM(E77:E80) -> 0 | F81: 0 | G81: 0 | H81: 0 | I81: 0 | J81: 0 | K81: 0 | L81: 0 | M81: 0 | N81: 0 | O81: 0 | P81: 0 | Q81: 0 | R81: 0 | S81: 0
B84: 7.6. | C84: Celkové oskm / č.tkm | E84: =E67 -> 2016 | F84: =E84+1 -> 2017 | G84: 2018 | H84: 2019 | I84: 2020 | J84: 2021 | K84: 2022 | L84: 2023 | M84: 2024 | N84: 2025 | O84: 2026 | P84: 2027 | Q84: 2028 | R84: 2029 | S84: 2030
B85: a | C85: Scénář bez projektu | D85: Celkem
B86: Osobní | C86: Dieselová trakce | D86: =SUM(E86:S86,E94:S94) -> 0
C87: Elektrická trakce | D87: =SUM(E87:S87,E95:S95) -> 0
B88: Nákladní | C88: Dieselová trakce | D88: 0
C89: Elektrická trakce | D89: 0
C90: Celkové oskm / č.tkm | D90: 0 | E90: =SUM(E86:E89) -> 0 | F90: 0 | G90: 0 | H90: 0 | I90: 0 | J90: 0 | K90: 0 | L90: 0 | M90: 0 | N90: 0 | O90: 0 | P90: 0 | Q90: 0 | R90: 0 | S90: 0
B92: =B84 -> 7.6. | C92: =C84 -> Celkové oskm / č.tkm | E92: =S84+1 -> 2031 | F92: =E92+1 -> 2032 | G92: 2033 | H92: 2034 | I92: 2035 | J92: 2036 | K92: 2037 | L92: 2038 | M92: 2039 | N92: 2040 | O92: 2041 | P92: 2042 | Q92: 2043 | R92: 2044 | S92: 2045
B93: b | C93: Scénář bez projektu | E93: =S85+1 -> 1
B94: =B86 -> Osobní | C94: =C86 -> Dieselová trakce
C95: =C87 -> Elektrická trakce
B96: =B88 -> Nákladní | C96: =C88 -> Dieselová trakce
C97: =C89 -> Elektrická trakce
C98: =C90 -> Celkové oskm / č.tkm | E98: =SUM(E94:E97) -> 0 | F98: 0 | G98: 0 | H98: 0 | I98: 0 | J98: 0 | K98: 0 | L98: 0 | M98: 0 | N98: 0 | O98: 0 | P98: 0 | Q98: 0 | R98: 0 | S98: 0
B101: 7.7. | C101: Změna měrných hodnot emisí | E101: =E2 -> 2016 | F101: =E101+1 -> 2017 | G101: 2018 | H101: 2019 | I101: 2020 | J101: 2021 | K101: 2022 | L101: 2023 | M101: 2024 | N101: 2025 | O101: 2026 | P101: 2027 | Q101: 2028 | R101: 2029 | S101: 2030
B102: a | D102: Elasticita
C103: Hodnota růstu HDP na hlavu (resp. prognóza) | D103: 1 | E103: 0 | F103: ='6 Externality'!F284 -> 0.029 | G103: ='6 Externality'!G284 -> 0.03 | H103: ='6 Externality'!H284 -> 0.03 | I103: ='6 Externality'!I284 -> 0.02 | J103: ='6 Externality'!J284 -> 0.02 | K103: ='6 Externality'!K284 -> 0.02 | L103: ='6 Externality'!L284 -> 0.02 | M103: ='6 Externality'!M284 -> 0.02 | N103: ='6 Externality'!N284 -> 0.02 | O103: ='6 Externality'!O284 -> 0.02 | P103: ='6 Externality'!P284 -> 0.02 | Q103: ='6 Externality'!Q284 -> 0.02 | R103: ='6 Externality'!R284 -> 0.02 | S103: ='6 Externality'!S284 -> 0.01
C104: Výsledný růstový koeficient ohodnocení emisí | E104: ='6 Externality'!E285 -> 1 | F104: =E104*(1+F103) -> 1.029 | G104: 1.05987 | H104: 1.0916661 | I104: 1.113499422 | J104: 1.13576941 | K104: 1.158484799 | L104: 1.181654495 | M104: 1.205287585 | N104: 1.229393336 | O104: 1.253981203 | P104: 1.279060827 | Q104: 1.304642044 | R104: 1.330734884 | S104: 1.344042233
B106: =B101 -> 7.7. | C106: =C101 -> Změna měrných hodnot emisí | E106: =S101+1 -> 2031 | F106: =E106+1 -> 2032 | G106: 2033 | H106: 2034 | I106: 2035 | J106: 2036 | K106: 2037 | L106: 2038 | M106: 2039 | N106: 2040 | O106: 2041 | P106: 2042 | Q106: 2043 | R106: 2044 | S106: 2045
B107: b | D107: Elasticita
C108: =C103 -> Hodnota růstu HDP na hlavu (resp. prognóza) | D108: =D103 -> 1 | E108: ='6 Externality'!E289 -> 0.01 | F108: ='6 Externality'!F289 -> 0.01 | G108: ='6 Externality'!G289 -> 0.01 | H108: ='6 Externality'!H289 -> 0.01 | I108: ='6 Externality'!I289 -> 0.01 | J108: ='6 Externality'!J289 -> 0.01 | K108: ='6 Externality'!K289 -> 0.01 | L108: ='6 Externality'!L289 -> 0.01 | M108: ='6 Externality'!M289 -> 0.01 | N108: ='6 Externality'!N289 -> 0.01 | O108: ='6 Externality'!O289 -> 0.01 | P108: ='6 Externality'!P289 -> 0.01 | Q108: ='6 Externality'!Q289 -> 0.01 | R108: ='6 Externality'!R289 -> 0.01 | S108: ='6 Externality'!S289 -> 0.01
C109: =C104 -> Výsledný růstový koeficient ohodnocení emisí | E109: =S104*(1+E108) -> 1.357482656 | F109: =E109*(1+F108) -> 1.371057482 | G109: 1.384768057 | H109: 1.398615738 | I109: 1.412601895 | J109: 1.426727914 | K109: 1.440995193 | L109: 1.455405145 | M109: 1.469959196 | N109: 1.484658788 | O109: 1.499505376 | P109: 1.51450043 | Q109: 1.529645434 | R109: 1.544941889 | S109: 1.560391307
B112: Komentáře
B114: Zpracovatel uvede konkrétní hodnoty výstupů z dopravního prognózování použité při výpočtu emisí železniční dopravy. Tabulky 7.5. a 7.6. je možné přizpůsobit konkrétnímu projektu.
B115: V tabulce 7.1. a 7.2. uvede zpracovatel konkrétní výpočet pomocí vzorců, s odkazem na tabulky výkonů (tabulka 7.5. a 7.6.) a měrného ohodnocení (tabulka 7.4.).
B116: a vynásobí hodnoty v tabulce 7.1 a 7.2 hodnotou z tabulky 7.7

Sheet 8 Bezpečnost železniční dopravy
B2: 8.1. | C2: Celkové zvýšení bezpečnosti železniční dopravy (CZK) | E2: ='0 Úvod'!G19 -> 2016 | F2: =E2+1 -> 2017 | G2: 2018 | H2: 2019 | I2: 2020 | J2: 2021 | K2: 2022 | L2: 2023 | M2: 2024 | N2: 2025 | O2: 2026 | P2: 2027 | Q2: 2028 | R2: 2029 | S2: 2030
B3: a | D3: Celkem
C4: Zamezení úmrtí | D4: =SUM(E4:S4,E12:S12) -> 0
C5: Zamezení zranění | D5: =SUM(E5:S5,E13:S13) -> 0
C6: Škody na infrastruktuře | D6: 0
C7: Škody na vozidlech | D7: 0
C8: CELKEM | D8: 0 | E8: =SUM(E4:E7) -> 0 | F8: =SUM(F4:F7) -> 0 | G8: =SUM(G4:G7) -> 0 | H8: 0 | I8: 0 | J8: 0 | K8: 0 | L8: 0 | M8: 0 | N8: 0 | O8: 0 | P8: 0 | Q8: 0 | R8: 0 | S8: 0
B10: 8.1. | C10: Celkové zvýšení bezpečnosti železniční dopravy (CZK) | E10: =S2+1 -> 2031 | F10: =E10+1 -> 2032 | G10: 2033 | H10: 2034 | I10: 2035 | J10: 2036 | K10: 2037 | L10: 2038 | M10: 2039 | N10: 2040 | O10: 2041 | P10: 2042 | Q10: 2043 | R10: 2044 | S10: 2045
B11: b
C12: =IF(C4="","",C4) -> Zamezení úmrtí
C13: =IF(C5="","",C5) -> Zamezení zranění
C14: =IF(C6="","",C6) -> Škody na infrastruktuře
C15: =IF(C7="","",C7) -> Škody na vozidlech
C16: =IF(C8="","",C8) -> CELKEM | E16: =SUM(E12:E15) -> 0 | F16: 0 | G16: 0 | H16: 0 | I16: 0 | J16: 0 | K16: 0 | L16: 0 | M16: 0 | N16: 0 | O16: 0 | P16: 0 | Q16: 0 | R16: 0 | S16: 0
B19: 8.2. | C19: Celkové zvýšení bezpečnosti železniční dopravy (CZK) | E19: =E2 -> 2016 | F19: =E19+1 -> 2017 | G19: 2018 | H19: 2019 | I19: 2020 | J19: 2021 | K19: 2022 | L19: 2023 | M19: 2024 | N19: 2025 | O19: 2026 | P19: 2027 | Q19: 2028 | R19: 2029 | S19: 2030
B20: a | D20: Celkem
C21: =IF(C4="","",C4) -> Zamezení úmrtí | D21: =SUM(E21:S21,E29:S29) -> 0 | E21: =E4 -> 0 | F21: 0 | G21: 0 | H21: 0 | I21: 0 | J21: 0 | K21: 0 | L21: 0 | M21: 0 | N21: 0 | O21: 0 | P21: 0 | Q21: 0 | R21: 0 | S21: 0
C22: =IF(C5="","",C5) -> Zamezení zranění | D22: =SUM(E22:S22,E30:S30) -> 0 | E22: =E5 -> 0 | F22: 0 | G22: 0 | H22: 0 | I22: 0 | J22: 0 | K22: 0 | L22: 0 | M22: 0 | N22: 0 | O22: 0 | P22: 0 | Q22: 0 | R22: 0 | S22: 0
C23: =IF(C6="","",C6) -> Škody na infrastruktuře | D23: 0 | E23: =E6 -> 0 | F23: 0 | G23: 0 | H23: 0 | I23: 0 | J23: 0 | K23: 0 | L23: 0 | M23: 0 | N23: 0 | O23: 0 | P23: 0 | Q23: 0 | R23: 0 | S23: 0
C24: =IF(C7="","",C7) -> Škody na vozidlech | D24: 0 | E24: 0 | F24: 0 | G24: 0 | H24: 0 | I24: 0 | J24: 0 | K24: 0 | L24: 0 | M24: 0 | N24: 0 | O24: 0 | P24: 0 | Q24: 0 | R24: 0 | S24: 0
C25: =IF(C8="","",C8) -> CELKEM | D25: 0 | E25: =SUM(E21:E24) -> 0 | F25: =SUM(F21:F24) -> 0 | G25: 0 | H25: 0 | I25: 0 | J25: 0 | K25: 0 | L25: 0 | M25: 0 | N25: 0 | O25: 0 | P25: 0 | Q25: 0 | R25: 0 | S25: 0
B27: 8.2. | C27: Celkové zvýšení bezpečnosti železniční dopravy (CZK) | E27: =S19+1 -> 2031 | F27: =E27+1 -> 2032 | G27: 2033 | H27: 2034 | I27: 2035 | J27: 2036 | K27: 2037 | L27: 2038 | M27: 2039 | N27: 2040 | O27: 2041 | P27: 2042 | Q27: 2043 | R27: 2044 | S27: 2045
B28: b
C29: =IF(C12="","",C12) -> Zamezení úmrtí | E29: =E12 -> 0 | F29: =F12 -> 0 | G29: 0 | H29: 0 | I29: 0 | J29: 0 | K29: 0 | L29: 0 | M29: 0 | N29: 0 | O29: 0 | P29: 0 | Q29: 0 | R29: 0 | S29: 0
C30: =IF(C13="","",C13) -> Zamezení zranění | E30: =E13 -> 0 | F30: =F13 -> 0 | G30: 0 | H30: 0 | I30: 0 | J30: 0 | K30: 0 | L30: 0 | M30: 0 | N30: 0 | O30: 0 | P30: 0 | Q30: 0 | R30: 0 | S30: 0
C31: =IF(C14="","",C14) -> Škody na infrastruktuře | E31: =E14 -> 0 | F31: 0 | G31: 0 | H31: 0 | I31: 0 | J31: 0 | K31: 0 | L31: 0 | M31: 0 | N31: 0 | O31: 0 | P31: 0 | Q31: 0 | R31: 0 | S31: 0
C32: =IF(C15="","",C15) -> Škody na vozidlech | E32: 0 | F32: 0 | G32: 0 | H32: 0 | I32: 0 | J32: 0 | K32: 0 | L32: 0 | M32: 0 | N32: 0 | O32: 0 | P32: 0 | Q32: 0 | R32: 0 | S32: 0
C33: =IF(C16="","",C16) -> CELKEM | E33: =SUM(E29:E32) -> 0 | F33: 0 | G33: 0 | H33: 0 | I33: 0 | J33: 0 | K33: 0 | L33: 0 | M33: 0 | N33: 0 | O33: 0 | P33: 0 | Q33: 0 | R33: 0 | S33: 0
C36: Úspory (CZK) | D36: =D25 -> 0
B38: 8.3. | C38: Hodnota zamezení úmrtí a zranění | D38: CÚ | E38: úmrtí | F38: vážné zranění | G38: lehké zranění
C39: Měrná hodnota | D39: 2012 | E39: 23337530 | F39: 3163532 | G39: 226303
C40: Měrná hodnota | D40: ='0 Úvod'!D19 -> 2016
C41: Zdroj: Metodiky hodnocení efektivnosti investice - železniční infrastruktura (příloha C7), MD ČR 2013
B44: Příklad:
C45: Zdroj: Drážní úřad - výskyty mimořádných událostí
C46: Datum | D46: Druh mimořádné události | E46: Popis | F46: Místo | G46: Místo MU | H46: upřesnění | I46: Usmrcených | J46: Zraněných | K46: Škoda - Drážní vozidla | L46: Škoda - Infrastruktura | M46: Škoda - Ost. účastníci | N46: Škoda - 3. strany | O46: Škoda - Neurčeno
C55: Mimořádná událost | D55: Výskyt za 1 ROK | E55: Hodnota výskytu | F55: pst.

Sheet 9 Ostatní příjmy či náklady
B2: 9.1. | E2: ='0 Úvod'!G19 -> 2016 | F2: =E2+1 -> 2017 | G2: 2018 | H2: 2019 | I2: 2020 | J2: 2021 | K2: 2022 | L2: 2023 | M2: 2024 | N2: 2025 | O2: 2026 | P2: 2027 | Q2: 2028 | R2: 2029 | S2: 2030
B3: a | D3: Celkem
D4: =SUM(E4:S4,E12:S12) -> 0
D5: =SUM(E5:S5,E13:S13) -> 0
D6: 0
D7: 0
D8: 0 | E8: =SUM(E4:E7) -> 0 | F8: =SUM(F4:F7) -> 0 | G8: =SUM(G4:G7) -> 0 | H8: 0 | I8: 0 | J8: 0 | K8: 0 | L8: 0 | M8: 0 | N8: 0 | O8: 0 | P8: 0 | Q8: 0 | R8: 0 | S8: 0
B10: 9.1. | E10: =S2+1 -> 2031 | F10: =E10+1 -> 2032 | G10: 2033 | H10: 2034 | I10: 2035 | J10: 2036 | K10: 2037 | L10: 2038 | M10: 2039 | N10: 2040 | O10: 2041 | P10: 2042 | Q10: 2043 | R10: 2044 | S10: 2045
B11: b
C12: =IF(C4="","",C4) -> 
C13: =IF(C5="","",C5) -> 
C14: =IF(C6="","",C6) -> 
C15: =IF(C7="","",C7) -> 
C16: =IF(C8="","",C8) ->  | E16: =SUM(E12:E15) -> 0 | F16: 0 | G16: 0 | H16: 0 | I16: 0 | J16: 0 | K16: 0 | L16: 0 | M16: 0 | N16: 0 | O16: 0 | P16: 0 | Q16: 0 | R16: 0 | S16: 0
B19: 9.2. | E19: =E2 -> 2016 | F19: =E19+1 -> 2017 | G19: 2018 | H19: 2019 | I19: 2020 | J19: 2021 | K19: 2022 | L19: 2023 | M19: 2024 | N19: 2025 | O19: 2026 | P19: 2027 | Q19: 2028 | R19: 2029 | S19: 2030
B20: a | D20: Celkem
C21: =IF(C4="","",C4) ->  | D21: =SUM(E21:S21,E29:S29) -> 0 | E21: =E4 -> 0 | F21: 0 | G21: 0 | H21: 0 | I21: 0 | J21: 0 | K21: 0 | L21: 0 | M21: 0 | N21: 0 | O21: 0 | P21: 0 | Q21: 0 | R21: 0 | S21: 0
C22: =IF(C5="","",C5) ->  | D22: =SUM(E22:S22,E30:S30) -> 0 | E22: 0 | F22: 0 | G22: 0 | H22: 0 | I22: 0 | J22: 0 | K22: 0 | L22: 0 | M22: 0 | N22: 0 | O22: 0 | P22: 0 | Q22: 0 | R22: 0 | S22: 0
C23: =IF(C6="","",C6) ->  | D23: 0 | E23: 0 | F23: 0 | G23: 0 | H23: 0 | I23: 0 | J23: 0 | K23: 0 | L23: 0 | M23: 0 | N23: 0 | O23: 0 | P23: 0 | Q23: 0 | R23: 0 | S23: 0
C24: =IF(C7="","",C7) ->  | D24: 0 | E24: 0 | F24: 0 | G24: 0 | H24: 0 | I24: 0 | J24: 0 | K24: 0 | L24: 0 | M24: 0 | N24: 0 | O24: 0 | P24: 0 | Q24: 0 | R24: 0 | S24: 0
C25: =IF(C8="","",C8) ->  | D25: 0 | E25: =SUM(E21:E24) -> 0 | F25: =SUM(F21:F24) -> 0 | G25: 0 | H25: 0 | I25: 0 | J25: 0 | K25: 0 | L25: 0 | M25: 0 | N25: 0 | O25: 0 | P25: 0 | Q25: 0 | R25: 0 | S25: 0
B27: 9.2. | E27: =S19+1 -> 2031 | F27: =E27+1 -> 2032 | G27: 2033 | H27: 2034 | I27: 2035 | J27: 2036 | K27: 2037 | L27: 2038 | M27: 2039 | N27: 2040 | O27: 2041 | P27: 2042 | Q27: 2043 | R27: 2044 | S27: 2045
B28: b
C29: =IF(C12="","",C12) ->  | E29: =E12 -> 0 | F29: =F12 -> 0 | G29: 0 | H29: 0 | I29: 0 | J29: 0 | K29: 0 | L29: 0 | M29: 0 | N29: 0 | O29: 0 | P29: 0 | Q29: 0 | R29: 0 | S29: 0
C30: =IF(C13="","",C13) ->  | E30: =E13 -> 0 | F30: 0 | G30: 0 | H30: 0 | I30: 0 | J30: 0 | K30: 0 | L30: 0 | M30: 0 | N30: 0 | O30: 0 | P30: 0 | Q30: 0 | R30: 0 | S30: 0
C31: =IF(C14="","",C14) ->  | E31: =E14 -> 0 | F31: 0 | G31: 0 | H31: 0 | I31: 0 | J31: 0 | K31: 0 | L31: 0 | M31: 0 | N31: 0 | O31: 0 | P31: 0 | Q31: 0 | R31: 0 | S31: 0
C32: =IF(C15="","",C15) ->  | E32: 0 | F32: 0 | G32: 0 | H32: 0 | I32: 0 | J32: 0 | K32: 0 | L32: 0 | M32: 0 | N32: 0 | O32: 0 | P32: 0 | Q32: 0 | R32: 0 | S32: 0
C33: =IF(C16="","",C16) ->  | E33: =SUM(E29:E32) -> 0 | F33: 0 | G33: 0 | H33: 0 | I33: 0 | J33: 0 | K33: 0 | L33: 0 | M33: 0 | N33: 0 | O33: 0 | P33: 0 | Q33: 0 | R33: 0 | S33: 0
C36: Výnosy/náklady (CZK) | D36: =D25 -> 0
B39: Komentáře
B41: Mohou být zahrnuty i jiné přínosy a náklady dle konkrétního projektu. Zpracovatel uvede konkrétní vstupní hodnoty použité při výpočtu.

Sheet 10 Ekonomická analýza
B2: 10.1. | C2: Ekonomická analýza (CZK) | E2: KF | F2: ='0 Úvod'!G19 -> 2016 | G2: =F2+1 -> 2017 | H2: 2018 | I2: 2019 | J2: 2020 | K2: 2021 | L2: 2022 | M2: 2023 | N2: 2024 | O2: 2025 | P2: 2026 | Q2: 2027 | R2: 2028 | S2: 2029 | T2: 2030
B3: a | D3: Celkem
C4: Celkem provozní náklady železnice - úspora | D4: =SUM(F4:T4,F21:T21) -> 0 | E4: T3.3. | F4: =IF(F2<='0 Úvod'!$G$19+'0 Úvod'!$J$19-1,-'3 Provozní náklady železnice'!E47,0) -> 0 | G4: =IF(G2<='0 Úvod'!$G$19+'0 Úvod'!$J$19-1,-'3 Provozní náklady železnice'!F47,0) -> 0 | H4: =IF(H2<='0 Úvod'!$G$19+'0 Úvod'!$J$19-1,-'3 Provozní náklady železnice'!G47,0) -> 0 | I4: =IF(I2<='0 Úvod'!$G$19+'0 Úvod'!$J$19-1,-'3 Provozní náklady železnice'!H47,0) -> 0 | J4: =IF(J2<='0 Úvod'!$G$19+'0 Úvod'!$J$19-1,-'3 Provozní náklady železnice'!I47,0) -> 0 | K4: =IF(K2<='0 Úvod'!$G$19+'0 Úvod'!$J$19-1,-'3 Provozní náklady železnice'!J47,0) -> 0 | L4: =IF(L2<='0 Úvod'!$G$19+'0 Úvod'!$J$19-1,-'3 Provozní náklady železnice'!K47,0) -> 0 | M4: =IF(M2<='0 Úvod'!$G$19+'0 Úvod'!$J$19-1,-'3 Provozní náklady železnice'!L47,0) -> 0 | N4: =IF(N2<='0 Úvod'!$G$19+'0 Úvod'!$J$19-1,-'3 Provozní náklady železnice'!M47,0) -> 0 | O4: =IF(O2<='0 Úvod'!$G$19+'0 Úvod'!$J$19-1,-'3 Provozní náklady železnice'!N47,0) -> 0 | P4: =IF(P2<='0 Úvod'!$G$19+'0 Úvod'!$J$19-1,-'3 Provozní náklady železnice'!O47,0) -> 0 | Q4: =IF(Q2<='0 Úvod'!$G$19+'0 Úvod'!$J$19-1,-'3 Provozní náklady železnice'!P47,0) -> 0 | R4: =IF(R2<='0 Úvod'!$G$19+'0 Úvod'!$J$19-1,-'3 Provozní náklady železnice'!Q47,0) -> 0 | S4: =IF(S2<='0 Úvod'!$G$19+'0 Úvod'!$J$19-1,-'3 Provozní náklady železnice'!R47,0) -> 0 | T4: =IF(T2<='0 Úvod'!$G$19+'0 Úvod'!$J$19-1,-'3 Provozní náklady železnice'!S47,0) -> 0
C5: Celkem úspory v silniční dopravě | D5: =SUM(F5:T5,F22:T22) -> 0 | F5: =IF(F2<='0 Úvod'!$G$19+'0 Úvod'!$J$19-1,'4 Úspory v silniční dopravě'!E31,0) -> 0 | G5: =IF(G2<='0 Úvod'!$G$19+'0 Úvod'!$J$19-1,'4 Úspory v silniční dopravě'!F31,0) -> 0 | H5: =IF(H2<='0 Úvod'!$G$19+'0 Úvod'!$J$19-1,'4 Úspory v silniční dopravě'!G31,0) -> 0 | I5: =IF(I2<='0 Úvod'!$G$19+'0 Úvod'!$J$19-1,'4 Úspory v silniční dopravě'!H31,0) -> 0 | J5: =IF(J2<='0 Úvod'!$G$19+'0 Úvod'!$J$19-1,'4 Úspory v silniční dopravě'!I31,0) -> 0 | K5: =IF(K2<='0 Úvod'!$G$19+'0 Úvod'!$J$19-1,'4 Úspory v silniční dopravě'!J31,0) -> 0 | L5: =IF(L2<='0 Úvod'!$G$19+'0 Úvod'!$J$19-1,'4 Úspory v silniční dopravě'!K31,0) -> 0 | M5: =IF(M2<='0 Úvod'!$G$19+'0 Úvod'!$J$19-1,'4 Úspory v silniční dopravě'!L31,0) -> 0 | N5: =IF(N2<='0 Úvod'!$G$19+'0 Úvod'!$J$19-1,'4 Úspory v silniční dopravě'!M31,0) -> 0 | O5: =IF(O2<='0 Úvod'!$G$19+'0 Úvod'!$J$19-1,'4 Úspory v silniční dopravě'!N31,0) -> 0 | P5: =IF(P2<='0 Úvod'!$G$19+'0 Úvod'!$J$19-1,'4 Úspory v silniční dopravě'!O31,0) -> 0 | Q5: =IF(Q2<='0 Úvod'!$G$19+'0 Úvod'!$J$19-1,'4 Úspory v silniční dopravě'!P31,0) -> 0 | R5: =IF(R2<='0 Úvod'!$G$19+'0 Úvod'!$J$19-1,'4 Úspory v silniční dopravě'!Q31,0) -> 0 | S5: =IF(S2<='0 Úvod'!$G$19+'0 Úvod'!$J$19-1,'4 Úspory v silniční dopravě'!R31,0) -> 0 | T5: =IF(T2<='0 Úvod'!$G$19+'0 Úvod'!$J$19-1,'4 Úspory v silniční dopravě'!S31,0) -> 0
C6: Celkem úspory z cestovních dob | D6: 0 | F6: =IF(F2<='0 Úvod'!$G$19+'0 Úvod'!$J$19-1,'5 Úspory z cestovních dob'!E58,0) -> 0 | G6: =IF(G2<='0 Úvod'!$G$19+'0 Úvod'!$J$19-1,'5 Úspory z cestovních dob'!F58,0) -> 0 | H6: =IF(H2<='0 Úvod'!$G$19+'0 Úvod'!$J$19-1,'5 Úspory z cestovních dob'!G58,0) -> 0 | I6: =IF(I2<='0 Úvod'!$G$19+'0 Úvod'!$J$19-1,'5 Úspory z cestovních dob'!H58,0) -> 0 | J6: =IF(J2<='0 Úvod'!$G$19+'0 Úvod'!$J$19-1,'5 Úspory z cestovních dob'!I58,0) -> 0 | K6: =IF(K2<='0 Úvod'!$G$19+'0 Úvod'!$J$19-1,'5 Úspory z cestovních dob'!J58,0) -> 0 | L6: =IF(L2<='0 Úvod'!$G$19+'0 Úvod'!$J$19-1,'5 Úspory z cestovních dob'!K58,0) -> 0 | M6: =IF(M2<='0 Úvod'!$G$19+'0 Úvod'!$J$19-1,'5 Úspory z cestovních dob'!L58,0) -> 0 | N6: =IF(N2<='0 Úvod'!$G$19+'0 Úvod'!$J$19-1,'5 Úspory z cestovních dob'!M58,0) -> 0 | O6: =IF(O2<='0 Úvod'!$G$19+'0 Úvod'!$J$19-1,'5 Úspory z cestovních dob'!N58,0) -> 0 | P6: =IF(P2<='0 Úvod'!$G$19+'0 Úvod'!$J$19-1,'5 Úspory z cestovních dob'!O58,0) -> 0 | Q6: =IF(Q2<='0 Úvod'!$G$19+'0 Úvod'!$J$19-1,'5 Úspory z cestovních dob'!P58,0) -> 0 | R6: =IF(R2<='0 Úvod'!$G$19+'0 Úvod'!$J$19-1,'5 Úspory z cestovních dob'!Q58,0) -> 0 | S6: =IF(S2<='0 Úvod'!$G$19+'0 Úvod'!$J$19-1,'5 Úspory z cestovních dob'!R58,0) -> 0 | T6: =IF(T2<='0 Úvod'!$G$19+'0 Úvod'!$J$19-1,'5 Úspory z cestovních dob'!S58,0) -> 0
C7: Celkem externality (vč. emisí ze železniční dopravy) | D7: 0 | F7: =IF(F2<='0 Úvod'!$G$19+'0 Úvod'!$J$19-1,'6 Externality'!E78+'7 Emise ze železniční dopravy'!E42,0) -> 0 | G7: =IF(G2<='0 Úvod'!$G$19+'0 Úvod'!$J$19-1,'6 Externality'!F78+'7 Emise ze železniční dopravy'!F42,0) -> 0 | H7: =IF(H2<='0 Úvod'!$G$19+'0 Úvod'!$J$19-1,'6 Externality'!G78+'7 Emise ze železniční dopravy'!G42,0) -> 0 | I7: =IF(I2<='0 Úvod'!$G$19+'0 Úvod'!$J$19-1,'6 Externality'!H78+'7 Emise ze železniční dopravy'!H42,0) -> 0 | J7: =IF(J2<='0 Úvod'!$G$19+'0 Úvod'!$J$19-1,'6 Externality'!I78+'7 Emise ze železniční dopravy'!I42,0) -> 0 | K7: =IF(K2<='0 Úvod'!$G$19+'0 Úvod'!$J$19-1,'6 Externality'!J78+'7 Emise ze železniční dopravy'!J42,0) -> 0 | L7: =IF(L2<='0 Úvod'!$G$19+'0 Úvod'!$J$19-1,'6 Externality'!K78+'7 Emise ze železniční dopravy'!K42,0) -> 0 | M7: =IF(M2<='0 Úvod'!$G$19+'0 Úvod'!$J$19-1,'6 Externality'!L78+'7 Emise ze železniční dopravy'!L42,0) -> 0 | N7: =IF(N2<='0 Úvod'!$G$19+'0 Úvod'!$J$19-1,'6 Externality'!M78+'7 Emise ze železniční dopravy'!M42,0) -> 0 | O7: =IF(O2<='0 Úvod'!$G$19+'0 Úvod'!$J$19-1,'6 Externality'!N78+'7 Emise ze železniční dopravy'!N42,0) -> 0 | P7: =IF(P2<='0 Úvod'!$G$19+'0 Úvod'!$J$19-1,'6 Externality'!O78+'7 Emise ze železniční dopravy'!O42,0) -> 0 | Q7: =IF(Q2<='0 Úvod'!$G$19+'0 Úvod'!$J$19-1,'6 Externality'!P78+'7 Emise ze železniční dopravy'!P42,0) -> 0 | R7: =IF(R2<='0 Úvod'!$G$19+'0 Úvod'!$J$19-1,'6 Externality'!Q78+'7 Emise ze železniční dopravy'!Q42,0) -> 0 | S7: =IF(S2<='0 Úvod'!$G$19+'0 Úvod'!$J$19-1,'6 Externality'!R78+'7 Emise ze železniční dopravy'!R42,0) -> 0 | T7: =IF(T2<='0 Úvod'!$G$19+'0 Úvod'!$J$19-1,'6 Externality'!S78+'7 Emise ze železniční dopravy'!S42,0) -> 0
C8: Celkem zvýšení bezpečnosti železniční dopravy | D8: 0 | F8: =IF(F2<='0 Úvod'!$G$19+'0 Úvod'!$J$19-1,'8 Bezpečnost železniční dopravy'!E25,0) -> 0 | G8: =IF(G2<='0 Úvod'!$G$19+'0 Úvod'!$J$19-1,'8 Bezpečnost železniční dopravy'!F25,0) -> 0 | H8: =IF(H2<='0 Úvod'!$G$19+'0 Úvod'!$J$19-1,'8 Bezpečnost železniční dopravy'!G25,0) -> 0 | I8: =IF(I2<='0 Úvod'!$G$19+'0 Úvod'!$J$19-1,'8 Bezpečnost železniční dopravy'!H25,0) -> 0 | J8: =IF(J2<='0 Úvod'!$G$19+'0 Úvod'!$J$19-1,'8 Bezpečnost železniční dopravy'!I25,0) -> 0 | K8: =IF(K2<='0 Úvod'!$G$19+'0 Úvod'!$J$19-1,'8 Bezpečnost železniční dopravy'!J25,0) -> 0 | L8: =IF(L2<='0 Úvod'!$G$19+'0 Úvod'!$J$19-1,'8 Bezpečnost železniční dopravy'!K25,0) -> 0 | M8: =IF(M2<='0 Úvod'!$G$19+'0 Úvod'!$J$19-1,'8 Bezpečnost železniční dopravy'!L25,0) -> 0 | N8: =IF(N2<='0 Úvod'!$G$19+'0 Úvod'!$J$19-1,'8 Bezpečnost železniční dopravy'!M25,0) -> 0 | O8: =IF(O2<='0 Úvod'!$G$19+'0 Úvod'!$J$19-1,'8 Bezpečnost železniční dopravy'!N25,0) -> 0 | P8: =IF(P2<='0 Úvod'!$G$19+'0 Úvod'!$J$19-1,'8 Bezpečnost železniční dopravy'!O25,0) -> 0 | Q8: =IF(Q2<='0 Úvod'!$G$19+'0 Úvod'!$J$19-1,'8 Bezpečnost železniční dopravy'!P25,0) -> 0 | R8: =IF(R2<='0 Úvod'!$G$19+'0 Úvod'!$J$19-1,'8 Bezpečnost železniční dopravy'!Q25,0) -> 0 | S8: =IF(S2<='0 Úvod'!$G$19+'0 Úvod'!$J$19-1,'8 Bezpečnost železniční dopravy'!R25,0) -> 0 | T8: =IF(T2<='0 Úvod'!$G$19+'0 Úvod'!$J$19-1,'8 Bezpečnost železniční dopravy'!S25,0) -> 0
C9: Ostatní přínosy | D9: 0
C10: Celkové příjmy | D10: =SUM(D4:D9) -> 0 | F10: =SUM(F4:F9) -> 0 | G10: 0 | H10: 0 | I10: 0 | J10: 0 | K10: 0 | L10: 0 | M10: 0 | N10: 0 | O10: 0 | P10: 0 | Q10: 0 | R10: 0 | S10: 0 | T10: 0
C11: Ostatní náklady | D11: =SUM(F11:T11,F28:T28) -> 0
C12: Celkem investiční náklady bez rezervy | D12: =SUM(F12:T12,F29:T29) -> 0 | E12: 0.93 | F12: ='1 Celkové investiční náklady'!G11*$E$12 -> 0 | G12: ='1 Celkové investiční náklady'!H11*$E$12 -> 0 | H12: ='1 Celkové investiční náklady'!I11*$E$12 -> 0 | I12: ='1 Celkové investiční náklady'!J11*$E$12 -> 0 | J12: ='1 Celkové investiční náklady'!K11*$E$12 -> 0 | K12: ='1 Celkové investiční náklady'!L11*$E$12 -> 0 | L12: ='1 Celkové investiční náklady'!M11*$E$12 -> 0 | M12: ='1 Celkové investiční náklady'!N11*$E$12 -> 0 | N12: ='1 Celkové investiční náklady'!O11*$E$12 -> 0 | O12: ='1 Celkové investiční náklady'!P11*$E$12 -> 0 | P12: ='1 Celkové investiční náklady'!Q11*$E$12 -> 0 | Q12: ='1 Celkové investiční náklady'!R11*$E$12 -> 0 | R12: ='1 Celkové investiční náklady'!S11*$E$12 -> 0 | S12: ='1 Celkové investiční náklady'!T11*$E$12 -> 0 | T12: ='1 Celkové investiční náklady'!U11*$E$12 -> 0
C13: Zůstatková hodnota (záporná) | F13: =IF(F2='0 Úvod'!$G$19+'0 Úvod'!$J$19-1,-1*'2 Zůstatková hodnota'!$I$8,0) -> 0 | G13: =IF(G2='0 Úvod'!$G$19+'0 Úvod'!$J$19-1,-1*'2 Zůstatková hodnota'!$I$8,0) -> 0 | H13: =IF(H2='0 Úvod'!$G$19+'0 Úvod'!$J$19-1,-1*'2 Zůstatková hodnota'!$I$8,0) -> 0 | I13: =IF(I2='0 Úvod'!$G$19+'0 Úvod'!$J$19-1,-1*'2 Zůstatková hodnota'!$I$8,0) -> 0 | J13: =IF(J2='0 Úvod'!$G$19+'0 Úvod'!$J$19-1,-1*'2 Zůstatková hodnota'!$I$8,0) -> 0 | K13: =IF(K2='0 Úvod'!$G$19+'0 Úvod'!$J$19-1,-1*'2 Zůstatková hodnota'!$I$8,0) -> 0 | L13: =IF(L2='0 Úvod'!$G$19+'0 Úvod'!$J$19-1,-1*'2 Zůstatková hodnota'!$I$8,0) -> 0 | M13: =IF(M2='0 Úvod'!$G$19+'0 Úvod'!$J$19-1,-1*'2 Zůstatková hodnota'!$I$8,0) -> 0 | N13: =IF(N2='0 Úvod'!$G$19+'0 Úvod'!$J$19-1,-1*'2 Zůstatková hodnota'!$I$8,0) -> 0 | O13: =IF(O2='0 Úvod'!$G$19+'0 Úvod'!$J$19-1,-1*'2 Zůstatková hodnota'!$I$8,0) -> 0 | P13: =IF(P2='0 Úvod'!$G$19+'0 Úvod'!$J$19-1,-1*'2 Zůstatková hodnota'!$I$8,0) -> 0 | Q13: =IF(Q2='0 Úvod'!$G$19+'0 Úvod'!$J$19-1,-1*'2 Zůstatková hodnota'!$I$8,0) -> 0 | R13: =IF(R2='0 Úvod'!$G$19+'0 Úvod'!$J$19-1,-1*'2 Zůstatková hodnota'!$I$8,0) -> 0 | S13: =IF(S2='0 Úvod'!$G$19+'0 Úvod'!$J$19-1,-1*'2 Zůstatková hodnota'!$I$8,0) -> 0 | T13: =IF(T2='0 Úvod'!$G$19+'0 Úvod'!$J$19-1,-1*'2 Zůstatková hodnota'!$I$8,0) -> 0
C14: Celkové náklady | D14: =SUM(D11:D13) ->  | F14: =SUM(F11:F13) -> 0 | G14: 0 | H14: 0 | I14: 0 | J14: 0 | K14: 0 | L14: 0 | M14: 0 | N14: 0 | O14: 0 | P14: 0 | Q14: 0 | R14: 0 | S14: 0 | T14: 0
C15: Cash Flow | D15: =SUM(F15:T15,F32:T32) ->  | F15: =F10-F14 -> 0 | G15: 0 | H15: 0 | I15: 0 | J15: 0 | K15: 0 | L15: 0 | M15: 0 | N15: 0 | O15: 0 | P15: 0 | Q15: 0 | R15: 0 | S15: 0 | T15: 0
C16: Diskontní sazba | D16: ='0 Úvod'!D21 -> 0.05 | F16: 1 | G16: =F16/(1+$D$16) -> 0.9523809524 | H16: =G16/(1+$D$16) -> 0.9070294785 | I16: 0.8638375985 | J16: 0.8227024748 | K16: 0.7835261665 | L16: 0.7462153966 | M16: 0.7106813301 | N16: 0.676839362 | O16: 0.6446089162 | P16: 0.6139132535 | Q16: 0.5846792891 | R16: 0.5568374182 | S16: 0.5303213506 | T16: 0.505067953
C17: Diskontní cash flow | D17: =SUM(F17:T17,F34:T34) ->  | F17: =F15*F16 -> 0 | G17: =G15*G16 -> 0 | H17: 0 | I17: 0 | J17: 0 | K17: 0 | L17: 0 | M17: 0 | N17: 0 | O17: 0 | P17: 0 | Q17: 0 | R17: 0 | S17: 0 | T17: 0
F18: =IF(F2>='0 Úvod'!$G$21,F4,0) -> 0 | G18: =IF(G2>='0 Úvod'!$G$21,G4,0) -> 0 | H18: =IF(H2>='0 Úvod'!$G$21,H4,0) -> 0 | I18: =IF(I2>='0 Úvod'!$G$21,I4,0) -> 0 | J18: =IF(J2>='0 Úvod'!$G$21,J4,0) -> 0 | K18: =IF(K2>='0 Úvod'!$G$21,K4,0) -> 0 | L18: =IF(L2>='0 Úvod'!$G$21,L4,0) -> 0 | M18: =IF(M2>='0 Úvod'!$G$21,M4,0) -> 0 | N18: =IF(N2>='0 Úvod'!$G$21,N4,0) -> 0 | O18: =IF(O2>='0 Úvod'!$G$21,O4,0) -> 0 | P18: =IF(P2>='0 Úvod'!$G$21,P4,0) -> 0 | Q18: =IF(Q2>='0 Úvod'!$G$21,Q4,0) -> 0 | R18: =IF(R2>='0 Úvod'!$G$21,R4,0) -> 0 | S18: =IF(S2>='0 Úvod'!$G$21,S4,0) -> 0 | T18: =IF(T2>='0 Úvod'!$G$21,T4,0) -> 0
B19: =B2 -> 10.1. | C19: =C2 -> Ekonomická analýza (CZK) | E19: KF | F19: =T2+1 -> 2031 | G19: =F19+1 -> 2032 | H19: 2033 | I19: 2034 | J19: 2035 | K19: 2036 | L19: 2037 | M19: 2038 | N19: 2039 | O19: 2040 | P19: 2041 | Q19: 2042 | R19: 2043 | S19: 2044 | T19: 2045
B20: b
C21: =C4 -> Celkem provozní náklady železnice - úspora | F21: =IF(F19<='0 Úvod'!$G$19+'0 Úvod'!$J$19-1,-'3 Provozní náklady železnice'!E56,0) -> 0 | G21: =IF(G19<='0 Úvod'!$G$19+'0 Úvod'!$J$19-1,-'3 Provozní náklady železnice'!F56,0) -> 0 | H21: =IF(H19<='0 Úvod'!$G$19+'0 Úvod'!$J$19-1,-'3 Provozní náklady železnice'!G56,0) -> 0 | I21: =IF(I19<='0 Úvod'!$G$19+'0 Úvod'!$J$19-1,-'3 Provozní náklady železnice'!H56,0) -> 0 | J21: =IF(J19<='0 Úvod'!$G$19+'0 Úvod'!$J$19-1,-'3 Provozní náklady železnice'!I56,0) -> 0 | K21: =IF(K19<='0 Úvod'!$G$19+'0 Úvod'!$J$19-1,-'3 Provozní náklady železnice'!J56,0) -> 0 | L21: =IF(L19<='0 Úvod'!$G$19+'0 Úvod'!$J$19-1,-'3 Provozní náklady železnice'!K56,0) -> 0 | M21: =IF(M19<='0 Úvod'!$G$19+'0 Úvod'!$J$19-1,-'3 Provozní náklady železnice'!L56,0) -> 0 | N21: =IF(N19<='0 Úvod'!$G$19+'0 Úvod'!$J$19-1,-'3 Provozní náklady železnice'!M56,0) -> 0 | O21: =IF(O19<='0 Úvod'!$G$19+'0 Úvod'!$J$19-1,-'3 Provozní náklady železnice'!N56,0) -> 0 | P21: =IF(P19<='0 Úvod'!$G$19+'0 Úvod'!$J$19-1,-'3 Provozní náklady železnice'!O56,0) -> 0 | Q21: =IF(Q19<='0 Úvod'!$G$19+'0 Úvod'!$J$19-1,-'3 Provozní náklady železnice'!P56,0) -> 0 | R21: =IF(R19<='0 Úvod'!$G$19+'0 Úvod'!$J$19-1,-'3 Provozní náklady železnice'!Q56,0) -> 0 | S21: =IF(S19<='0 Úvod'!$G$19+'0 Úvod'!$J$19-1,-'3 Provozní náklady železnice'!R56,0) -> 0 | T21: =IF(T19<='0 Úvod'!$G$19+'0 Úvod'!$J$19-1,-'3 Provozní náklady železnice'!S56,0) -> 0
C22: Celkem úspory v silniční dopravě | F22: =IF(F19<='0 Úvod'!$G$19+'0 Úvod'!$J$19-1,'4 Úspory v silniční dopravě'!E41,0) -> 0 | G22: =IF(G19<='0 Úvod'!$G$19+'0 Úvod'!$J$19-1,'4 Úspory v silniční dopravě'!F41,0) -> 0 | H22: =IF(H19<='0 Úvod'!$G$19+'0 Úvod'!$J$19-1,'4 Úspory v silniční dopravě'!G41,0) -> 0 | I22: =IF(I19<='0 Úvod'!$G$19+'0 Úvod'!$J$19-1,'4 Úspory v silniční dopravě'!H41,0) -> 0 | J22: =IF(J19<='0 Úvod'!$G$19+'0 Úvod'!$J$19-1,'4 Úspory v silniční dopravě'!I41,0) -> 0 | K22: =IF(K19<='0 Úvod'!$G$19+'0 Úvod'!$J$19-1,'4 Úspory v silniční dopravě'!J41,0) -> 0 | L22: =IF(L19<='0 Úvod'!$G$19+'0 Úvod'!$J$19-1,'4 Úspory v silniční dopravě'!K41,0) -> 0 | M22: =IF(M19<='0 Úvod'!$G$19+'0 Úvod'!$J$19-1,'4 Úspory v silniční dopravě'!L41,0) -> 0 | N22: =IF(N19<='0 Úvod'!$G$19+'0 Úvod'!$J$19-1,'4 Úspory v silniční dopravě'!M41,0) -> 0 | O22: =IF(O19<='0 Úvod'!$G$19+'0 Úvod'!$J$19-1,'4 Úspory v silniční dopravě'!N41,0) -> 0 | P22: =IF(P19<='0 Úvod'!$G$19+'0 Úvod'!$J$19-1,'4 Úspory v silniční dopravě'!O41,0) -> 0 | Q22: =IF(Q19<='0 Úvod'!$G$19+'0 Úvod'!$J$19-1,'4 Úspory v silniční dopravě'!P41,0) -> 0 | R22: =IF(R19<='0 Úvod'!$G$19+'0 Úvod'!$J$19-1,'4 Úspory v silniční dopravě'!Q41,0) -> 0 | S22: =IF(S19<='0 Úvod'!$G$19+'0 Úvod'!$J$19-1,'4 Úspory v silniční dopravě'!R41,0) -> 0 | T22: =IF(T19<='0 Úvod'!$G$19+'0 Úvod'!$J$19-1,'4 Úspory v silniční dopravě'!S41,0) -> 0
C23: Celkem úspory z cestovních dob | F23: =IF(F19<='0 Úvod'!$G$19+'0 Úvod'!$J$19-1,'5 Úspory z cestovních dob'!E65,0) -> 0 | G23: =IF(G19<='0 Úvod'!$G$19+'0 Úvod'!$J$19-1,'5 Úspory z cestovních dob'!F65,0) -> 0 | H23: =IF(H19<='0 Úvod'!$G$19+'0 Úvod'!$J$19-1,'5 Úspory z cestovních dob'!G65,0) -> 0 | I23: =IF(I19<='0 Úvod'!$G$19+'0 Úvod'!$J$19-1,'5 Úspory z cestovních dob'!H65,0) -> 0 | J23: =IF(J19<='0 Úvod'!$G$19+'0 Úvod'!$J$19-1,'5 Úspory z cestovních dob'!I65,0) -> 0 | K23: =IF(K19<='0 Úvod'!$G$19+'0 Úvod'!$J$19-1,'5 Úspory z cestovních dob'!J65,0) -> 0 | L23: =IF(L19<='0 Úvod'!$G$19+'0 Úvod'!$J$19-1,'5 Úspory z cestovních dob'!K65,0) -> 0 | M23: =IF(M19<='0 Úvod'!$G$19+'0 Úvod'!$J$19-1,'5 Úspory z cestovních dob'!L65,0) -> 0 | N23: =IF(N19<='0 Úvod'!$G$19+'0 Úvod'!$J$19-1,'5 Úspory z cestovních dob'!M65,0) -> 0 | O23: =IF(O19<='0 Úvod'!$G$19+'0 Úvod'!$J$19-1,'5 Úspory z cestovních dob'!N65,0) -> 0 | P23: =IF(P19<='0 Úvod'!$G$19+'0 Úvod'!$J$19-1,'5 Úspory z cestovních dob'!O65,0) -> 0 | Q23: =IF(Q19<='0 Úvod'!$G$19+'0 Úvod'!$J$19-1,'5 Úspory z cestovních dob'!P65,0) -> 0 | R23: =IF(R19<='0 Úvod'!$G$19+'0 Úvod'!$J$19-1,'5 Úspory z cestovních dob'!Q65,0) -> 0 | S23: =IF(S19<='0 Úvod'!$G$19+'0 Úvod'!$J$19-1,'5 Úspory z cestovních dob'!R65,0) -> 0 | T23: =IF(T19<='0 Úvod'!$G$19+'0 Úvod'!$J$19-1,'5 Úspory z cestovních dob'!S65,0) -> 0
C24: Celkem externality (vč. emisí ze železniční dopravy) | F24: =IF(F19<='0 Úvod'!$G$19+'0 Úvod'!$J$19-1,'6 Externality'!E90+'7 Emise ze železniční dopravy'!E50,0) -> 0 | G24: =IF(G19<='0 Úvod'!$G$19+'0 Úvod'!$J$19-1,'6 Externality'!F90+'7 Emise ze železniční dopravy'!F50,0) -> 0 | H24: =IF(H19<='0 Úvod'!$G$19+'0 Úvod'!$J$19-1,'6 Externality'!G90+'7 Emise ze železniční dopravy'!G50,0) -> 0 | I24: =IF(I19<='0 Úvod'!$G$19+'0 Úvod'!$J$19-1,'6 Externality'!H90+'7 Emise ze železniční dopravy'!H50,0) -> 0 | J24: =IF(J19<='0 Úvod'!$G$19+'0 Úvod'!$J$19-1,'6 Externality'!I90+'7 Emise ze železniční dopravy'!I50,0) -> 0 | K24: =IF(K19<='0 Úvod'!$G$19+'0 Úvod'!$J$19-1,'6 Externality'!J90+'7 Emise ze železniční dopravy'!J50,0) -> 0 | L24: =IF(L19<='0 Úvod'!$G$19+'0 Úvod'!$J$19-1,'6 Externality'!K90+'7 Emise ze železniční dopravy'!K50,0) -> 0 | M24: =IF(M19<='0 Úvod'!$G$19+'0 Úvod'!$J$19-1,'6 Externality'!L90+'7 Emise ze železniční dopravy'!L50,0) -> 0 | N24: =IF(N19<='0 Úvod'!$G$19+'0 Úvod'!$J$19-1,'6 Externality'!M90+'7 Emise ze železniční dopravy'!M50,0) -> 0 | O24: =IF(O19<='0 Úvod'!$G$19+'0 Úvod'!$J$19-1,'6 Externality'!N90+'7 Emise ze železniční dopravy'!N50,0) -> 0 | P24: =IF(P19<='0 Úvod'!$G$19+'0 Úvod'!$J$19-1,'6 Externality'!O90+'7 Emise ze železniční dopravy'!O50,0) -> 0 | Q24: =IF(Q19<='0 Úvod'!$G$19+'0 Úvod'!$J$19-1,'6 Externality'!P90+'7 Emise ze železniční dopravy'!P50,0) -> 0 | R24: =IF(R19<='0 Úvod'!$G$19+'0 Úvod'!$J$19-1,'6 Externality'!Q90+'7 Emise ze železniční dopravy'!Q50,0) -> 0 | S24: =IF(S19<='0 Úvod'!$G$19+'0 Úvod'!$J$19-1,'6 Externality'!R90+'7 Emise ze železniční dopravy'!R50,0) -> 0 | T24: =IF(T19<='0 Úvod'!$G$19+'0 Úvod'!$J$19-1,'6 Externality'!S90+'7 Emise ze železniční dopravy'!S50,0) -> 0
C25: Celkem zvýšení bezpečnosti železniční dopravy | F25: =IF(F19<='0 Úvod'!$G$19+'0 Úvod'!$J$19-1,'8 Bezpečnost železniční dopravy'!E33,0) -> 0 | G25: =IF(G19<='0 Úvod'!$G$19+'0 Úvod'!$J$19-1,'8 Bezpečnost železniční dopravy'!F33,0) -> 0 | H25: =IF(H19<='0 Úvod'!$G$19+'0 Úvod'!$J$19-1,'8 Bezpečnost železniční dopravy'!G33,0) -> 0 | I25: =IF(I19<='0 Úvod'!$G$19+'0 Úvod'!$J$19-1,'8 Bezpečnost železniční dopravy'!H33,0) -> 0 | J25: =IF(J19<='0 Úvod'!$G$19+'0 Úvod'!$J$19-1,'8 Bezpečnost železniční dopravy'!I33,0) -> 0 | K25: =IF(K19<='0 Úvod'!$G$19+'0 Úvod'!$J$19-1,'8 Bezpečnost železniční dopravy'!J33,0) -> 0 | L25: =IF(L19<='0 Úvod'!$G$19+'0 Úvod'!$J$19-1,'8 Bezpečnost železniční dopravy'!K33,0) -> 0 | M25: =IF(M19<='0 Úvod'!$G$19+'0 Úvod'!$J$19-1,'8 Bezpečnost železniční dopravy'!L33,0) -> 0 | N25: =IF(N19<='0 Úvod'!$G$19+'0 Úvod'!$J$19-1,'8 Bezpečnost železniční dopravy'!M33,0) -> 0 | O25: =IF(O19<='0 Úvod'!$G$19+'0 Úvod'!$J$19-1,'8 Bezpečnost železniční dopravy'!N33,0) -> 0 | P25: =IF(P19<='0 Úvod'!$G$19+'0 Úvod'!$J$19-1,'8 Bezpečnost železniční dopravy'!O33,0) -> 0 | Q25: =IF(Q19<='0 Úvod'!$G$19+'0 Úvod'!$J$19-1,'8 Bezpečnost železniční dopravy'!P33,0) -> 0 | R25: =IF(R19<='0 Úvod'!$G$19+'0 Úvod'!$J$19-1,'8 Bezpečnost železniční dopravy'!Q33,0) -> 0 | S25: =IF(S19<='0 Úvod'!$G$19+'0 Úvod'!$J$19-1,'8 Bezpečnost železniční dopravy'!R33,0) -> 0 | T25: =IF(T19<='0 Úvod'!$G$19+'0 Úvod'!$J$19-1,'8 Bezpečnost železniční dopravy'!S33,0) -> 0
C26: Ostatní přínosy
C27: Celkové příjmy | F27: =SUM(F21:F26) -> 0 | G27: =SUM(G21:G26) -> 0 | H27: 0 | I27: 0 | J27: 0 | K27: 0 | L27: 0 | M27: 0 | N27: 0 | O27: 0 | P27: 0 | Q27: 0 | R27: 0 | S27: 0 | T27: 0
C28: =C11 -> Ostatní náklady
C29: Celkem investiční náklady bez rezervy | F29: ='1 Celkové investiční náklady'!G26*$E$12 -> 0 | G29: ='1 Celkové investiční náklady'!H26*$E$12 -> 0 | H29: ='1 Celkové investiční náklady'!I26*$E$12 -> 0 | I29: ='1 Celkové investiční náklady'!J26*$E$12 -> 0 | J29: ='1 Celkové investiční náklady'!K26*$E$12 -> 0 | K29: ='1 Celkové investiční náklady'!L26*$E$12 -> 0 | L29: ='1 Celkové investiční náklady'!M26*$E$12 -> 0 | M29: ='1 Celkové investiční náklady'!N26*$E$12 -> 0 | N29: ='1 Celkové investiční náklady'!O26*$E$12 -> 0 | O29: ='1 Celkové investiční náklady'!P26*$E$12 -> 0 | P29: ='1 Celkové investiční náklady'!Q26*$E$12 -> 0 | Q29: ='1 Celkové investiční náklady'!R26*$E$12 -> 0 | R29: ='1 Celkové investiční náklady'!S26*$E$12 -> 0 | S29: ='1 Celkové investiční náklady'!T26*$E$12 -> 0 | T29: ='1 Celkové investiční náklady'!U26*$E$12 -> 0
C30: Zůstatková hodnota (záporná) | F30: =IF(F19='0 Úvod'!$G$19+'0 Úvod'!$J$19-1,-1*'2 Zůstatková hodnota'!$I$8,0) -> 0 | G30: =IF(G19='0 Úvod'!$G$19+'0 Úvod'!$J$19-1,-1*'2 Zůstatková hodnota'!$I$8,0) -> 0 | H30: =IF(H19='0 Úvod'!$G$19+'0 Úvod'!$J$19-1,-1*'2 Zůstatková hodnota'!$I$8,0) -> 0 | I30: =IF(I19='0 Úvod'!$G$19+'0 Úvod'!$J$19-1,-1*'2 Zůstatková hodnota'!$I$8,0) -> 0 | J30: =IF(J19='0 Úvod'!$G$19+'0 Úvod'!$J$19-1,-1*'2 Zůstatková hodnota'!$I$8,0) -> 0 | K30: =IF(K19='0 Úvod'!$G$19+'0 Úvod'!$J$19-1,-1*'2 Zůstatková hodnota'!$I$8,0) -> 0 | L30: =IF(L19='0 Úvod'!$G$19+'0 Úvod'!$J$19-1,-1*'2 Zůstatková hodnota'!$I$8,0) -> 0 | M30: =IF(M19='0 Úvod'!$G$19+'0 Úvod'!$J$19-1,-1*'2 Zůstatková hodnota'!$I$8,0) -> 0 | N30: =IF(N19='0 Úvod'!$G$19+'0 Úvod'!$J$19-1,-1*'2 Zůstatková hodnota'!$I$8,0) -> 0 | O30: =IF(O19='0 Úvod'!$G$19+'0 Úvod'!$J$19-1,-1*'2 Zůstatková hodnota'!$I$8,0) -> 0 | P30: =IF(P19='0 Úvod'!$G$19+'0 Úvod'!$J$19-1,-1*'2 Zůstatková hodnota'!$I$8,0) -> 0 | Q30: =IF(Q19='0 Úvod'!$G$19+'0 Úvod'!$J$19-1,-1*'2 Zůstatková hodnota'!$I$8,0) -> 0 | R30: =IF(R19='0 Úvod'!$G$19+'0 Úvod'!$J$19-1,-1*'2 Zůstatková hodnota'!$I$8,0) -> 0 | S30: =IF(S19='0 Úvod'!$G$19+'0 Úvod'!$J$19-1,-1*'2 Zůstatková hodnota'!$I$8,0) -> 0 | T30: =IF(T19='0 Úvod'!$G$19+'0 Úvod'!$J$19-1,-1*'2 Zůstatková hodnota'!$I$8,0) -> 
C31: Celkové náklady | F31: =SUM(F28:F30) -> 0 | G31: =SUM(G28:G30) -> 0 | H31: 0 | I31: 0 | J31: 0 | K31: 0 | L31: 0 | M31: 0 | N31: 0 | O31: 0 | P31: 0 | Q31: 0 | R31: 0 | S31: 0
C32: Cash Flow | F32: =F27-F31 -> 0 | G32: 0 | H32: 0 | I32: 0 | J32: 0 | K32: 0 | L32: 0 | M32: 0 | N32: 0 | O32: 0 | P32: 0 | Q32: 0 | R32: 0 | S32: 0
C33: Diskontní sazba | F33: =T16*1/(1+$D$16) -> 0.4810170981 | G33: =F33*1/(1+$D$16) -> 0.458111522 | H33: =G33*1/(1+$D$16) -> 0.4362966876 | I33: 0.4155206549 | J33: 0.395733957 | K33: 0.3768894829 | L33: 0.3589423646 | M33: 0.3418498711 | N33: 0.3255713058 | O33: 0.3100679103 | P33: 0.2953027717 | Q33: 0.281240735 | R33: 0.267848319 | S33: 0.2550936371 | T33: 0.2429463211
C34: Diskontní cash flow | F34: =F32*F33 -> 0 | G34: 0 | H34: 0 | I34: 0 | J34: 0 | K34: 0 | L34: 0 | M34: 0 | N34: 0 | O34: 0 | P34: 0 | Q34: 0 | R34: 0 | S34: 0
F35: =IF(F19>='0 Úvod'!$G$21,F21,0) -> 0 | G35: =IF(G19>='0 Úvod'!$G$21,G21,0) -> 0 | H35: =IF(H19>='0 Úvod'!$G$21,H21,0) -> 0 | I35: =IF(I19>='0 Úvod'!$G$21,I21,0) -> 0 | J35: =IF(J19>='0 Úvod'!$G$21,J21,0) -> 0 | K35: =IF(K19>='0 Úvod'!$G$21,K21,0) -> 0 | L35: =IF(L19>='0 Úvod'!$G$21,L21,0) -> 0 | M35: =IF(M19>='0 Úvod'!$G$21,M21,0) -> 0 | N35: =IF(N19>='0 Úvod'!$G$21,N21,0) -> 0 | O35: =IF(O19>='0 Úvod'!$G$21,O21,0) -> 0 | P35: =IF(P19>='0 Úvod'!$G$21,P21,0) -> 0 | Q35: =IF(Q19>='0 Úvod'!$G$21,Q21,0) -> 0 | R35: =IF(R19>='0 Úvod'!$G$21,R21,0) -> 0 | S35: =IF(S19>='0 Úvod'!$G$21,S21,0) -> 0 | T35: =IF(T19>='0 Úvod'!$G$21,T21,0) -> 0
B36: Ekonomické vnitřní výnosové procento ERR | F36: =ROUND(IRR((F15:T15,F32:T32),0.05),4) -> 
B37: Ekonomická čistá současná hodnota ENPV (CZK) | F37: =SUM(F17:T17,F34:T34) -> 
B38: Rentabilita nákladů | F38: =(SUMPRODUCT(F10:T10,F16:T16)+SUMPRODUCT(F27:T27,F33:T33)-SUMPRODUCT(F30:T30,F33:T33))/((SUMPRODUCT(F14:T14,F16:T16)+SUMPRODUCT(F31:S31,F33:S33))) -> 
B39: Ekonomická čistá současná hodnota ENPV (EUR) | F39: =F37/'0 Úvod'!N19 -> 
B42: Komentáře
B44: Mohou být zahrnuty i jiné přínosy a náklady dle konkrétního projektu.
